 Batch Number,Vendor Name,Invoice Number, Line,Line Amount,Account Description,Issue Date ,Total Amount Paid
140763,YOUTH UNITED FOUNDATION,LINCOLNSHIRE SUG'S,1,"12,500.00",SPONSORSHIP GRANTS & DONATIONS,05/08/2014,"12,500.00"
230714E,GERDA SECURITY PRODUCTS LTD,28008,1,500,OPERATIONAL EQUIP-PURCHASE,07/08/2014,"1,300.00"
230714E,GERDA SECURITY PRODUCTS LTD,28008,2,800,OPERATIONAL EQUIP-PURCHASE,07/08/2014,
010814E,HAZLEMERE WINDOW CO.LTD,29260,1,"1,795.83",DEVELOPMENT  EXPENSES-CONTRACT,07/08/2014,"1,795.83"
010814E,ENTEL UK LTD==================,141985,1,360,RADIO,07/08/2014,894
010814E,ENTEL UK LTD==================,141985,2,9,RADIO,07/08/2014,
010814E,ENTEL UK LTD==================,141985,3,262.5,RADIO,07/08/2014,
010814E,ENTEL UK LTD==================,141985,4,262.5,RADIO,07/08/2014,
010814E,TURNER & TOWNSEND PROJECT MNGT,545666,1,"7,982.00",PROF FEES-MISCELLANEOUS,07/08/2014,"7,982.00"
050814F,HAYS ACCOUNTANCY & FINANCE====,1004543390,1,696,FRS STAFF AGENCY,07/08/2014,696
290714E,*SPRUE SAFETY PRODUCTS LTD====,1063368,1,"1,483.20",FIRE DETECTORS,07/08/2014,"1,483.20"
290714E,*SPRUE SAFETY PRODUCTS LTD====,1063468,1,800,FIRE DETECTORS,07/08/2014,800
290714E,*SPRUE SAFETY PRODUCTS LTD====,1063517,1,440,FIRE DETECTORS,07/08/2014,440
800041209,*JAMES HUNTER (OUTFITTERS) LTD,107768,1,231.56,CLOTHING,07/08/2014,355.14
800041209,*JAMES HUNTER (OUTFITTERS) LTD,107768,2,123.58,CLOTHING,07/08/2014,
800041210,*JAMES HUNTER (OUTFITTERS) LTD,107769,1,231.56,CLOTHING,07/08/2014,355.14
800041210,*JAMES HUNTER (OUTFITTERS) LTD,107769,2,123.58,CLOTHING,07/08/2014,
800040839,*GET YOURSELF NOTICED LTD,11402,1,526,OPERATIONAL EQUIP-PURCHASE,07/08/2014,526
050814F,RUTH LEE LTD==================,12363,1,340,PROTECTIVE EQUIPT - PARTS,07/08/2014,340
010814E,HAGEMEYER UK LTD==============,131459711,1,"1,108.90",FIRE DETECTORS,07/08/2014,"1,108.90"
050814F,MAYFAIR'S COACHES LTD=========,13483,1,400,CONTRACT HIRE,07/08/2014,800
050814F,MAYFAIR'S COACHES LTD=========,13483,2,400,CONTRACT HIRE,07/08/2014,
210714E,MAYFAIR'S COACHES LTD=========,13588,1,550,CONTRACT HIRE,07/08/2014,550
010814E,JOHN BURKE ASSOCIATES,14-06/13979,1,360,PROF FEES-MISCELLANEOUS,07/08/2014,360
010814E,JOHN BURKE ASSOCIATES,14-06/14058,1,"1,440.00",PROF FEES-MISCELLANEOUS,07/08/2014,"1,440.00"
290714E,RICOH IMAGING UK LTD,1400133344,1,163.33,OPERATIONAL EQUIP-PURCHASE,07/08/2014,326.66
290714E,RICOH IMAGING UK LTD,1400133344,2,163.33,OPERATIONAL EQUIP-PURCHASE,07/08/2014,
010814E,DRON & WRIGHT=================,17180,1,612,PROFESSIONAL SERVICES,07/08/2014,612
010814H,EUROWINDOWS LIMITED,17725,1,"1,586.29",DEVELOPMENT  EXPENSES-CONTRACT,07/08/2014,"1,586.29"
240714E,THE SCOUT ASSOCIATION=========,201/00010158,1,638.41,COMMUNITY RELATIONS,07/08/2014,"1,276.82"
240714E,THE SCOUT ASSOCIATION=========,201/00010158,2,638.41,COMMUNITY RELATIONS,07/08/2014,
170714G,B NOKES CONTRACTS LTD,2295,1,100,TACTICAL DAY TO DAY,07/08/2014,640
170714G,B NOKES CONTRACTS LTD,2295,2,100,TACTICAL DAY TO DAY,07/08/2014,
170714G,B NOKES CONTRACTS LTD,2295,3,100,TACTICAL DAY TO DAY,07/08/2014,
170714G,B NOKES CONTRACTS LTD,2295,4,340,TACTICAL DAY TO DAY,07/08/2014,
050814F,AUTOGLASS LIMITED=============,23732975,1,697.09,WINDSCREEN & TYRE CHARGES,07/08/2014,697.09
290714E,FIRE SERVICES YOUTH TRAIN.ASS.,2454,1,430,GENERAL,07/08/2014,430
010814E,ARKAS LIMITED=================,25395,1,325.09,STRATEGIC (CYCLICAL),07/08/2014,"2,689.07"
010814E,ARKAS LIMITED=================,25395,2,504.16,TACTICAL DAY TO DAY,07/08/2014,
010814E,ARKAS LIMITED=================,25395,3,367.16,STRATEGIC (CYCLICAL),07/08/2014,
010814E,ARKAS LIMITED=================,25395,4,"1,492.66",STRATEGIC (CYCLICAL),07/08/2014,
010814E,ARKAS LIMITED=================,25396,1,197.5,STRATEGIC (CYCLICAL),07/08/2014,"1,934.95"
010814E,ARKAS LIMITED=================,25396,2,790.07,STRATEGIC (CYCLICAL),07/08/2014,
010814E,ARKAS LIMITED=================,25396,3,503.14,STRATEGIC (CYCLICAL),07/08/2014,
010814E,ARKAS LIMITED=================,25396,4,444.24,TACTICAL DAY TO DAY,07/08/2014,
050814F,ARKAS LIMITED=================,25397,1,284.26,STRATEGIC (CYCLICAL),07/08/2014,919.14
050814F,ARKAS LIMITED=================,25397,2,235.22,TACTICAL DAY TO DAY,07/08/2014,
050814F,ARKAS LIMITED=================,25397,3,202.16,TACTICAL DAY TO DAY,07/08/2014,
050814F,ARKAS LIMITED=================,25397,4,197.5,STRATEGIC (CYCLICAL),07/08/2014,
010814E,ARKAS LIMITED=================,25684,1,197.5,STRATEGIC (CYCLICAL),07/08/2014,926.93
010814E,ARKAS LIMITED=================,25684,2,320.93,STRATEGIC (CYCLICAL),07/08/2014,
010814E,ARKAS LIMITED=================,25684,3,247,STRATEGIC (CYCLICAL),07/08/2014,
010814E,ARKAS LIMITED=================,25684,4,161.5,STRATEGIC (CYCLICAL),07/08/2014,
010814E,ARKAS LIMITED=================,25685,1,181,STRATEGIC (CYCLICAL),07/08/2014,823
010814E,ARKAS LIMITED=================,25685,2,164.5,TACTICAL DAY TO DAY,07/08/2014,
010814E,ARKAS LIMITED=================,25685,3,247,STRATEGIC (CYCLICAL),07/08/2014,
010814E,ARKAS LIMITED=================,25685,4,230.5,STRATEGIC (CYCLICAL),07/08/2014,
010814E,ARKAS LIMITED=================,25686,1,214,STRATEGIC (CYCLICAL),07/08/2014,"2,168.46"
010814E,ARKAS LIMITED=================,25686,2,"1,120.97",STRATEGIC (CYCLICAL),07/08/2014,
010814E,ARKAS LIMITED=================,25686,3,616.46,STRATEGIC (CYCLICAL),07/08/2014,
010814E,ARKAS LIMITED=================,25686,4,108.5,TACTICAL DAY TO DAY,07/08/2014,
010814E,ARKAS LIMITED=================,25686,5,108.53,TACTICAL DAY TO DAY,07/08/2014,
010814E,ARKAS LIMITED=================,25687,1,250.25,TACTICAL DAY TO DAY,07/08/2014,"3,309.47"
010814E,ARKAS LIMITED=================,25687,2,694.6,STRATEGIC (CYCLICAL),07/08/2014,
010814E,ARKAS LIMITED=================,25687,3,980.28,STRATEGIC (CYCLICAL),07/08/2014,
010814E,ARKAS LIMITED=================,25687,4,692.17,STRATEGIC (CYCLICAL),07/08/2014,
010814E,ARKAS LIMITED=================,25687,5,692.17,STRATEGIC (CYCLICAL),07/08/2014,
010814E,ARKAS LIMITED=================,25688,1,379,STRATEGIC (CYCLICAL),07/08/2014,"1,199.48"
010814E,ARKAS LIMITED=================,25688,2,416.69,STRATEGIC (CYCLICAL),07/08/2014,
010814E,ARKAS LIMITED=================,25688,3,222.79,STRATEGIC (CYCLICAL),07/08/2014,
010814E,ARKAS LIMITED=================,25688,4,181,TACTICAL DAY TO DAY,07/08/2014,
010814E,ARKAS LIMITED=================,25689,1,230.5,STRATEGIC (CYCLICAL),07/08/2014,428
010814E,ARKAS LIMITED=================,25689,2,197.5,STRATEGIC (CYCLICAL),07/08/2014,
010814E,ARKAS LIMITED=================,25735,1,"1,038.00",STRATEGIC (NON CYCLICAL),07/08/2014,"6,585.00"
010814E,ARKAS LIMITED=================,25735,2,828,STRATEGIC (NON CYCLICAL),07/08/2014,
010814E,ARKAS LIMITED=================,25735,3,958,STRATEGIC (NON CYCLICAL),07/08/2014,
010814E,ARKAS LIMITED=================,25735,4,827,STRATEGIC (NON CYCLICAL),07/08/2014,
010814E,ARKAS LIMITED=================,25735,5,949,STRATEGIC (NON CYCLICAL),07/08/2014,
010814E,ARKAS LIMITED=================,25735,6,"1,040.00",STRATEGIC (NON CYCLICAL),07/08/2014,
010814E,ARKAS LIMITED=================,25735,7,945,STRATEGIC (NON CYCLICAL),07/08/2014,
050814F,ARKAS LIMITED=================,25737,1,351.85,STRATEGIC (CYCLICAL),07/08/2014,"2,219.21"
050814F,ARKAS LIMITED=================,25737,2,"1,373.36",STRATEGIC (CYCLICAL),07/08/2014,
050814F,ARKAS LIMITED=================,25737,3,296.5,STRATEGIC (CYCLICAL),07/08/2014,
050814F,ARKAS LIMITED=================,25737,4,197.5,STRATEGIC (CYCLICAL),07/08/2014,
010814E,ARKAS LIMITED=================,25738,1,534.76,TACTICAL DAY TO DAY,07/08/2014,"1,138.60"
010814E,ARKAS LIMITED=================,25738,2,406.34,STRATEGIC (CYCLICAL),07/08/2014,
010814E,ARKAS LIMITED=================,25738,3,197.5,TACTICAL DAY TO DAY,07/08/2014,
800041237,ADECCO UK LIMITED=============,26860787,1,345.54,FRS STAFF AGENCY,07/08/2014,345.54
010814H,CARTAMUNDI UK LIMITED,271433,1,477,PRINTING,07/08/2014,477
010814E,BELLS POWER LTD,3041,1,"31,385.00",DEVELOPMENT  EXPENSES-CONTRACT,07/08/2014,"31,385.00"
050814F,SAFEQUIP LTD==================,32072,1,255.45,OPERATIONAL EQUIP-PURCHASE,07/08/2014,"1,544.20"
050814F,SAFEQUIP LTD==================,32072,2,315,OPERATIONAL EQUIP-PURCHASE,07/08/2014,
050814F,SAFEQUIP LTD==================,32072,3,382.5,OPERATIONAL EQUIP-PURCHASE,07/08/2014,
050814F,SAFEQUIP LTD==================,32072,4,591.25,OPERATIONAL EQUIP-PURCHASE,07/08/2014,
050814F,SAFEQUIP LTD==================,32088,1,193.5,OPERATIONAL EQUIP-PURCHASE,07/08/2014,384.2
050814F,SAFEQUIP LTD==================,32088,2,190.7,OPERATIONAL EQUIP-PURCHASE,07/08/2014,
290714E,SAFEQUIP LTD==================,32193,1,180,OPERATIONAL EQUIP-PURCHASE,07/08/2014,"1,881.20"
290714E,SAFEQUIP LTD==================,32193,2,540,OPERATIONAL EQUIP-PURCHASE,07/08/2014,
290714E,SAFEQUIP LTD==================,32193,3,630,OPERATIONAL EQUIP-PURCHASE,07/08/2014,
290714E,SAFEQUIP LTD==================,32193,4,311.75,OPERATIONAL EQUIP-PURCHASE,07/08/2014,
290714E,SAFEQUIP LTD==================,32193,5,96.75,OPERATIONAL EQUIP-PURCHASE,07/08/2014,
290714E,SAFEQUIP LTD==================,32193,6,96.75,OPERATIONAL EQUIP-PURCHASE,07/08/2014,
290714E,SAFEQUIP LTD==================,32193,7,25.95,OPERATIONAL EQUIP-PURCHASE,07/08/2014,
140763,THAMES WATER UTILITIES LTD====,32298-00367G,1,754.42,WATER & SEWERAGE RATES,07/08/2014,754.42
800040861,*H-SQUARED ELECTRONICS LTD,350428,1,516,OPERATIONAL EQUIP-PURCHASE,07/08/2014,516
800040864,*H-SQUARED ELECTRONICS LTD,350431,1,136,OPERATIONAL EQUIP-PURCHASE,07/08/2014,496
800040864,*H-SQUARED ELECTRONICS LTD,350431,2,360,OPERATIONAL EQUIP-PURCHASE,07/08/2014,
210714E,W.GILCHRIST & CO,3538,1,"1,275.00",PURCHASE,07/08/2014,"1,320.00"
210714E,W.GILCHRIST & CO,3538,2,45,PURCHASE,07/08/2014,
010814E,SMITH O'SULLIVAN LTD.=========,4,1,"1,540.61",DEVELOPMENT  EXPENSES-CONTRACT,07/08/2014,"1,540.61"
240714E,MITIE SECURITY (LONDON) LTD===,45/560970,1,"7,200.00",PREMISES SECURITY,07/08/2014,"7,200.00"
010814H,SPORTSAFE UK LTD==============,460037,1,295,GYM EQUIPMENT,07/08/2014,295
010814E,SPORTSAFE UK LTD==============,460172,1,334.61,GYM EQUIPMENT,07/08/2014,334.61
010814E,SPORTSAFE UK LTD==============,460174,1,290,GYM EQUIPMENT,07/08/2014,549
010814E,SPORTSAFE UK LTD==============,460174,2,92,GYM EQUIPMENT,07/08/2014,
010814E,SPORTSAFE UK LTD==============,460174,3,69,GYM EQUIPMENT,07/08/2014,
010814E,SPORTSAFE UK LTD==============,460174,4,98,GYM EQUIPMENT,07/08/2014,
010814E,SPORTSAFE UK LTD==============,460186,1,207.76,GYM EQUIPMENT,07/08/2014,317.57
010814E,SPORTSAFE UK LTD==============,460186,2,102.56,GYM EQUIPMENT,07/08/2014,
010814E,SPORTSAFE UK LTD==============,460186,3,7.25,GYM EQUIPMENT,07/08/2014,
010814E,SPORTSAFE UK LTD==============,460187,1,295,GYM EQUIPMENT,07/08/2014,295
010814E,LYON EQUIPMENT LIMITED========,497470,1,5.66,OPERATIONAL EQUIP-PURCHASE,07/08/2014,269.64
010814E,LYON EQUIPMENT LIMITED========,497470,2,5.66,OPERATIONAL EQUIP-PURCHASE,07/08/2014,
010814E,LYON EQUIPMENT LIMITED========,497470,3,5.66,OPERATIONAL EQUIP-PURCHASE,07/08/2014,
010814E,LYON EQUIPMENT LIMITED========,497470,4,5.66,OPERATIONAL EQUIP-PURCHASE,07/08/2014,
010814E,LYON EQUIPMENT LIMITED========,497470,5,5.66,OPERATIONAL EQUIP-PURCHASE,07/08/2014,
010814E,LYON EQUIPMENT LIMITED========,497470,6,29.78,OPERATIONAL EQUIP-PURCHASE,07/08/2014,
010814E,LYON EQUIPMENT LIMITED========,497470,7,29.78,OPERATIONAL EQUIP-PURCHASE,07/08/2014,
010814E,LYON EQUIPMENT LIMITED========,497470,8,29.78,OPERATIONAL EQUIP-PURCHASE,07/08/2014,
010814E,LYON EQUIPMENT LIMITED========,497470,9,29.78,OPERATIONAL EQUIP-PURCHASE,07/08/2014,
010814E,LYON EQUIPMENT LIMITED========,497470,10,29.78,OPERATIONAL EQUIP-PURCHASE,07/08/2014,
010814E,LYON EQUIPMENT LIMITED========,497470,11,29.78,OPERATIONAL EQUIP-PURCHASE,07/08/2014,
010814E,LYON EQUIPMENT LIMITED========,497470,12,5.66,OPERATIONAL EQUIP-PURCHASE,07/08/2014,
010814E,LYON EQUIPMENT LIMITED========,497470,13,5.66,OPERATIONAL EQUIP-PURCHASE,07/08/2014,
010814E,LYON EQUIPMENT LIMITED========,497470,14,29.78,OPERATIONAL EQUIP-PURCHASE,07/08/2014,
010814E,LYON EQUIPMENT LIMITED========,497470,15,15.9,OPERATIONAL EQUIP-PURCHASE,07/08/2014,
010814E,LYON EQUIPMENT LIMITED========,497470,16,5.66,OPERATIONAL EQUIP-PURCHASE,07/08/2014,
010814H,FAHEY BUILDERS LTD============,5226,1,785,STRATEGIC (NON CYCLICAL),07/08/2014,785
010814H,FAHEY BUILDERS LTD============,5227,1,"4,985.00",STRATEGIC (NON CYCLICAL),07/08/2014,"4,985.00"
010814H,FAHEY BUILDERS LTD============,5228,1,"3,565.00",STRATEGIC (NON CYCLICAL),07/08/2014,"3,565.00"
010814E,FAHEY BUILDERS LTD============,5229,1,"6,774.91",STRATEGIC (NON CYCLICAL),07/08/2014,"6,774.91"
140766,THOMPSONS SOLICITORS==========,5876,2,"19,750.00",CLAIMANT COSTS AGREED,07/08/2014,"19,750.00"
140763,THAMES WATER UTILITIES LTD====,61085-96798>,1,303.21,WATER & SEWERAGE RATES,07/08/2014,303.21
010814E,CONTRACT CATERING CONSULTANTS=,6255,1,500,CONSULTANTS,07/08/2014,500
010814E,SWEETT  UK LTD,7036410,1,783.49,PROF FEES-MISCELLANEOUS,07/08/2014,783.49
010814E,SWEETT  UK LTD,7036986,1,"1,431.00",PROF FEES-MISCELLANEOUS,07/08/2014,"1,431.00"
050814H,INFICON GMBH==================,70684918,1,594.21,OPERATIONAL EQUIP-PURCHASE,07/08/2014,594.21
290714E,INFICON,70693756,1,"17,850.00",REPAIR & MAINTENANCE,07/08/2014,"17,850.00"
010814H,TWO SERVICES LTD==============,77619,1,681.5,CATERING EQUIPMENT,07/08/2014,701.5
010814H,TWO SERVICES LTD==============,77619,2,20,CATERING EQUIPMENT,07/08/2014,
140763,LONDON PENSIONS FUND AUTHORITY,8029,1,"86,042.11",LOCAL GOVT PENSION SCHEME PAYM,07/08/2014,"86,042.11"
010814H,TITAN FIRE AND SECURITY=======,89132,1,632,STRATEGIC (CYCLICAL),07/08/2014,632
140763,THAMES WATER UTILITIES LTD====,89656-99261G,1,429.19,WATER & SEWERAGE RATES,07/08/2014,429.19
010814E,DRAEGER SAFETY UK LIMITED=====,90450037,1,496.83,TELEMETRY MAINTENANCE,07/08/2014,823.2
010814E,DRAEGER SAFETY UK LIMITED=====,90450037,2,326.37,TELEMETRY MAINTENANCE,07/08/2014,
230714E,DRAEGER SAFETY UK LIMITED=====,90452062,1,460,GENERAL CONSUMABLES,07/08/2014,460
140766,DEPARTMENT FOR WORK & PENSIONS,9288,1,816,DWP NHS CHARGES,07/08/2014,816
050814F,ARCHITECTURAL DECORATORS LTD==,AD22392,1,"2,262.00",STRATEGIC (NON CYCLICAL),07/08/2014,"2,262.00"
010814E,LG BLAND ELECTRICAL & MECHANIC,B45041,1,570.85,DEVELOPMENT  EXPENSES-CONTRACT,07/08/2014,570.85
010814E,THAMES WATER UTILITIES LTD====,CBA1406569,1,"1,185.00",CURRENT HYDRANT COSTS,07/08/2014,"1,185.00"
010814E,THAMES WATER UTILITIES LTD====,CBA1406570,1,477,CURRENT HYDRANT COSTS,07/08/2014,477
010814E,THAMES WATER UTILITIES LTD====,CBA1406571,1,"1,185.00",CURRENT HYDRANT COSTS,07/08/2014,"1,185.00"
010814E,THAMES WATER UTILITIES LTD====,CBA1406576,1,459,CURRENT HYDRANT COSTS,07/08/2014,459
010814E,THAMES WATER UTILITIES LTD====,CBA1406586,1,477,CURRENT HYDRANT COSTS,07/08/2014,477
010814E,THAMES WATER UTILITIES LTD====,CBA1406587,1,"1,185.00",CURRENT HYDRANT COSTS,07/08/2014,"1,185.00"
010814E,THAMES WATER UTILITIES LTD====,CBA1406607,1,307,CURRENT HYDRANT COSTS,07/08/2014,307
210714E,SURVITEC SERVICE &DISTRIBUTION,CD30790372,1,208,PROTECTIVE EQUIPT - PARTS,07/08/2014,674
210714E,SURVITEC SERVICE &DISTRIBUTION,CD30790372,2,152,PROTECTIVE EQUIPT - PARTS,07/08/2014,
210714E,SURVITEC SERVICE &DISTRIBUTION,CD30790372,3,152,PROTECTIVE EQUIPT - PARTS,07/08/2014,
210714E,SURVITEC SERVICE &DISTRIBUTION,CD30790372,4,152,PROTECTIVE EQUIPT - PARTS,07/08/2014,
210714E,SURVITEC SERVICE &DISTRIBUTION,CD30790372,5,10,REPAIR & MAINTENANCE,07/08/2014,
140764,BRITISH TELECOM===============,CNS 186507,1,946.8,DEVELOPMENT  EXPENSES-CONTRACT,07/08/2014,946.8
050814F,WM ENGINEERING SERVICES LTD===,I-4712,1,"1,980.00",STRATEGIC (NON CYCLICAL),07/08/2014,"1,980.00"
010814H,WM ENGINEERING SERVICES LTD===,I-4758,1,388.75,TACTICAL DAY TO DAY,07/08/2014,388.75
010814H,WM ENGINEERING SERVICES LTD===,I-4759,1,620.4,TACTICAL DAY TO DAY,07/08/2014,620.4
010814H,WM ENGINEERING SERVICES LTD===,I-4761,1,301.95,TACTICAL DAY TO DAY,07/08/2014,301.95
010814E,HALL FUELS,I06903099,1,689.66,FUEL,07/08/2014,689.66
290714E,HALL FUELS,I06928815,1,"5,273.00",FUEL,07/08/2014,"5,273.00"
050814F,QA LIMITED,ICE297518,1,475,PROFESSIONAL DEVELOPMENT,07/08/2014,475
010814E,BABCOCK CIVIL INFRASTRUCTURE,II5000594,1,"31,161.87",STRATEGIC (CYCLICAL),07/08/2014,"31,161.87"
140763,JCT600 CONTRACTS LIMITED======,INV00067906,1,409.13,LEASE CAR CHARGES,07/08/2014,409.13
140763,JCT600 CONTRACTS LIMITED======,INV00067906,2,-36.72,VAT CAR LEASING,07/08/2014,
140763,JCT600 CONTRACTS LIMITED======,INV00067906,3,36.72,LEASE CAR CHARGES,07/08/2014,
140763,JCT600 CONTRACTS LIMITED======,INV00068139,1,465.78,LEASE CAR CHARGES,07/08/2014,465.78
140763,JCT600 CONTRACTS LIMITED======,INV00068139,2,-40.31,VAT CAR LEASING,07/08/2014,
140763,JCT600 CONTRACTS LIMITED======,INV00068139,3,40.31,LEASE CAR CHARGES,07/08/2014,
140763,JCT600 CONTRACTS LIMITED======,INV00068140,1,339.38,LEASE CAR CHARGES,07/08/2014,339.38
140763,JCT600 CONTRACTS LIMITED======,INV00068140,2,-28.87,VAT CAR LEASING,07/08/2014,
140763,JCT600 CONTRACTS LIMITED======,INV00068140,3,28.87,LEASE CAR CHARGES,07/08/2014,
140763,JCT600 CONTRACTS LIMITED======,INV00068141,1,337.02,LEASE CAR CHARGES,07/08/2014,337.02
140763,JCT600 CONTRACTS LIMITED======,INV00068141,2,-28.98,VAT CAR LEASING,07/08/2014,
140763,JCT600 CONTRACTS LIMITED======,INV00068141,3,28.98,LEASE CAR CHARGES,07/08/2014,
140763,JCT600 CONTRACTS LIMITED======,INV00068145,1,407.92,LEASE CAR CHARGES,07/08/2014,407.92
140763,JCT600 CONTRACTS LIMITED======,INV00068145,2,-36.04,VAT CAR LEASING,07/08/2014,
140763,JCT600 CONTRACTS LIMITED======,INV00068145,3,36.04,LEASE CAR CHARGES,07/08/2014,
140763,JCT600 CONTRACTS LIMITED======,INV00068148,1,370.39,LEASE CAR CHARGES,07/08/2014,370.39
140763,JCT600 CONTRACTS LIMITED======,INV00068148,2,-32.96,VAT CAR LEASING,07/08/2014,
140763,JCT600 CONTRACTS LIMITED======,INV00068148,3,32.96,LEASE CAR CHARGES,07/08/2014,
140763,JCT600 CONTRACTS LIMITED======,INV00068149,1,419.3,LEASE CAR CHARGES,07/08/2014,419.3
140763,JCT600 CONTRACTS LIMITED======,INV00068149,2,-37.89,VAT CAR LEASING,07/08/2014,
140763,JCT600 CONTRACTS LIMITED======,INV00068149,3,37.89,LEASE CAR CHARGES,07/08/2014,
010814E,G4S FIRE & SECURITY SYSTEMS UK,ITN68972,1,"5,929.70",STRATEGIC (NON CYCLICAL),07/08/2014,"5,929.70"
050814F,COFELY WORKPLACE LIMITED,M129696,1,643.85,STRATEGIC (NON CYCLICAL),07/08/2014,643.85
050814F,COFELY WORKPLACE LIMITED,M129697,1,313.85,STRATEGIC (NON CYCLICAL),07/08/2014,313.85
050814F,COFELY WORKPLACE LIMITED,M129759,1,643.85,STRATEGIC (NON CYCLICAL),07/08/2014,643.85
050814F,COFELY WORKPLACE LIMITED,M129760,1,643.85,STRATEGIC (NON CYCLICAL),07/08/2014,643.85
050814F,COFELY WORKPLACE LIMITED,M130043,1,385.35,STRATEGIC (CYCLICAL),07/08/2014,"9,248.40"
050814F,COFELY WORKPLACE LIMITED,M130043,2,385.35,STRATEGIC (CYCLICAL),07/08/2014,
050814F,COFELY WORKPLACE LIMITED,M130043,3,385.35,STRATEGIC (CYCLICAL),07/08/2014,
050814F,COFELY WORKPLACE LIMITED,M130043,4,385.35,STRATEGIC (CYCLICAL),07/08/2014,
050814F,COFELY WORKPLACE LIMITED,M130043,5,385.35,STRATEGIC (CYCLICAL),07/08/2014,
050814F,COFELY WORKPLACE LIMITED,M130043,6,385.35,STRATEGIC (CYCLICAL),07/08/2014,
050814F,COFELY WORKPLACE LIMITED,M130043,7,385.35,STRATEGIC (CYCLICAL),07/08/2014,
050814F,COFELY WORKPLACE LIMITED,M130043,8,385.35,STRATEGIC (CYCLICAL),07/08/2014,
050814F,COFELY WORKPLACE LIMITED,M130043,9,385.35,STRATEGIC (CYCLICAL),07/08/2014,
050814F,COFELY WORKPLACE LIMITED,M130043,10,385.35,STRATEGIC (CYCLICAL),07/08/2014,
050814F,COFELY WORKPLACE LIMITED,M130043,11,385.35,STRATEGIC (CYCLICAL),07/08/2014,
050814F,COFELY WORKPLACE LIMITED,M130043,12,385.35,STRATEGIC (CYCLICAL),07/08/2014,
050814F,COFELY WORKPLACE LIMITED,M130043,13,385.35,STRATEGIC (CYCLICAL),07/08/2014,
050814F,COFELY WORKPLACE LIMITED,M130043,14,385.35,STRATEGIC (CYCLICAL),07/08/2014,
050814F,COFELY WORKPLACE LIMITED,M130043,15,385.35,STRATEGIC (CYCLICAL),07/08/2014,
050814F,COFELY WORKPLACE LIMITED,M130043,16,385.35,STRATEGIC (CYCLICAL),07/08/2014,
050814F,COFELY WORKPLACE LIMITED,M130043,17,385.35,STRATEGIC (CYCLICAL),07/08/2014,
050814F,COFELY WORKPLACE LIMITED,M130043,18,385.35,STRATEGIC (CYCLICAL),07/08/2014,
050814F,COFELY WORKPLACE LIMITED,M130043,19,385.35,STRATEGIC (CYCLICAL),07/08/2014,
050814F,COFELY WORKPLACE LIMITED,M130043,20,385.35,STRATEGIC (CYCLICAL),07/08/2014,
050814F,COFELY WORKPLACE LIMITED,M130043,21,385.35,STRATEGIC (CYCLICAL),07/08/2014,
050814F,COFELY WORKPLACE LIMITED,M130043,22,385.35,STRATEGIC (CYCLICAL),07/08/2014,
050814F,COFELY WORKPLACE LIMITED,M130043,23,385.35,STRATEGIC (CYCLICAL),07/08/2014,
050814F,COFELY WORKPLACE LIMITED,M130043,24,385.35,STRATEGIC (CYCLICAL),07/08/2014,
050814F,COFELY WORKPLACE LIMITED,M130110,1,"1,133.77",STRATEGIC (NON CYCLICAL),07/08/2014,"1,133.77"
050814F,COFELY WORKPLACE LIMITED,M130111,1,"3,777.95",STRATEGIC (NON CYCLICAL),07/08/2014,"3,777.95"
050814F,COFELY WORKPLACE LIMITED,M130112,1,"1,202.00",STRATEGIC (NON CYCLICAL),07/08/2014,"1,202.00"
050814F,COFELY WORKPLACE LIMITED,M130114,1,313.85,STRATEGIC (NON CYCLICAL),07/08/2014,313.85
180714G,HUNTER LODGE==================,SI-05580,1,640,ADVERTISING,07/08/2014,640
010814E,HUNTER LODGE==================,SI-05587,1,"10,000.00",ADVERTISING,07/08/2014,"15,000.00"
010814E,HUNTER LODGE==================,SI-05587,2,"5,000.00",ADVERTISING,07/08/2014,
010814E,GROUND CONTROL UMITED,SIN037490,1,82.01,GROUNDS MAINTENANCE,07/08/2014,790.05
010814E,GROUND CONTROL UMITED,SIN037490,2,13.34,GROUNDS MAINTENANCE,07/08/2014,
010814E,GROUND CONTROL UMITED,SIN037490,3,50.78,GROUNDS MAINTENANCE,07/08/2014,
010814E,GROUND CONTROL UMITED,SIN037490,4,35.49,GROUNDS MAINTENANCE,07/08/2014,
010814E,GROUND CONTROL UMITED,SIN037490,5,14.68,GROUNDS MAINTENANCE,07/08/2014,
010814E,GROUND CONTROL UMITED,SIN037490,6,14.68,GROUNDS MAINTENANCE,07/08/2014,
010814E,GROUND CONTROL UMITED,SIN037490,7,42.42,GROUNDS MAINTENANCE,07/08/2014,
010814E,GROUND CONTROL UMITED,SIN037490,8,42.42,GROUNDS MAINTENANCE,07/08/2014,
010814E,GROUND CONTROL UMITED,SIN037490,9,13.34,GROUNDS MAINTENANCE,07/08/2014,
010814E,GROUND CONTROL UMITED,SIN037490,10,13.34,GROUNDS MAINTENANCE,07/08/2014,
010814E,GROUND CONTROL UMITED,SIN037490,11,46.43,GROUNDS MAINTENANCE,07/08/2014,
010814E,GROUND CONTROL UMITED,SIN037490,12,42.42,GROUNDS MAINTENANCE,07/08/2014,
010814E,GROUND CONTROL UMITED,SIN037490,13,13.34,GROUNDS MAINTENANCE,07/08/2014,
010814E,GROUND CONTROL UMITED,SIN037490,14,13.34,GROUNDS MAINTENANCE,07/08/2014,
010814E,GROUND CONTROL UMITED,SIN037490,15,13.34,GROUNDS MAINTENANCE,07/08/2014,
010814E,GROUND CONTROL UMITED,SIN037490,16,13.34,GROUNDS MAINTENANCE,07/08/2014,
010814E,GROUND CONTROL UMITED,SIN037490,17,13.34,GROUNDS MAINTENANCE,07/08/2014,
010814E,GROUND CONTROL UMITED,SIN037490,18,66.44,GROUNDS MAINTENANCE,07/08/2014,
010814E,GROUND CONTROL UMITED,SIN037490,19,13.34,GROUNDS MAINTENANCE,07/08/2014,
010814E,GROUND CONTROL UMITED,SIN037490,20,13.34,GROUNDS MAINTENANCE,07/08/2014,
010814E,GROUND CONTROL UMITED,SIN037490,21,35.49,GROUNDS MAINTENANCE,07/08/2014,
010814E,GROUND CONTROL UMITED,SIN037490,22,13.34,GROUNDS MAINTENANCE,07/08/2014,
010814E,GROUND CONTROL UMITED,SIN037490,23,35.49,GROUNDS MAINTENANCE,07/08/2014,
010814E,GROUND CONTROL UMITED,SIN037490,24,39.49,GROUNDS MAINTENANCE,07/08/2014,
010814E,GROUND CONTROL UMITED,SIN037490,25,39.49,GROUNDS MAINTENANCE,07/08/2014,
010814E,GROUND CONTROL UMITED,SIN037490,26,13.34,GROUNDS MAINTENANCE,07/08/2014,
010814E,GROUND CONTROL UMITED,SIN037490,27,13.34,GROUNDS MAINTENANCE,07/08/2014,
010814E,GROUND CONTROL UMITED,SIN037490,28,13.34,GROUNDS MAINTENANCE,07/08/2014,
010814E,GROUND CONTROL UMITED,SIN037490,29,6.67,GROUNDS MAINTENANCE,07/08/2014,
010814E,GROUND CONTROL UMITED,SIN037490,30,8.89,GROUNDS MAINTENANCE,07/08/2014,
140766,DEPARTMENT FOR WORK & PENSIONS,SJI-212,1,781,DWP NHS CHARGES,07/08/2014,781
800041244,*THOMAS KNEALE & CO LTD,TK107921,1,3.47,CLOTHING,07/08/2014,"1,061.46"
800041244,*THOMAS KNEALE & CO LTD,TK107921,2,1.48,CLOTHING,07/08/2014,
800041244,*THOMAS KNEALE & CO LTD,TK107921,3,10.89,CLOTHING,07/08/2014,
800041244,*THOMAS KNEALE & CO LTD,TK107921,4,0.99,CLOTHING,07/08/2014,
800041244,*THOMAS KNEALE & CO LTD,TK107921,5,3.47,CLOTHING,07/08/2014,
800041244,*THOMAS KNEALE & CO LTD,TK107921,6,3.47,CLOTHING,07/08/2014,
800041244,*THOMAS KNEALE & CO LTD,TK107921,7,10.89,CLOTHING,07/08/2014,
800041244,*THOMAS KNEALE & CO LTD,TK107921,8,6.94,CLOTHING,07/08/2014,
800041244,*THOMAS KNEALE & CO LTD,TK107921,9,53.98,OFFICE FURNITURE,07/08/2014,
800041244,*THOMAS KNEALE & CO LTD,TK107921,10,6.94,CLOTHING,07/08/2014,
800041244,*THOMAS KNEALE & CO LTD,TK107921,11,2.96,CLOTHING,07/08/2014,
800041244,*THOMAS KNEALE & CO LTD,TK107921,12,1.48,CLOTHING,07/08/2014,
800041244,*THOMAS KNEALE & CO LTD,TK107921,13,10.89,CLOTHING,07/08/2014,
800041244,*THOMAS KNEALE & CO LTD,TK107921,14,6.94,CLOTHING,07/08/2014,
800041244,*THOMAS KNEALE & CO LTD,TK107921,15,2.96,CLOTHING,07/08/2014,
800041244,*THOMAS KNEALE & CO LTD,TK107921,16,10.89,CLOTHING,07/08/2014,
800041244,*THOMAS KNEALE & CO LTD,TK107921,17,3.47,CLOTHING,07/08/2014,
800041244,*THOMAS KNEALE & CO LTD,TK107921,18,10.89,CLOTHING,07/08/2014,
800041244,*THOMAS KNEALE & CO LTD,TK107921,19,0.99,CLOTHING,07/08/2014,
800041244,*THOMAS KNEALE & CO LTD,TK107921,20,3.47,CLOTHING,07/08/2014,
800041244,*THOMAS KNEALE & CO LTD,TK107921,21,1.48,CLOTHING,07/08/2014,
800041244,*THOMAS KNEALE & CO LTD,TK107921,22,10.89,CLOTHING,07/08/2014,
800041244,*THOMAS KNEALE & CO LTD,TK107921,23,0.99,CLOTHING,07/08/2014,
800041244,*THOMAS KNEALE & CO LTD,TK107921,24,6.94,CLOTHING,07/08/2014,
800041244,*THOMAS KNEALE & CO LTD,TK107921,25,2.96,CLOTHING,07/08/2014,
800041244,*THOMAS KNEALE & CO LTD,TK107921,26,10.89,CLOTHING,07/08/2014,
800041244,*THOMAS KNEALE & CO LTD,TK107921,27,10.89,CLOTHING,07/08/2014,
800041244,*THOMAS KNEALE & CO LTD,TK107921,28,10.89,CLOTHING,07/08/2014,
800041244,*THOMAS KNEALE & CO LTD,TK107921,29,53.98,OFFICE FURNITURE,07/08/2014,
800041244,*THOMAS KNEALE & CO LTD,TK107921,30,53.98,OFFICE FURNITURE,07/08/2014,
800041244,*THOMAS KNEALE & CO LTD,TK107921,31,10.89,CLOTHING,07/08/2014,
800041244,*THOMAS KNEALE & CO LTD,TK107921,32,0.99,CLOTHING,07/08/2014,
800041244,*THOMAS KNEALE & CO LTD,TK107921,33,10.89,CLOTHING,07/08/2014,
800041244,*THOMAS KNEALE & CO LTD,TK107921,34,0.99,CLOTHING,07/08/2014,
800041244,*THOMAS KNEALE & CO LTD,TK107921,35,6.94,CLOTHING,07/08/2014,
800041244,*THOMAS KNEALE & CO LTD,TK107921,36,5.35,CLOTHING,07/08/2014,
800041244,*THOMAS KNEALE & CO LTD,TK107921,37,2.96,CLOTHING,07/08/2014,
800041244,*THOMAS KNEALE & CO LTD,TK107921,38,10.89,CLOTHING,07/08/2014,
800041244,*THOMAS KNEALE & CO LTD,TK107921,39,1.48,CLOTHING,07/08/2014,
800041244,*THOMAS KNEALE & CO LTD,TK107921,40,10.89,CLOTHING,07/08/2014,
800041244,*THOMAS KNEALE & CO LTD,TK107921,41,2.59,OFFICE FURNITURE,07/08/2014,
800041244,*THOMAS KNEALE & CO LTD,TK107921,42,3.47,CLOTHING,07/08/2014,
800041244,*THOMAS KNEALE & CO LTD,TK107921,43,1.48,CLOTHING,07/08/2014,
800041244,*THOMAS KNEALE & CO LTD,TK107921,44,10.89,CLOTHING,07/08/2014,
800041244,*THOMAS KNEALE & CO LTD,TK107921,45,10.89,CLOTHING,07/08/2014,
800041244,*THOMAS KNEALE & CO LTD,TK107921,46,10.89,CLOTHING,07/08/2014,
800041244,*THOMAS KNEALE & CO LTD,TK107921,47,10.89,CLOTHING,07/08/2014,
800041244,*THOMAS KNEALE & CO LTD,TK107921,48,10.89,CLOTHING,07/08/2014,
800041244,*THOMAS KNEALE & CO LTD,TK107921,49,0.99,CLOTHING,07/08/2014,
800041244,*THOMAS KNEALE & CO LTD,TK107921,50,3.47,CLOTHING,07/08/2014,
800041244,*THOMAS KNEALE & CO LTD,TK107921,51,1.48,CLOTHING,07/08/2014,
800041244,*THOMAS KNEALE & CO LTD,TK107921,52,10.89,CLOTHING,07/08/2014,
800041244,*THOMAS KNEALE & CO LTD,TK107921,53,3.47,CLOTHING,07/08/2014,
800041244,*THOMAS KNEALE & CO LTD,TK107921,54,1.48,CLOTHING,07/08/2014,
800041244,*THOMAS KNEALE & CO LTD,TK107921,55,10.89,CLOTHING,07/08/2014,
800041244,*THOMAS KNEALE & CO LTD,TK107921,56,0.99,CLOTHING,07/08/2014,
800041244,*THOMAS KNEALE & CO LTD,TK107921,57,10.89,CLOTHING,07/08/2014,
800041244,*THOMAS KNEALE & CO LTD,TK107921,58,3.47,CLOTHING,07/08/2014,
800041244,*THOMAS KNEALE & CO LTD,TK107921,59,1.48,CLOTHING,07/08/2014,
800041244,*THOMAS KNEALE & CO LTD,TK107921,60,10.89,CLOTHING,07/08/2014,
800041244,*THOMAS KNEALE & CO LTD,TK107921,61,10.89,CLOTHING,07/08/2014,
800041244,*THOMAS KNEALE & CO LTD,TK107921,62,6.94,CLOTHING,07/08/2014,
800041244,*THOMAS KNEALE & CO LTD,TK107921,63,3.47,CLOTHING,07/08/2014,
800041244,*THOMAS KNEALE & CO LTD,TK107921,64,10.89,CLOTHING,07/08/2014,
800041244,*THOMAS KNEALE & CO LTD,TK107921,65,10.89,CLOTHING,07/08/2014,
800041244,*THOMAS KNEALE & CO LTD,TK107921,66,0.99,CLOTHING,07/08/2014,
800041244,*THOMAS KNEALE & CO LTD,TK107921,67,3.47,CLOTHING,07/08/2014,
800041244,*THOMAS KNEALE & CO LTD,TK107921,68,1.48,CLOTHING,07/08/2014,
800041244,*THOMAS KNEALE & CO LTD,TK107921,69,10.89,CLOTHING,07/08/2014,
800041244,*THOMAS KNEALE & CO LTD,TK107921,70,4.98,OFFICE FURNITURE,07/08/2014,
800041244,*THOMAS KNEALE & CO LTD,TK107921,71,10.89,CLOTHING,07/08/2014,
800041244,*THOMAS KNEALE & CO LTD,TK107921,72,1.48,CLOTHING,07/08/2014,
800041244,*THOMAS KNEALE & CO LTD,TK107921,73,10.89,CLOTHING,07/08/2014,
800041244,*THOMAS KNEALE & CO LTD,TK107921,74,3.47,CLOTHING,07/08/2014,
800041244,*THOMAS KNEALE & CO LTD,TK107921,75,1.48,CLOTHING,07/08/2014,
800041244,*THOMAS KNEALE & CO LTD,TK107921,76,10.89,CLOTHING,07/08/2014,
800041244,*THOMAS KNEALE & CO LTD,TK107921,77,6.94,CLOTHING,07/08/2014,
800041244,*THOMAS KNEALE & CO LTD,TK107921,78,2.96,CLOTHING,07/08/2014,
800041244,*THOMAS KNEALE & CO LTD,TK107921,79,10.89,CLOTHING,07/08/2014,
800041244,*THOMAS KNEALE & CO LTD,TK107921,80,161.94,OFFICE FURNITURE,07/08/2014,
800041244,*THOMAS KNEALE & CO LTD,TK107921,81,2.84,OFFICE FURNITURE,07/08/2014,
800041244,*THOMAS KNEALE & CO LTD,TK107921,82,10.89,CLOTHING,07/08/2014,
800041244,*THOMAS KNEALE & CO LTD,TK107921,83,0.99,CLOTHING,07/08/2014,
800041244,*THOMAS KNEALE & CO LTD,TK107921,84,10.89,CLOTHING,07/08/2014,
800041244,*THOMAS KNEALE & CO LTD,TK107921,85,6.94,CLOTHING,07/08/2014,
800041244,*THOMAS KNEALE & CO LTD,TK107921,86,2.96,CLOTHING,07/08/2014,
800041244,*THOMAS KNEALE & CO LTD,TK107921,87,10.89,CLOTHING,07/08/2014,
800041244,*THOMAS KNEALE & CO LTD,TK107921,88,1.48,CLOTHING,07/08/2014,
800041244,*THOMAS KNEALE & CO LTD,TK107921,89,3.47,CLOTHING,07/08/2014,
800041244,*THOMAS KNEALE & CO LTD,TK107921,90,1.48,CLOTHING,07/08/2014,
800041244,*THOMAS KNEALE & CO LTD,TK107921,91,10.89,CLOTHING,07/08/2014,
800041244,*THOMAS KNEALE & CO LTD,TK107921,92,3.47,CLOTHING,07/08/2014,
800041244,*THOMAS KNEALE & CO LTD,TK107921,93,1.48,CLOTHING,07/08/2014,
800041244,*THOMAS KNEALE & CO LTD,TK107921,94,161.94,OFFICE FURNITURE,07/08/2014,
800041244,*THOMAS KNEALE & CO LTD,TK107921,95,10.89,CLOTHING,07/08/2014,
800041244,*THOMAS KNEALE & CO LTD,TK107921,96,0.99,CLOTHING,07/08/2014,
800041244,*THOMAS KNEALE & CO LTD,TK107921,97,3.47,CLOTHING,07/08/2014,
800041244,*THOMAS KNEALE & CO LTD,TK107921,98,1.48,CLOTHING,07/08/2014,
800041244,*THOMAS KNEALE & CO LTD,TK107921,99,3.47,CLOTHING,07/08/2014,
800041244,*THOMAS KNEALE & CO LTD,TK107921,100,10.89,CLOTHING,07/08/2014,
800041244,*THOMAS KNEALE & CO LTD,TK107921,101,6.94,CLOTHING,07/08/2014,
800041248,*THOMAS KNEALE & CO LTD,TK107997,1,381.15,CLOTHING,07/08/2014,560.32
800041248,*THOMAS KNEALE & CO LTD,TK107997,2,121.45,CLOTHING,07/08/2014,
800041248,*THOMAS KNEALE & CO LTD,TK107997,3,57.72,CLOTHING,07/08/2014,
050814H,BRIBEN PRODUCTS LIMITED=======,108624,1,256,REPAIR & MAINTENANCE,11/08/2014,256
140765,THAMES WATER UTILITIES LTD====,0694888143Z,1,447.88,WATER & SEWERAGE RATES,11/08/2014,447.88
070814F,VISTA LANDSCAPE MANAGEMENT LTD,120005,1,144.25,GROUNDS MAINTENANCE,11/08/2014,"2,955.91"
070814F,VISTA LANDSCAPE MANAGEMENT LTD,120005,2,26.71,GROUNDS MAINTENANCE,11/08/2014,
070814F,VISTA LANDSCAPE MANAGEMENT LTD,120005,3,29.23,GROUNDS MAINTENANCE,11/08/2014,
070814F,VISTA LANDSCAPE MANAGEMENT LTD,120005,4,32.26,GROUNDS MAINTENANCE,11/08/2014,
070814F,VISTA LANDSCAPE MANAGEMENT LTD,120005,5,113.22,GROUNDS MAINTENANCE,11/08/2014,
070814F,VISTA LANDSCAPE MANAGEMENT LTD,120005,6,25.42,GROUNDS MAINTENANCE,11/08/2014,
070814F,VISTA LANDSCAPE MANAGEMENT LTD,120005,7,33.14,GROUNDS MAINTENANCE,11/08/2014,
070814F,VISTA LANDSCAPE MANAGEMENT LTD,120005,8,26.46,GROUNDS MAINTENANCE,11/08/2014,
070814F,VISTA LANDSCAPE MANAGEMENT LTD,120005,9,23.05,GROUNDS MAINTENANCE,11/08/2014,
070814F,VISTA LANDSCAPE MANAGEMENT LTD,120005,10,23.14,GROUNDS MAINTENANCE,11/08/2014,
070814F,VISTA LANDSCAPE MANAGEMENT LTD,120005,11,26.68,GROUNDS MAINTENANCE,11/08/2014,
070814F,VISTA LANDSCAPE MANAGEMENT LTD,120005,12,124.13,GROUNDS MAINTENANCE,11/08/2014,
070814F,VISTA LANDSCAPE MANAGEMENT LTD,120005,13,22.46,GROUNDS MAINTENANCE,11/08/2014,
070814F,VISTA LANDSCAPE MANAGEMENT LTD,120005,14,94,GROUNDS MAINTENANCE,11/08/2014,
070814F,VISTA LANDSCAPE MANAGEMENT LTD,120005,15,29.15,GROUNDS MAINTENANCE,11/08/2014,
070814F,VISTA LANDSCAPE MANAGEMENT LTD,120005,16,23.91,GROUNDS MAINTENANCE,11/08/2014,
070814F,VISTA LANDSCAPE MANAGEMENT LTD,120005,17,141.74,GROUNDS MAINTENANCE,11/08/2014,
070814F,VISTA LANDSCAPE MANAGEMENT LTD,120005,18,24.27,GROUNDS MAINTENANCE,11/08/2014,
070814F,VISTA LANDSCAPE MANAGEMENT LTD,120005,19,25.81,GROUNDS MAINTENANCE,11/08/2014,
070814F,VISTA LANDSCAPE MANAGEMENT LTD,120005,20,19.47,GROUNDS MAINTENANCE,11/08/2014,
070814F,VISTA LANDSCAPE MANAGEMENT LTD,120005,21,24.94,GROUNDS MAINTENANCE,11/08/2014,
070814F,VISTA LANDSCAPE MANAGEMENT LTD,120005,22,25.79,GROUNDS MAINTENANCE,11/08/2014,
070814F,VISTA LANDSCAPE MANAGEMENT LTD,120005,23,29.49,GROUNDS MAINTENANCE,11/08/2014,
070814F,VISTA LANDSCAPE MANAGEMENT LTD,120005,24,23.35,GROUNDS MAINTENANCE,11/08/2014,
070814F,VISTA LANDSCAPE MANAGEMENT LTD,120005,25,23.22,GROUNDS MAINTENANCE,11/08/2014,
070814F,VISTA LANDSCAPE MANAGEMENT LTD,120005,26,20.92,GROUNDS MAINTENANCE,11/08/2014,
070814F,VISTA LANDSCAPE MANAGEMENT LTD,120005,27,91.14,GROUNDS MAINTENANCE,11/08/2014,
070814F,VISTA LANDSCAPE MANAGEMENT LTD,120005,28,96.04,GROUNDS MAINTENANCE,11/08/2014,
070814F,VISTA LANDSCAPE MANAGEMENT LTD,120005,29,24.52,GROUNDS MAINTENANCE,11/08/2014,
070814F,VISTA LANDSCAPE MANAGEMENT LTD,120005,30,280.25,GROUNDS MAINTENANCE,11/08/2014,
070814F,VISTA LANDSCAPE MANAGEMENT LTD,120005,31,24.01,GROUNDS MAINTENANCE,11/08/2014,
070814F,VISTA LANDSCAPE MANAGEMENT LTD,120005,32,73.23,GROUNDS MAINTENANCE,11/08/2014,
070814F,VISTA LANDSCAPE MANAGEMENT LTD,120005,33,22.53,GROUNDS MAINTENANCE,11/08/2014,
070814F,VISTA LANDSCAPE MANAGEMENT LTD,120005,34,24.02,GROUNDS MAINTENANCE,11/08/2014,
070814F,VISTA LANDSCAPE MANAGEMENT LTD,120005,35,23.34,GROUNDS MAINTENANCE,11/08/2014,
070814F,VISTA LANDSCAPE MANAGEMENT LTD,120005,36,90.84,GROUNDS MAINTENANCE,11/08/2014,
070814F,VISTA LANDSCAPE MANAGEMENT LTD,120005,37,132.3,GROUNDS MAINTENANCE,11/08/2014,
070814F,VISTA LANDSCAPE MANAGEMENT LTD,120005,38,751.76,GROUNDS MAINTENANCE,11/08/2014,
070814F,VISTA LANDSCAPE MANAGEMENT LTD,120005,39,72.18,GROUNDS MAINTENANCE,11/08/2014,
070814F,VISTA LANDSCAPE MANAGEMENT LTD,120005,40,64.28,GROUNDS MAINTENANCE,11/08/2014,
070814F,VISTA LANDSCAPE MANAGEMENT LTD,120005,41,29.26,GROUNDS MAINTENANCE,11/08/2014,
290714E,RICOH IMAGING UK LTD,1400133765,1,326.66,OPERATIONAL EQUIP-PURCHASE,11/08/2014,326.66
140765,THAMES WATER UTILITIES LTD====,1414076262F,1,337.09,WATER & SEWERAGE RATES,11/08/2014,337.09
050814H,CITYFLEET NETWORKS LTD,162264/3094,1,"1,407.75",PUBLIC TRANSPORT,11/08/2014,"1,407.75"
050814H,CITYFLEET NETWORKS LTD,169354,1,"2,176.49",PUBLIC TRANSPORT,11/08/2014,"2,176.49"
140765,EDF ENERGY===================,1785675851,1,"1,234.70",ELECTRICITY,11/08/2014,"1,234.70"
140765,EDF ENERGY===================,1785907946,1,"2,042.21",ELECTRICITY,11/08/2014,"2,042.21"
140765,EDF ENERGY===================,1786209547,1,"10,056.16",ELECTRICITY,11/08/2014,"10,056.16"
140765,EDF ENERGY===================,1786484447,1,159.07,ELECTRICITY,11/08/2014,"3,181.41"
140765,EDF ENERGY===================,1786484447,2,"3,022.34",ELECTRICITY,11/08/2014,
140765,EDF ENERGY===================,1793376244,1,"11,324.77",ELECTRICITY,11/08/2014,"11,324.77"
140765,EDF ENERGY===================,1813823639,1,"14,345.27",ELECTRICITY,11/08/2014,"14,345.27"
070814F,CHAIN GANG,20316,1,"1,347.61",POSTAL SERVICES,11/08/2014,"1,347.61"
070814F,CRISPIN HUGHES================,2247,1,324.5,GENERAL,11/08/2014,324.5
050814H,B NOKES CONTRACTS LTD,2293,1,"1,087.00",STRATEGIC (NON CYCLICAL),11/08/2014,"1,087.00"
050814H,ASBESTOS FIRST================,23294/R12510,1,757.65,ASBESTOS,11/08/2014,757.65
050814H,BRISTOL UNIFORMS LTD==========,266883,1,748.42,CLOTHING,11/08/2014,748.42
050814H,BRISTOL UNIFORMS LTD==========,266884,1,"3,933.39",CLOTHING,11/08/2014,"3,933.39"
050814H,BRISTOL UNIFORMS LTD==========,266885,1,"197,575.56",CLOTHING,11/08/2014,"197,575.56"
800041443,ADECCO UK LIMITED=============,26868044,1,704.9,FRS STAFF AGENCY,11/08/2014,704.9
800041444,ADECCO UK LIMITED=============,26868045,1,263.76,FRS STAFF AGENCY,11/08/2014,263.76
800041445,ADECCO UK LIMITED=============,26868046,1,942.2,FRS STAFF AGENCY,11/08/2014,942.2
800041446,ADECCO UK LIMITED=============,26868047,1,612.15,FRS STAFF AGENCY,11/08/2014,612.15
800041447,ADECCO UK LIMITED=============,26868048,1,966.84,FRS STAFF AGENCY,11/08/2014,966.84
800041448,ADECCO UK LIMITED=============,26868049,1,612.15,FRS STAFF AGENCY,11/08/2014,612.15
800041449,ADECCO UK LIMITED=============,26868050,1,439.6,FRS STAFF AGENCY,11/08/2014,439.6
800041451,ADECCO UK LIMITED=============,26868052,1,879.9,FRS STAFF AGENCY,11/08/2014,879.9
800041441,ADECCO UK LIMITED=============,26868053,1,439.6,FRS STAFF AGENCY,11/08/2014,439.6
800041442,ADECCO UK LIMITED=============,26868054,1,269.45,FRS STAFF AGENCY,11/08/2014,269.45
800041454,ADECCO UK LIMITED=============,26868055,1,439.6,FRS STAFF AGENCY,11/08/2014,439.6
800041455,ADECCO UK LIMITED=============,26868056,1,351.96,FRS STAFF AGENCY,11/08/2014,351.96
800041452,ADECCO UK LIMITED=============,26868057,1,771.33,FRS STAFF AGENCY,11/08/2014,771.33
800041453,ADECCO UK LIMITED=============,26868058,1,263.76,FRS STAFF AGENCY,11/08/2014,263.76
800041456,ADECCO UK LIMITED=============,26868059,1,611.8,FRS STAFF AGENCY,11/08/2014,611.8
800041458,ADECCO UK LIMITED=============,26868061,1,380.98,FRS STAFF AGENCY,11/08/2014,380.98
800041481,ADECCO UK LIMITED=============,26868062,1,612.15,FRS STAFF AGENCY,11/08/2014,612.15
800041460,ADECCO UK LIMITED=============,26868063,1,612.15,FRS STAFF AGENCY,11/08/2014,612.15
800041461,ADECCO UK LIMITED=============,26868064,1,612.15,FRS STAFF AGENCY,11/08/2014,612.15
800041464,ADECCO UK LIMITED=============,26868067,1,"1,686.30",FRS STAFF AGENCY,11/08/2014,"1,686.30"
800041465,ADECCO UK LIMITED=============,26868068,1,"1,949.85",FRS STAFF AGENCY,11/08/2014,"1,949.85"
800041466,ADECCO UK LIMITED=============,26868069,1,"1,471.35",FRS STAFF AGENCY,11/08/2014,"1,471.35"
800041467,ADECCO UK LIMITED=============,26868070,1,612.15,FRS STAFF AGENCY,11/08/2014,612.15
800041474,ADECCO UK LIMITED=============,26872075,1,496.5,FRS STAFF AGENCY,11/08/2014,496.5
800041475,ADECCO UK LIMITED=============,26872076,1,"1,212.00",FRS STAFF AGENCY,11/08/2014,"1,212.00"
800041476,ADECCO UK LIMITED=============,26872077,1,"1,131.20",FRS STAFF AGENCY,11/08/2014,"1,131.20"
800041477,ADECCO UK LIMITED=============,26872078,1,"1,131.20",FRS STAFF AGENCY,11/08/2014,"1,131.20"
800041478,ADECCO UK LIMITED=============,26872079,1,"1,131.20",FRS STAFF AGENCY,11/08/2014,"1,131.20"
800041471,ADECCO UK LIMITED=============,26872080,1,922.41,FRS STAFF AGENCY,11/08/2014,922.41
800041472,ADECCO UK LIMITED=============,26872081,1,831,FRS STAFF AGENCY,11/08/2014,831
800041473,ADECCO UK LIMITED=============,26872082,1,922.41,FRS STAFF AGENCY,11/08/2014,922.41
800041479,ADECCO UK LIMITED=============,26872083,1,"1,213.68",FRS STAFF AGENCY,11/08/2014,"1,213.68"
800041480,ADECCO UK LIMITED=============,26872084,1,"1,260.36",FRS STAFF AGENCY,11/08/2014,"1,260.36"
800041468,ADECCO UK LIMITED=============,26872085,1,"1,204.63",FRS STAFF AGENCY,11/08/2014,"1,204.63"
800041469,ADECCO UK LIMITED=============,26872086,1,"1,487.45",FRS STAFF AGENCY,11/08/2014,"1,487.45"
800041470,ADECCO UK LIMITED=============,26872087,1,"1,456.03",FRS STAFF AGENCY,11/08/2014,"1,456.03"
800041132,*H-SQUARED ELECTRONICS LTD,350728,1,172,OPERATIONAL EQUIP-PURCHASE,11/08/2014,344
800041132,*H-SQUARED ELECTRONICS LTD,350728,2,172,OPERATIONAL EQUIP-PURCHASE,11/08/2014,
050814H,W.GILCHRIST & CO,3533,1,"1,005.00",PURCHASE,11/08/2014,"1,050.00"
050814H,W.GILCHRIST & CO,3533,2,45,PURCHASE,11/08/2014,
240714E,JJS SANDWICH BAR/HARD HAT CAFE,363E,1,330,REFRESHMENTS,11/08/2014,330
050814H,MARTIN LAVELL LTD=============,45035,1,442.15,BOOKS & JOURNALS,11/08/2014,442.15
050814H,URS SCOTT WILSON LIMITED,5959866,1,"3,429.30",PROF FEES-MISCELLANEOUS,11/08/2014,"3,973.42"
050814H,URS SCOTT WILSON LIMITED,5959866,2,544.12,PROF FEES-MISCELLANEOUS,11/08/2014,
050814H,URS SCOTT WILSON LIMITED,5960977,1,"5,659.96",PROF FEES-MISCELLANEOUS,11/08/2014,"5,659.96"
140765,THAMES WATER UTILITIES LTD====,65149-96346/,1,287.13,WATER & SEWERAGE RATES,11/08/2014,287.13
050814H,TWO SERVICES LTD==============,77724,1,681.5,CATERING EQUIPMENT,11/08/2014,681.5
050814H,DRAEGER SAFETY UK LIMITED=====,90449983,1,648,PROTECTIVE EQUIPT - PARTS,11/08/2014,"1,135.55"
050814H,DRAEGER SAFETY UK LIMITED=====,90449983,2,324.2,PROTECTIVE EQUIPT - PARTS,11/08/2014,
050814H,DRAEGER SAFETY UK LIMITED=====,90449983,3,148.95,PROTECTIVE EQUIPT - PARTS,11/08/2014,
050814H,DRAEGER SAFETY UK LIMITED=====,90449983,4,14.4,PROTECTIVE EQUIPT - PARTS,11/08/2014,
050814H,ASTEC SURVEYS LIMITED=========,ASL-14-203,1,395,ASBESTOS,11/08/2014,395
050814H,MICROSOFT IRELAND OPS LTD=====,E04000AHQF,1,"18,142.03",MAINTENANCE & SUPPORT,11/08/2014,"18,142.03"
050814H,MICROSOFT IRELAND OPS LTD=====,E04000CGMP,1,514.45,MAINTENANCE & SUPPORT,11/08/2014,514.45
050814H,EDE'S (UK) LTD================,INV13369,1,280,REMOVALS,11/08/2014,280
701607,YOUTH UNITED FOUNDATION,LINCOLNSHIRE SUG'S*,1,"12,500.00",SPONSORSHIP GRANTS & DONATIONS,11/08/2014,"12,500.00"
050814F,COFELY WORKPLACE LIMITED,M130115,1,395.58,STRATEGIC (NON CYCLICAL),11/08/2014,395.58
050814F,COFELY WORKPLACE LIMITED,M130218,1,"1,147.65",STRATEGIC (NON CYCLICAL),11/08/2014,"1,147.65"
050814F,COFELY WORKPLACE LIMITED,M130222,1,302.85,STRATEGIC (NON CYCLICAL),11/08/2014,302.85
050814F,COFELY WORKPLACE LIMITED,M130223,1,302.85,STRATEGIC (NON CYCLICAL),11/08/2014,302.85
050814F,COFELY WORKPLACE LIMITED,M130224,1,302.85,STRATEGIC (NON CYCLICAL),11/08/2014,302.85
050814F,COFELY WORKPLACE LIMITED,M130225,1,302.85,STRATEGIC (NON CYCLICAL),11/08/2014,302.85
050814F,COFELY WORKPLACE LIMITED,M130226,1,302.85,STRATEGIC (NON CYCLICAL),11/08/2014,302.85
050814F,COFELY WORKPLACE LIMITED,M130227,1,302.85,STRATEGIC (NON CYCLICAL),11/08/2014,302.85
050814H,BERENDSEN UK LTD,SN1754362,1,"10,412.92",LAUNDRY,11/08/2014,"10,412.92"
800041139,*XMA LTD,V862610,1,266.49,STATIONERY CONSUMABLES,11/08/2014,266.49
080814H,USEL==========================,21184,1,"3,672.50",PROTECTIVE EQUIPMENT,14/08/2014,"3,820.28"
080814H,USEL==========================,21184,2,147.78,PROTECTIVE EQUIPMENT,14/08/2014,
080814H,USEL==========================,21194,1,"3,672.50",PROTECTIVE EQUIPMENT,14/08/2014,"3,820.28"
080814H,USEL==========================,21194,2,147.78,PROTECTIVE EQUIPMENT,14/08/2014,
110814G,USEL==========================,21229,1,"5,650.00",PROTECTIVE EQUIPMENT,14/08/2014,"5,650.00"
110814G,APPLUS LLT,283,1,"3,750.00",GENERAL,14/08/2014,"3,750.00"
140768,OGILVIE FLEET LTD=============,295103,1,393.25,LEASE CAR CHARGES,14/08/2014,393.25
140768,OGILVIE FLEET LTD=============,295103,2,-34.53,VAT CAR LEASING,14/08/2014,
140768,OGILVIE FLEET LTD=============,295103,3,34.53,LEASE CAR CHARGES,14/08/2014,
110814G,HAYS ACCOUNTANCY & FINANCE====,10004563792,1,899,FRS STAFF AGENCY,14/08/2014,899
080814H,*SPRUE SAFETY PRODUCTS LTD====,1062258,1,"1,112.40",FIRE DETECTORS,14/08/2014,"1,112.40"
110814G,*SPRUE SAFETY PRODUCTS LTD====,1062853,1,"1,112.40",FIRE DETECTORS,14/08/2014,"1,112.40"
080814H,*SPRUE SAFETY PRODUCTS LTD====,1062949,1,"1,236.00",FIRE DETECTORS,14/08/2014,"1,236.00"
080814H,*SPRUE SAFETY PRODUCTS LTD====,1062953,1,988.8,FIRE DETECTORS,14/08/2014,988.8
080814H,*SPRUE SAFETY PRODUCTS LTD====,1062956,1,741.6,FIRE DETECTORS,14/08/2014,741.6
010814H,*SPRUE SAFETY PRODUCTS LTD====,1063618,1,"1,760.00",FIRE DETECTORS,14/08/2014,"1,760.00"
010814E,*SPRUE SAFETY PRODUCTS LTD====,1063619,1,880,FIRE DETECTORS,14/08/2014,880
010814E,*SPRUE SAFETY PRODUCTS LTD====,1063620,1,"1,600.00",FIRE DETECTORS,14/08/2014,"1,600.00"
110814G,*SPRUE SAFETY PRODUCTS LTD====,1063657,1,800,FIRE DETECTORS,14/08/2014,800
110814G,*SPRUE SAFETY PRODUCTS LTD====,1063663,1,440,FIRE DETECTORS,14/08/2014,440
800041215,*JAMES HUNTER (OUTFITTERS) LTD,107774,1,293.13,CLOTHING,14/08/2014,293.13
110814G,B&ES PUBLICATIONS,11009,1,525,BOOKS & JOURNALS,14/08/2014,525
110814G,INFOR (UNITED KINGDOM) LIMITED,11405163-GB04G,1,"1,150.00",MAINTENANCE & SUPPORT,14/08/2014,"1,150.00"
080814H,AUXQUIMIA S.A.================,114451,1,"3,050.00",OPERATIONAL EQUIP-PURCHASE,14/08/2014,"3,415.00"
080814H,AUXQUIMIA S.A.================,114451,2,365,OPERATIONAL EQUIP-PURCHASE,14/08/2014,
110814G,B&ES PUBLICATIONS,12044,1,525,BOOKS & JOURNALS,14/08/2014,525
120814F,SILVERSANDS LIMITED===========,121140,1,950,PURCHASES-SOFTWARE,14/08/2014,950
120814F,CEDAFORCE LTD=================,12119,1,434.96,TACTICAL DAY TO DAY,14/08/2014,434.96
110814G,HOK INTERNATIONAL LTD,13.33034.00-9,1,"2,446.97",PROFESSIONAL SERVICES,14/08/2014,"2,446.97"
110814G,BDO LLP,1305171,1,968,PROFESSIONAL SERVICES,14/08/2014,968
120814F,MAYFAIR'S COACHES LTD=========,13367,1,550,GENERAL,14/08/2014,550
080814H,SAFEGUARD PEST CON. & ENV.LTD,13604,1,744,STRATEGIC (NON CYCLICAL),14/08/2014,744
110814G,DYSLEXIA ACTION,171584,1,"1,480.00",LEARNING SUPPORT,14/08/2014,"1,480.00"
110814G,DRON & WRIGHT=================,17238,1,825,PROFESSIONAL SERVICES,14/08/2014,825
050814H,AIRSERVICES(UK)===============,17282,1,273,REPAIR & MAINTENANCE,14/08/2014,401.2
050814H,AIRSERVICES(UK)===============,17282,2,78,REPAIR & MAINTENANCE,14/08/2014,
050814H,AIRSERVICES(UK)===============,17282,3,42,REPAIR & MAINTENANCE,14/08/2014,
050814H,AIRSERVICES(UK)===============,17282,4,8.2,REPAIR & MAINTENANCE,14/08/2014,
120814F,REGENT OFFICE CARE LTD========,18337,1,194.11,STRATEGIC (CYCLICAL),14/08/2014,"5,758.62"
120814F,REGENT OFFICE CARE LTD========,18337,2,194.11,STRATEGIC (CYCLICAL),14/08/2014,
120814F,REGENT OFFICE CARE LTD========,18337,3,194.11,STRATEGIC (CYCLICAL),14/08/2014,
120814F,REGENT OFFICE CARE LTD========,18337,4,161.76,STRATEGIC (CYCLICAL),14/08/2014,
120814F,REGENT OFFICE CARE LTD========,18337,5,161.76,STRATEGIC (CYCLICAL),14/08/2014,
120814F,REGENT OFFICE CARE LTD========,18337,6,161.76,STRATEGIC (CYCLICAL),14/08/2014,
120814F,REGENT OFFICE CARE LTD========,18337,7,161.76,STRATEGIC (CYCLICAL),14/08/2014,
120814F,REGENT OFFICE CARE LTD========,18337,8,194.11,STRATEGIC (CYCLICAL),14/08/2014,
120814F,REGENT OFFICE CARE LTD========,18337,9,194.11,STRATEGIC (CYCLICAL),14/08/2014,
120814F,REGENT OFFICE CARE LTD========,18337,10,161.76,STRATEGIC (CYCLICAL),14/08/2014,
120814F,REGENT OFFICE CARE LTD========,18337,11,194.11,STRATEGIC (CYCLICAL),14/08/2014,
120814F,REGENT OFFICE CARE LTD========,18337,12,161.76,STRATEGIC (CYCLICAL),14/08/2014,
120814F,REGENT OFFICE CARE LTD========,18337,13,161.76,STRATEGIC (CYCLICAL),14/08/2014,
120814F,REGENT OFFICE CARE LTD========,18337,14,194.11,STRATEGIC (CYCLICAL),14/08/2014,
120814F,REGENT OFFICE CARE LTD========,18337,15,194.11,STRATEGIC (CYCLICAL),14/08/2014,
120814F,REGENT OFFICE CARE LTD========,18337,16,161.76,STRATEGIC (CYCLICAL),14/08/2014,
120814F,REGENT OFFICE CARE LTD========,18337,17,194.11,STRATEGIC (CYCLICAL),14/08/2014,
120814F,REGENT OFFICE CARE LTD========,18337,18,194.11,STRATEGIC (CYCLICAL),14/08/2014,
120814F,REGENT OFFICE CARE LTD========,18337,19,161.76,STRATEGIC (CYCLICAL),14/08/2014,
120814F,REGENT OFFICE CARE LTD========,18337,20,194.11,STRATEGIC (CYCLICAL),14/08/2014,
120814F,REGENT OFFICE CARE LTD========,18337,21,194.11,STRATEGIC (CYCLICAL),14/08/2014,
120814F,REGENT OFFICE CARE LTD========,18337,22,161.76,STRATEGIC (CYCLICAL),14/08/2014,
120814F,REGENT OFFICE CARE LTD========,18337,23,194.11,STRATEGIC (CYCLICAL),14/08/2014,
120814F,REGENT OFFICE CARE LTD========,18337,24,194.11,STRATEGIC (CYCLICAL),14/08/2014,
120814F,REGENT OFFICE CARE LTD========,18337,25,161.76,STRATEGIC (CYCLICAL),14/08/2014,
120814F,REGENT OFFICE CARE LTD========,18337,26,161.76,STRATEGIC (CYCLICAL),14/08/2014,
120814F,REGENT OFFICE CARE LTD========,18337,27,161.76,STRATEGIC (CYCLICAL),14/08/2014,
120814F,REGENT OFFICE CARE LTD========,18337,28,194.11,STRATEGIC (CYCLICAL),14/08/2014,
120814F,REGENT OFFICE CARE LTD========,18337,29,161.76,STRATEGIC (CYCLICAL),14/08/2014,
120814F,REGENT OFFICE CARE LTD========,18337,30,194.11,STRATEGIC (CYCLICAL),14/08/2014,
120814F,REGENT OFFICE CARE LTD========,18337,31,194.11,STRATEGIC (CYCLICAL),14/08/2014,
120814F,REGENT OFFICE CARE LTD========,18337,32,194.11,STRATEGIC (CYCLICAL),14/08/2014,
110814G,MITIE TECH FACILITIES MNGT LT,210910607,1,"20,139.29",DEVELOPMENT  EXPENSES-CONTRACT,14/08/2014,"104,637.41"
110814G,MITIE TECH FACILITIES MNGT LT,210910607,2,697.34,DEVELOPMENT  EXPENSES-CONTRACT,14/08/2014,
110814G,MITIE TECH FACILITIES MNGT LT,210910607,3,"16,649.08",DEVELOPMENT  EXPENSES-CONTRACT,14/08/2014,
110814G,MITIE TECH FACILITIES MNGT LT,210910607,4,"3,746.40",DEVELOPMENT  EXPENSES-CONTRACT,14/08/2014,
110814G,MITIE TECH FACILITIES MNGT LT,210910607,5,"17,994.27",DEVELOPMENT  EXPENSES-CONTRACT,14/08/2014,
110814G,MITIE TECH FACILITIES MNGT LT,210910607,6,"3,137.17",DEVELOPMENT  EXPENSES-CONTRACT,14/08/2014,
110814G,MITIE TECH FACILITIES MNGT LT,210910607,7,"2,991.72",DEVELOPMENT  EXPENSES-CONTRACT,14/08/2014,
110814G,MITIE TECH FACILITIES MNGT LT,210910607,8,"1,955.14",DEVELOPMENT  EXPENSES-CONTRACT,14/08/2014,
110814G,MITIE TECH FACILITIES MNGT LT,210910607,9,615.29,DEVELOPMENT  EXPENSES-CONTRACT,14/08/2014,
110814G,MITIE TECH FACILITIES MNGT LT,210910607,10,"1,120.17",DEVELOPMENT  EXPENSES-CONTRACT,14/08/2014,
110814G,MITIE TECH FACILITIES MNGT LT,210910607,11,"10,546.92",DEVELOPMENT  EXPENSES-CONTRACT,14/08/2014,
110814G,MITIE TECH FACILITIES MNGT LT,210910607,12,"1,840.63",DEVELOPMENT  EXPENSES-CONTRACT,14/08/2014,
110814G,MITIE TECH FACILITIES MNGT LT,210910607,13,"12,091.70",DEVELOPMENT  EXPENSES-CONTRACT,14/08/2014,
110814G,MITIE TECH FACILITIES MNGT LT,210910607,14,"11,112.29",DEVELOPMENT  EXPENSES-CONTRACT,14/08/2014,
080814H,B NOKES CONTRACTS LTD,2314,1,"1,932.50",STRATEGIC (NON CYCLICAL),14/08/2014,"1,932.50"
080814H,ARKAS LIMITED=================,25398,1,214,TACTICAL DAY TO DAY,14/08/2014,872.5
080814H,ARKAS LIMITED=================,25398,2,197.5,STRATEGIC (CYCLICAL),14/08/2014,
080814H,ARKAS LIMITED=================,25398,3,214,STRATEGIC (CYCLICAL),14/08/2014,
080814H,ARKAS LIMITED=================,25398,4,247,TACTICAL DAY TO DAY,14/08/2014,
050814H,RS COMPONENTS LTD=============,276862574,1,389.44,DEVELOPMENT  EXPENSES-CONTRACT,14/08/2014,389.44
110814G,STORM TECHNOLOGIES============,283950,1,411.61,ACQUISITIONS,14/08/2014,411.61
800041110,*BANNER BUSINESS SUPPLIES LTD=,28522359,1,10,STATIONERY CONSUMABLES,14/08/2014,754.52
800041110,*BANNER BUSINESS SUPPLIES LTD=,28522359,2,273.4,STATIONERY CONSUMABLES,14/08/2014,
800041110,*BANNER BUSINESS SUPPLIES LTD=,28522359,3,41,STATIONERY CONSUMABLES,14/08/2014,
800041110,*BANNER BUSINESS SUPPLIES LTD=,28522359,4,50,STATIONERY CONSUMABLES,14/08/2014,
800041110,*BANNER BUSINESS SUPPLIES LTD=,28522359,5,53.6,STATIONERY CONSUMABLES,14/08/2014,
800041110,*BANNER BUSINESS SUPPLIES LTD=,28522359,6,26.8,STATIONERY CONSUMABLES,14/08/2014,
800041110,*BANNER BUSINESS SUPPLIES LTD=,28522359,7,19.04,STATIONERY CONSUMABLES,14/08/2014,
800041110,*BANNER BUSINESS SUPPLIES LTD=,28522359,8,153.48,STATIONERY CONSUMABLES,14/08/2014,
800041110,*BANNER BUSINESS SUPPLIES LTD=,28522359,9,127.2,STATIONERY CONSUMABLES,14/08/2014,
120814F,FINANCIAL REPORTING COUNCIL,30013644,1,"1,040.00",SUBSCRIPTIONS,14/08/2014,"1,040.00"
110814G,BEAUMONT CONSTRUCTION SERVICES,3084,1,"2,257.78",STRATEGIC (NON CYCLICAL),14/08/2014,"2,257.78"
110814G,PLANTFORCE====================,33134,1,603,TACTICAL DAY TO DAY,14/08/2014,603
010814H,HUNTERS CONTRACTS LIMITED,346857,1,668.6,OFFICE FURNITURE,14/08/2014,668.6
050814H,W.GILCHRIST & CO,3541,1,359.16,PROTECTIVE EQUIPT - PARTS,14/08/2014,369.16
050814H,W.GILCHRIST & CO,3541,2,10,REPAIR & MAINTENANCE,14/08/2014,
140767,REACTIVE ROOFING (UK) LIMITED,4089,1,"1,418.40",STRATEGIC (NON CYCLICAL),14/08/2014,"2,070.40"
140767,REACTIVE ROOFING (UK) LIMITED,4089,2,652,STRATEGIC (NON CYCLICAL),14/08/2014,
110814G,KNIGHTON CLEANING SERVICES LTD,40891,1,"1,406.59",HYGIENE,14/08/2014,"1,406.59"
140767,REACTIVE ROOFING (UK) LIMITED,4091,1,"2,052.42",STRATEGIC (NON CYCLICAL),14/08/2014,"3,030.42"
140767,REACTIVE ROOFING (UK) LIMITED,4091,2,978,STRATEGIC (NON CYCLICAL),14/08/2014,
110814G,FOCUS & VISION TECHNOLOGY LTD,41503,1,"1,364.90",MEDICAL EXPENSES CONTRACT,14/08/2014,"1,364.90"
120814F,FOCUS & VISION TECHNOLOGY LTD,41555,1,"1,096.80",MEDICAL EXPENSES CONTRACT,14/08/2014,"1,096.80"
120814F,FOCUS & VISION TECHNOLOGY LTD,41573,1,717.18,MEDICAL EXPENSES CONTRACT,14/08/2014,717.18
120814F,KNIGHTON CLEANING SERVICES LTD,41710,1,991.62,GENERAL CLEANS,14/08/2014,"69,379.43"
120814F,KNIGHTON CLEANING SERVICES LTD,41710,2,"1,093.94",GENERAL CLEANS,14/08/2014,
120814F,KNIGHTON CLEANING SERVICES LTD,41710,3,"1,025.14",GENERAL CLEANS,14/08/2014,
120814F,KNIGHTON CLEANING SERVICES LTD,41710,4,"1,235.07",GENERAL CLEANS,14/08/2014,
120814F,KNIGHTON CLEANING SERVICES LTD,41710,5,600.66,GENERAL CLEANS,14/08/2014,
120814F,KNIGHTON CLEANING SERVICES LTD,41710,6,"1,378.14",GENERAL CLEANS,14/08/2014,
120814F,KNIGHTON CLEANING SERVICES LTD,41710,7,"1,997.23",GENERAL CLEANS,14/08/2014,
120814F,KNIGHTON CLEANING SERVICES LTD,41710,8,"2,056.77",GENERAL CLEANS,14/08/2014,
120814F,KNIGHTON CLEANING SERVICES LTD,41710,9,"3,221.02",GENERAL CLEANS,14/08/2014,
120814F,KNIGHTON CLEANING SERVICES LTD,41710,10,"1,014.31",GENERAL CLEANS,14/08/2014,
120814F,KNIGHTON CLEANING SERVICES LTD,41710,11,897.76,GENERAL CLEANS,14/08/2014,
120814F,KNIGHTON CLEANING SERVICES LTD,41710,12,"1,230.40",GENERAL CLEANS,14/08/2014,
120814F,KNIGHTON CLEANING SERVICES LTD,41710,13,"1,021.91",GENERAL CLEANS,14/08/2014,
120814F,KNIGHTON CLEANING SERVICES LTD,41710,14,"1,067.57",GENERAL CLEANS,14/08/2014,
120814F,KNIGHTON CLEANING SERVICES LTD,41710,15,"1,092.48",GENERAL CLEANS,14/08/2014,
120814F,KNIGHTON CLEANING SERVICES LTD,41710,16,"1,475.68",GENERAL CLEANS,14/08/2014,
120814F,KNIGHTON CLEANING SERVICES LTD,41710,17,"1,237.63",GENERAL CLEANS,14/08/2014,
120814F,KNIGHTON CLEANING SERVICES LTD,41710,18,588.38,GENERAL CLEANS,14/08/2014,
120814F,KNIGHTON CLEANING SERVICES LTD,41710,19,"12,339.17",GENERAL CLEANS,14/08/2014,
120814F,KNIGHTON CLEANING SERVICES LTD,41710,20,"1,191.21",GENERAL CLEANS,14/08/2014,
120814F,KNIGHTON CLEANING SERVICES LTD,41710,21,396.82,GENERAL CLEANS,14/08/2014,
120814F,KNIGHTON CLEANING SERVICES LTD,41710,22,"1,507.79",GENERAL CLEANS,14/08/2014,
120814F,KNIGHTON CLEANING SERVICES LTD,41710,23,"3,162.03",GENERAL CLEANS,14/08/2014,
120814F,KNIGHTON CLEANING SERVICES LTD,41710,24,633.17,GENERAL CLEANS,14/08/2014,
120814F,KNIGHTON CLEANING SERVICES LTD,41710,25,"1,725.77",GENERAL CLEANS,14/08/2014,
120814F,KNIGHTON CLEANING SERVICES LTD,41710,26,852.78,GENERAL CLEANS,14/08/2014,
120814F,KNIGHTON CLEANING SERVICES LTD,41710,27,"1,301.90",GENERAL CLEANS,14/08/2014,
120814F,KNIGHTON CLEANING SERVICES LTD,41710,28,"1,918.39",GENERAL CLEANS,14/08/2014,
120814F,KNIGHTON CLEANING SERVICES LTD,41710,29,"1,240.41",GENERAL CLEANS,14/08/2014,
120814F,KNIGHTON CLEANING SERVICES LTD,41710,30,900.06,GENERAL CLEANS,14/08/2014,
120814F,KNIGHTON CLEANING SERVICES LTD,41710,31,"1,201.95",GENERAL CLEANS,14/08/2014,
120814F,KNIGHTON CLEANING SERVICES LTD,41710,32,"1,225.16",GENERAL CLEANS,14/08/2014,
120814F,KNIGHTON CLEANING SERVICES LTD,41710,33,"5,266.38",GENERAL CLEANS,14/08/2014,
120814F,KNIGHTON CLEANING SERVICES LTD,41710,34,731.29,GENERAL CLEANS,14/08/2014,
120814F,KNIGHTON CLEANING SERVICES LTD,41710,35,913.03,GENERAL CLEANS,14/08/2014,
120814F,KNIGHTON CLEANING SERVICES LTD,41710,36,"1,838.08",GENERAL CLEANS,14/08/2014,
120814F,KNIGHTON CLEANING SERVICES LTD,41710,37,"1,071.46",GENERAL CLEANS,14/08/2014,
120814F,KNIGHTON CLEANING SERVICES LTD,41710,38,811.49,GENERAL CLEANS,14/08/2014,
120814F,KNIGHTON CLEANING SERVICES LTD,41710,39,"1,615.01",GENERAL CLEANS,14/08/2014,
120814F,KNIGHTON CLEANING SERVICES LTD,41710,40,"1,312.98",GENERAL CLEANS,14/08/2014,
120814F,KNIGHTON CLEANING SERVICES LTD,41710,41,"1,307.85",GENERAL CLEANS,14/08/2014,
120814F,KNIGHTON CLEANING SERVICES LTD,41710,42,"1,210.26",GENERAL CLEANS,14/08/2014,
120814F,KNIGHTON CLEANING SERVICES LTD,41710,43,479.28,GENERAL CLEANS,14/08/2014,
110814G,KNIGHTON CLEANING SERVICES LTD,41772,1,"1,134.41",HYGIENE,14/08/2014,"1,134.41"
120814F,KNIGHTON CLEANING SERVICES LTD,41905,1,"2,179.32",GENERAL CLEANS,14/08/2014,"78,311.58"
120814F,KNIGHTON CLEANING SERVICES LTD,41905,2,"2,016.80",GENERAL CLEANS,14/08/2014,
120814F,KNIGHTON CLEANING SERVICES LTD,41905,3,"1,424.19",GENERAL CLEANS,14/08/2014,
120814F,KNIGHTON CLEANING SERVICES LTD,41905,4,"1,150.68",GENERAL CLEANS,14/08/2014,
120814F,KNIGHTON CLEANING SERVICES LTD,41905,5,"1,202.80",GENERAL CLEANS,14/08/2014,
120814F,KNIGHTON CLEANING SERVICES LTD,41905,6,"1,064.57",GENERAL CLEANS,14/08/2014,
120814F,KNIGHTON CLEANING SERVICES LTD,41905,7,756.41,GENERAL CLEANS,14/08/2014,
120814F,KNIGHTON CLEANING SERVICES LTD,41905,8,"1,209.50",GENERAL CLEANS,14/08/2014,
120814F,KNIGHTON CLEANING SERVICES LTD,41905,9,"1,259.62",GENERAL CLEANS,14/08/2014,
120814F,KNIGHTON CLEANING SERVICES LTD,41905,10,"1,074.37",GENERAL CLEANS,14/08/2014,
120814F,KNIGHTON CLEANING SERVICES LTD,41905,11,"1,895.33",GENERAL CLEANS,14/08/2014,
120814F,KNIGHTON CLEANING SERVICES LTD,41905,12,"2,253.31",GENERAL CLEANS,14/08/2014,
120814F,KNIGHTON CLEANING SERVICES LTD,41905,13,761.25,GENERAL CLEANS,14/08/2014,
120814F,KNIGHTON CLEANING SERVICES LTD,41905,14,"1,443.83",GENERAL CLEANS,14/08/2014,
120814F,KNIGHTON CLEANING SERVICES LTD,41905,15,760.66,GENERAL CLEANS,14/08/2014,
120814F,KNIGHTON CLEANING SERVICES LTD,41905,16,"1,512.68",GENERAL CLEANS,14/08/2014,
120814F,KNIGHTON CLEANING SERVICES LTD,41905,17,"1,746.68",GENERAL CLEANS,14/08/2014,
120814F,KNIGHTON CLEANING SERVICES LTD,41905,18,776.01,GENERAL CLEANS,14/08/2014,
120814F,KNIGHTON CLEANING SERVICES LTD,41905,19,"2,295.39",GENERAL CLEANS,14/08/2014,
120814F,KNIGHTON CLEANING SERVICES LTD,41905,20,"1,820.81",GENERAL CLEANS,14/08/2014,
120814F,KNIGHTON CLEANING SERVICES LTD,41905,21,929,GENERAL CLEANS,14/08/2014,
120814F,KNIGHTON CLEANING SERVICES LTD,41905,22,930.22,GENERAL CLEANS,14/08/2014,
120814F,KNIGHTON CLEANING SERVICES LTD,41905,23,"1,079.28",GENERAL CLEANS,14/08/2014,
120814F,KNIGHTON CLEANING SERVICES LTD,41905,24,"1,762.12",GENERAL CLEANS,14/08/2014,
120814F,KNIGHTON CLEANING SERVICES LTD,41905,25,"1,047.27",GENERAL CLEANS,14/08/2014,
120814F,KNIGHTON CLEANING SERVICES LTD,41905,26,821.3,GENERAL CLEANS,14/08/2014,
120814F,KNIGHTON CLEANING SERVICES LTD,41905,27,967.95,GENERAL CLEANS,14/08/2014,
120814F,KNIGHTON CLEANING SERVICES LTD,41905,28,"1,331.26",GENERAL CLEANS,14/08/2014,
120814F,KNIGHTON CLEANING SERVICES LTD,41905,29,769.15,GENERAL CLEANS,14/08/2014,
120814F,KNIGHTON CLEANING SERVICES LTD,41905,30,"1,552.66",GENERAL CLEANS,14/08/2014,
120814F,KNIGHTON CLEANING SERVICES LTD,41905,31,"1,269.14",GENERAL CLEANS,14/08/2014,
120814F,KNIGHTON CLEANING SERVICES LTD,41905,32,"1,390.96",GENERAL CLEANS,14/08/2014,
120814F,KNIGHTON CLEANING SERVICES LTD,41905,33,781.29,GENERAL CLEANS,14/08/2014,
120814F,KNIGHTON CLEANING SERVICES LTD,41905,34,936.38,GENERAL CLEANS,14/08/2014,
120814F,KNIGHTON CLEANING SERVICES LTD,41905,35,955.47,GENERAL CLEANS,14/08/2014,
120814F,KNIGHTON CLEANING SERVICES LTD,41905,36,696.05,GENERAL CLEANS,14/08/2014,
120814F,KNIGHTON CLEANING SERVICES LTD,41905,37,"1,509.43",GENERAL CLEANS,14/08/2014,
120814F,KNIGHTON CLEANING SERVICES LTD,41905,38,"1,333.12",GENERAL CLEANS,14/08/2014,
120814F,KNIGHTON CLEANING SERVICES LTD,41905,39,948.17,GENERAL CLEANS,14/08/2014,
120814F,KNIGHTON CLEANING SERVICES LTD,41905,40,"2,789.42",GENERAL CLEANS,14/08/2014,
120814F,KNIGHTON CLEANING SERVICES LTD,41905,41,"1,031.38",GENERAL CLEANS,14/08/2014,
120814F,KNIGHTON CLEANING SERVICES LTD,41905,42,"1,077.95",GENERAL CLEANS,14/08/2014,
120814F,KNIGHTON CLEANING SERVICES LTD,41905,43,"1,043.41",GENERAL CLEANS,14/08/2014,
120814F,KNIGHTON CLEANING SERVICES LTD,41905,44,946.71,GENERAL CLEANS,14/08/2014,
120814F,KNIGHTON CLEANING SERVICES LTD,41905,45,"1,292.11",GENERAL CLEANS,14/08/2014,
120814F,KNIGHTON CLEANING SERVICES LTD,41905,46,"2,271.32",GENERAL CLEANS,14/08/2014,
120814F,KNIGHTON CLEANING SERVICES LTD,41905,47,"1,852.56",GENERAL CLEANS,14/08/2014,
120814F,KNIGHTON CLEANING SERVICES LTD,41905,48,"1,041.22",GENERAL CLEANS,14/08/2014,
120814F,KNIGHTON CLEANING SERVICES LTD,41905,49,686.54,GENERAL CLEANS,14/08/2014,
120814F,KNIGHTON CLEANING SERVICES LTD,41905,50,678.04,GENERAL CLEANS,14/08/2014,
120814F,KNIGHTON CLEANING SERVICES LTD,41905,51,788.06,GENERAL CLEANS,14/08/2014,
120814F,KNIGHTON CLEANING SERVICES LTD,41905,52,"2,314.55",GENERAL CLEANS,14/08/2014,
120814F,KNIGHTON CLEANING SERVICES LTD,41905,53,916.7,GENERAL CLEANS,14/08/2014,
120814F,KNIGHTON CLEANING SERVICES LTD,41905,54,"1,587.64",GENERAL CLEANS,14/08/2014,
120814F,KNIGHTON CLEANING SERVICES LTD,41905,55,"2,615.05",GENERAL CLEANS,14/08/2014,
120814F,KNIGHTON CLEANING SERVICES LTD,41905,56,766.46,GENERAL CLEANS,14/08/2014,
120814F,KNIGHTON CLEANING SERVICES LTD,41905,57,783.17,GENERAL CLEANS,14/08/2014,
120814F,KNIGHTON CLEANING SERVICES LTD,41905,58,13,GENERAL CLEANS,14/08/2014,
120814F,KNIGHTON CLEANING SERVICES LTD,41905,59,"1,064.91",GENERAL CLEANS,14/08/2014,
120814F,KNIGHTON CLEANING SERVICES LTD,41905,60,808.7,GENERAL CLEANS,14/08/2014,
120814F,KNIGHTON CLEANING SERVICES LTD,41905,61,"1,051.51",GENERAL CLEANS,14/08/2014,
120814F,KNIGHTON CLEANING SERVICES LTD,41905,62,"1,276.74",GENERAL CLEANS,14/08/2014,
140770,MR JACK FERRO=================,419451,1,800,COUNSELS FEES,14/08/2014,800
140770,MR SHAUN FERRIS,419611,1,"1,000.00",COUNSELS FEES,14/08/2014,"1,000.00"
010814E,MITIE SECURITY (LONDON) LTD===,45/561439,1,"8,541.12",PREMISES SECURITY,14/08/2014,"8,541.12"
010814E,MITIE SECURITY (LONDON) LTD===,45/561443,1,"17,082.24",PREMISES SECURITY,14/08/2014,"17,082.24"
120814F,SPORTSAFE UK LTD==============,460519,1,295,GYM EQUIPMENT,14/08/2014,470.45
120814F,SPORTSAFE UK LTD==============,460519,2,92,GYM EQUIPMENT,14/08/2014,
120814F,SPORTSAFE UK LTD==============,460519,3,51.44,GYM EQUIPMENT,14/08/2014,
120814F,SPORTSAFE UK LTD==============,460519,4,32.01,GYM EQUIPMENT,14/08/2014,
120814F,SPORTSAFE UK LTD==============,460521,1,288.72,GYM EQUIPMENT,14/08/2014,288.72
120814F,SPORTSAFE UK LTD==============,460522,1,290,GYM EQUIPMENT,14/08/2014,290
120814F,SPORTSAFE UK LTD==============,460523,1,260,GYM EQUIPMENT,14/08/2014,260
120814F,SPORTSAFE UK LTD==============,460526,1,285,GYM EQUIPMENT,14/08/2014,377
120814F,SPORTSAFE UK LTD==============,460526,2,92,GYM EQUIPMENT,14/08/2014,
120814F,SPORTSAFE UK LTD==============,460527,1,295,GYM EQUIPMENT,14/08/2014,295
120814F,SPORTSAFE UK LTD==============,460528,1,119.61,GYM EQUIPMENT,14/08/2014,309.6
120814F,SPORTSAFE UK LTD==============,460528,2,170.84,GYM EQUIPMENT,14/08/2014,
120814F,SPORTSAFE UK LTD==============,460528,3,11.9,GYM EQUIPMENT,14/08/2014,
120814F,SPORTSAFE UK LTD==============,460528,4,7.25,GYM EQUIPMENT,14/08/2014,
120814F,SPORTSAFE UK LTD==============,460529,1,12.89,GYM EQUIPMENT,14/08/2014,634.08
120814F,SPORTSAFE UK LTD==============,460529,2,13.02,GYM EQUIPMENT,14/08/2014,
120814F,SPORTSAFE UK LTD==============,460529,3,103.88,GYM EQUIPMENT,14/08/2014,
120814F,SPORTSAFE UK LTD==============,460529,4,73.94,GYM EQUIPMENT,14/08/2014,
120814F,SPORTSAFE UK LTD==============,460529,5,41.34,GYM EQUIPMENT,14/08/2014,
120814F,SPORTSAFE UK LTD==============,460529,6,140.5,GYM EQUIPMENT,14/08/2014,
120814F,SPORTSAFE UK LTD==============,460529,7,29.95,GYM EQUIPMENT,14/08/2014,
120814F,SPORTSAFE UK LTD==============,460529,8,218.56,GYM EQUIPMENT,14/08/2014,
120814F,SPORTSAFE UK LTD==============,460530,1,290,GYM EQUIPMENT,14/08/2014,290
120814F,THE MARSTAN PRESS LTD========,48202,1,419,PRINTING,14/08/2014,419
080814H,BNOS MEDITECH=================,5194,1,41.25,REPAIR & MAINTENANCE,14/08/2014,637
080814H,BNOS MEDITECH=================,5194,2,41.25,REPAIR & MAINTENANCE,14/08/2014,
080814H,BNOS MEDITECH=================,5194,3,99.5,REPAIR & MAINTENANCE,14/08/2014,
080814H,BNOS MEDITECH=================,5194,4,47,REPAIR & MAINTENANCE,14/08/2014,
080814H,BNOS MEDITECH=================,5194,5,99.5,REPAIR & MAINTENANCE,14/08/2014,
080814H,BNOS MEDITECH=================,5194,6,47,REPAIR & MAINTENANCE,14/08/2014,
080814H,BNOS MEDITECH=================,5194,7,40,REPAIR & MAINTENANCE,14/08/2014,
080814H,BNOS MEDITECH=================,5194,8,47,REPAIR & MAINTENANCE,14/08/2014,
080814H,BNOS MEDITECH=================,5194,9,174.5,REPAIR & MAINTENANCE,14/08/2014,
120814F,CORE SURVEYSLTD===============,5729,1,270,ASBESTOS,14/08/2014,270
120814F,CORE SURVEYSLTD===============,5731,1,170,ASBESTOS,14/08/2014,510
120814F,CORE SURVEYSLTD===============,5731,2,170,ASBESTOS,14/08/2014,
120814F,CORE SURVEYSLTD===============,5731,3,170,ASBESTOS,14/08/2014,
120814F,CORE SURVEYSLTD===============,5738,1,190,ASBESTOS,14/08/2014,360
120814F,CORE SURVEYSLTD===============,5738,2,170,ASBESTOS,14/08/2014,
800051867,*OCS GROUP UK LTD,5800004792,1,"3,968.25",REFRESHMENTS,14/08/2014,"3,968.25"
110814G,URS SCOTT WILSON LIMITED,5935331,1,"1,084.03",PROF FEES-MISCELLANEOUS,14/08/2014,"1,476.52"
110814G,URS SCOTT WILSON LIMITED,5935331,2,392.49,PROF FEES-MISCELLANEOUS,14/08/2014,
030714F,TOYOTA MATERIAL HANDLING UK LT,610125300,1,909.99,PURCHASE,14/08/2014,909.99
080814H,GAS & AIR SERVICES (UK)=======,6435,1,"1,012.26",REPAIR & MAINTENANCE,14/08/2014,"2,120.37"
080814H,GAS & AIR SERVICES (UK)=======,6435,2,714.66,REPAIR & MAINTENANCE,14/08/2014,
080814H,GAS & AIR SERVICES (UK)=======,6435,3,20,REPAIR & MAINTENANCE,14/08/2014,
080814H,GAS & AIR SERVICES (UK)=======,6435,4,373.45,REPAIR & MAINTENANCE,14/08/2014,
080814H,GAS & AIR SERVICES (UK)=======,6462,1,"1,321.42",REPAIR & MAINTENANCE,14/08/2014,"1,321.42"
050814H,MERLIN ELECTRICAL SERVICES LTD,7068,1,"2,594.63",DAY TO DAY MINOR IMPS,14/08/2014,"2,594.63"
080814H,FIRMIN & SONS LTD=============,73544,1,"1,333.50",UNIFORMS - POMS,14/08/2014,"1,333.50"
080814H,*SP SERVICES,742258,1,"1,026.00",HYGIENE,14/08/2014,"1,026.00"
120814F,CANON (UK) LTD===============,770467868,1,390.85,OFFICE EQUIPMENT,14/08/2014,390.85
120814F,OPERATIONAL RESEARCH IN HEALTH,79Y/LFB1/47,1,"8,835.00",CONSULTANTS,14/08/2014,"8,835.00"
110814G,NEXUS PROPERTY SERVICES,80188,1,"2,694.02",GENERAL,14/08/2014,"2,694.02"
140772,THOMPSONS SOLICITORS==========,8499,2,"2,000.00",CLAIMANT COSTS AGREED,14/08/2014,"2,000.00"
080814H,DRAEGER SAFETY UK LIMITED=====,90451947,1,177.3,PROTECTIVE EQUIPT - PARTS,14/08/2014,"2,293.65"
080814H,DRAEGER SAFETY UK LIMITED=====,90451947,2,362.5,PROTECTIVE EQUIPT - PARTS,14/08/2014,
080814H,DRAEGER SAFETY UK LIMITED=====,90451947,3,425.55,PROTECTIVE EQUIPT - PARTS,14/08/2014,
080814H,DRAEGER SAFETY UK LIMITED=====,90451947,4,16.6,PROTECTIVE EQUIPT - PARTS,14/08/2014,
080814H,DRAEGER SAFETY UK LIMITED=====,90451947,5,213.9,PROTECTIVE EQUIPT - PARTS,14/08/2014,
080814H,DRAEGER SAFETY UK LIMITED=====,90451947,6,226,PROTECTIVE EQUIPT - PARTS,14/08/2014,
080814H,DRAEGER SAFETY UK LIMITED=====,90451947,7,466.2,PROTECTIVE EQUIPT - PARTS,14/08/2014,
080814H,DRAEGER SAFETY UK LIMITED=====,90451947,8,25.4,PROTECTIVE EQUIPT - PARTS,14/08/2014,
080814H,DRAEGER SAFETY UK LIMITED=====,90451947,9,380.2,PROTECTIVE EQUIPT - PARTS,14/08/2014,
080814H,DRAEGER SAFETY UK LIMITED=====,90451955,1,351,REPAIR & MAINTENANCE,14/08/2014,351
110814G,DRAEGER SAFETY UK LIMITED=====,90452428,1,543.75,PROTECTIVE EQUIPT - PARTS,14/08/2014,"1,229.35"
110814G,DRAEGER SAFETY UK LIMITED=====,90452428,2,567.4,PROTECTIVE EQUIPT - PARTS,14/08/2014,
110814G,DRAEGER SAFETY UK LIMITED=====,90452428,3,118.2,PROTECTIVE EQUIPT - PARTS,14/08/2014,
080814H,DRAEGER SAFETY UK LIMITED=====,90452909,1,339,PROTECTIVE EQUIPT - PARTS,14/08/2014,339
110814G,TSI INSTRUMENTS LTD===========,90657102,1,455,REPAIR & MAINTENANCE,14/08/2014,455
140772,THOMPSONS=====================,9508,1,"2,696.56",CLAIMANT COSTS AGREED,14/08/2014,"2,696.56"
080814H,THAMES WATER UTILITIES LTD====,CBA1406574,1,"1,185.00",CURRENT HYDRANT COSTS,14/08/2014,"1,185.00"
080814H,THAMES WATER UTILITIES LTD====,CBA1406577,1,"1,185.00",CURRENT HYDRANT COSTS,14/08/2014,"1,185.00"
080814H,THAMES WATER UTILITIES LTD====,CBA1406578,1,"1,185.00",CURRENT HYDRANT COSTS,14/08/2014,"1,185.00"
080814H,THAMES WATER UTILITIES LTD====,CBA1406583,1,"1,185.00",CURRENT HYDRANT COSTS,14/08/2014,"1,185.00"
080814H,THAMES WATER UTILITIES LTD====,CBA1406598,1,"1,185.00",CURRENT HYDRANT COSTS,14/08/2014,"1,185.00"
110814G,E&S B DAVIS LTD,DAV/51191,1,"1,080.00",OPERATIONAL EQUIP-PURCHASE,14/08/2014,"1,080.00"
110814G,E&S B DAVIS LTD,DAV/51313,1,"1,080.00",OPERATIONAL EQUIP-PURCHASE,14/08/2014,"1,080.00"
120814F,E&S B DAVIS LTD,DAV/51656,1,"1,080.00",OPERATIONAL EQUIP-PURCHASE,14/08/2014,"1,080.00"
800051582,ALLSTAR BUSINESS SOLUTIONS LTD,E2003279309,1,796.82,FUEL,14/08/2014,"23,458.11"
800051582,ALLSTAR BUSINESS SOLUTIONS LTD,E2003279309,2,556.09,FUEL,14/08/2014,
800051582,ALLSTAR BUSINESS SOLUTIONS LTD,E2003279309,3,551.5,FUEL,14/08/2014,
800051582,ALLSTAR BUSINESS SOLUTIONS LTD,E2003279309,4,543.04,FUEL,14/08/2014,
800051582,ALLSTAR BUSINESS SOLUTIONS LTD,E2003279309,5,536.04,FUEL,14/08/2014,
800051582,ALLSTAR BUSINESS SOLUTIONS LTD,E2003279309,6,510.49,FUEL,14/08/2014,
800051582,ALLSTAR BUSINESS SOLUTIONS LTD,E2003279309,7,491.19,FUEL,14/08/2014,
800051582,ALLSTAR BUSINESS SOLUTIONS LTD,E2003279309,8,472.64,FUEL,14/08/2014,
800051582,ALLSTAR BUSINESS SOLUTIONS LTD,E2003279309,9,436.42,FUEL,14/08/2014,
800051582,ALLSTAR BUSINESS SOLUTIONS LTD,E2003279309,10,424.29,FUEL,14/08/2014,
800051582,ALLSTAR BUSINESS SOLUTIONS LTD,E2003279309,11,415.45,FUEL,14/08/2014,
800051582,ALLSTAR BUSINESS SOLUTIONS LTD,E2003279309,12,399.83,FUEL,14/08/2014,
800051582,ALLSTAR BUSINESS SOLUTIONS LTD,E2003279309,13,398.11,FUEL,14/08/2014,
800051582,ALLSTAR BUSINESS SOLUTIONS LTD,E2003279309,14,395.36,FUEL,14/08/2014,
800051582,ALLSTAR BUSINESS SOLUTIONS LTD,E2003279309,15,386.71,FUEL,14/08/2014,
800051582,ALLSTAR BUSINESS SOLUTIONS LTD,E2003279309,16,384.27,FUEL,14/08/2014,
800051582,ALLSTAR BUSINESS SOLUTIONS LTD,E2003279309,17,378.04,FUEL,14/08/2014,
800051582,ALLSTAR BUSINESS SOLUTIONS LTD,E2003279309,18,377.91,FUEL,14/08/2014,
800051582,ALLSTAR BUSINESS SOLUTIONS LTD,E2003279309,19,368.59,FUEL,14/08/2014,
800051582,ALLSTAR BUSINESS SOLUTIONS LTD,E2003279309,20,357.29,FUEL,14/08/2014,
800051582,ALLSTAR BUSINESS SOLUTIONS LTD,E2003279309,21,355.53,FUEL,14/08/2014,
800051582,ALLSTAR BUSINESS SOLUTIONS LTD,E2003279309,22,343.19,FUEL,14/08/2014,
800051582,ALLSTAR BUSINESS SOLUTIONS LTD,E2003279309,23,342.21,FUEL,14/08/2014,
800051582,ALLSTAR BUSINESS SOLUTIONS LTD,E2003279309,24,341.82,FUEL,14/08/2014,
800051582,ALLSTAR BUSINESS SOLUTIONS LTD,E2003279309,25,339.63,FUEL,14/08/2014,
800051582,ALLSTAR BUSINESS SOLUTIONS LTD,E2003279309,26,333.33,FUEL,14/08/2014,
800051582,ALLSTAR BUSINESS SOLUTIONS LTD,E2003279309,27,329.91,FUEL,14/08/2014,
800051582,ALLSTAR BUSINESS SOLUTIONS LTD,E2003279309,28,325.95,FUEL,14/08/2014,
800051582,ALLSTAR BUSINESS SOLUTIONS LTD,E2003279309,29,304.06,FUEL,14/08/2014,
800051582,ALLSTAR BUSINESS SOLUTIONS LTD,E2003279309,30,303.54,FUEL,14/08/2014,
800051582,ALLSTAR BUSINESS SOLUTIONS LTD,E2003279309,31,288,FUEL,14/08/2014,
800051582,ALLSTAR BUSINESS SOLUTIONS LTD,E2003279309,32,284.91,FUEL,14/08/2014,
800051582,ALLSTAR BUSINESS SOLUTIONS LTD,E2003279309,33,270.69,FUEL,14/08/2014,
800051582,ALLSTAR BUSINESS SOLUTIONS LTD,E2003279309,34,265.58,FUEL,14/08/2014,
800051582,ALLSTAR BUSINESS SOLUTIONS LTD,E2003279309,35,262.62,FUEL,14/08/2014,
800051582,ALLSTAR BUSINESS SOLUTIONS LTD,E2003279309,36,262.42,FUEL,14/08/2014,
800051582,ALLSTAR BUSINESS SOLUTIONS LTD,E2003279309,37,257.28,FUEL,14/08/2014,
800051582,ALLSTAR BUSINESS SOLUTIONS LTD,E2003279309,38,256.46,FUEL,14/08/2014,
800051582,ALLSTAR BUSINESS SOLUTIONS LTD,E2003279309,39,256.2,FUEL,14/08/2014,
800051582,ALLSTAR BUSINESS SOLUTIONS LTD,E2003279309,40,232.43,FUEL,14/08/2014,
800051582,ALLSTAR BUSINESS SOLUTIONS LTD,E2003279309,41,231.05,FUEL,14/08/2014,
800051582,ALLSTAR BUSINESS SOLUTIONS LTD,E2003279309,42,227.47,FUEL,14/08/2014,
800051582,ALLSTAR BUSINESS SOLUTIONS LTD,E2003279309,43,224.96,FUEL,14/08/2014,
800051582,ALLSTAR BUSINESS SOLUTIONS LTD,E2003279309,44,224.29,FUEL,14/08/2014,
800051582,ALLSTAR BUSINESS SOLUTIONS LTD,E2003279309,45,223,FUEL,14/08/2014,
800051582,ALLSTAR BUSINESS SOLUTIONS LTD,E2003279309,46,218.77,FUEL,14/08/2014,
800051582,ALLSTAR BUSINESS SOLUTIONS LTD,E2003279309,47,211.26,FUEL,14/08/2014,
800051582,ALLSTAR BUSINESS SOLUTIONS LTD,E2003279309,48,210.29,FUEL,14/08/2014,
800051582,ALLSTAR BUSINESS SOLUTIONS LTD,E2003279309,49,209.85,FUEL,14/08/2014,
800051582,ALLSTAR BUSINESS SOLUTIONS LTD,E2003279309,50,205.12,FUEL,14/08/2014,
800051582,ALLSTAR BUSINESS SOLUTIONS LTD,E2003279309,51,204.8,FUEL,14/08/2014,
800051582,ALLSTAR BUSINESS SOLUTIONS LTD,E2003279309,52,203.85,FUEL,14/08/2014,
800051582,ALLSTAR BUSINESS SOLUTIONS LTD,E2003279309,53,193.03,FUEL,14/08/2014,
800051582,ALLSTAR BUSINESS SOLUTIONS LTD,E2003279309,54,192.44,FUEL,14/08/2014,
800051582,ALLSTAR BUSINESS SOLUTIONS LTD,E2003279309,55,191.49,FUEL,14/08/2014,
800051582,ALLSTAR BUSINESS SOLUTIONS LTD,E2003279309,56,188.33,FUEL,14/08/2014,
800051582,ALLSTAR BUSINESS SOLUTIONS LTD,E2003279309,57,187.96,FUEL,14/08/2014,
800051582,ALLSTAR BUSINESS SOLUTIONS LTD,E2003279309,58,181.42,FUEL,14/08/2014,
800051582,ALLSTAR BUSINESS SOLUTIONS LTD,E2003279309,59,171.64,FUEL,14/08/2014,
800051582,ALLSTAR BUSINESS SOLUTIONS LTD,E2003279309,60,171.08,FUEL,14/08/2014,
800051582,ALLSTAR BUSINESS SOLUTIONS LTD,E2003279309,61,161.47,FUEL,14/08/2014,
800051582,ALLSTAR BUSINESS SOLUTIONS LTD,E2003279309,62,160.65,FUEL,14/08/2014,
800051582,ALLSTAR BUSINESS SOLUTIONS LTD,E2003279309,63,158.09,FUEL,14/08/2014,
800051582,ALLSTAR BUSINESS SOLUTIONS LTD,E2003279309,64,145.52,FUEL,14/08/2014,
800051582,ALLSTAR BUSINESS SOLUTIONS LTD,E2003279309,65,145.48,FUEL,14/08/2014,
800051582,ALLSTAR BUSINESS SOLUTIONS LTD,E2003279309,66,138.09,FUEL,14/08/2014,
800051582,ALLSTAR BUSINESS SOLUTIONS LTD,E2003279309,67,138.08,FUEL,14/08/2014,
800051582,ALLSTAR BUSINESS SOLUTIONS LTD,E2003279309,68,137.38,FUEL,14/08/2014,
800051582,ALLSTAR BUSINESS SOLUTIONS LTD,E2003279309,69,137.17,FUEL,14/08/2014,
800051582,ALLSTAR BUSINESS SOLUTIONS LTD,E2003279309,70,136.36,FUEL,14/08/2014,
800051582,ALLSTAR BUSINESS SOLUTIONS LTD,E2003279309,71,135.49,FUEL,14/08/2014,
800051582,ALLSTAR BUSINESS SOLUTIONS LTD,E2003279309,72,135.09,FUEL,14/08/2014,
800051582,ALLSTAR BUSINESS SOLUTIONS LTD,E2003279309,73,133.98,FUEL,14/08/2014,
800051582,ALLSTAR BUSINESS SOLUTIONS LTD,E2003279309,74,133.84,FUEL,14/08/2014,
800051582,ALLSTAR BUSINESS SOLUTIONS LTD,E2003279309,75,131.37,FUEL,14/08/2014,
800051582,ALLSTAR BUSINESS SOLUTIONS LTD,E2003279309,76,131.29,FUEL,14/08/2014,
800051582,ALLSTAR BUSINESS SOLUTIONS LTD,E2003279309,77,130.55,FUEL,14/08/2014,
800051582,ALLSTAR BUSINESS SOLUTIONS LTD,E2003279309,78,123.43,FUEL,14/08/2014,
800051582,ALLSTAR BUSINESS SOLUTIONS LTD,E2003279309,79,121.56,FUEL,14/08/2014,
800051582,ALLSTAR BUSINESS SOLUTIONS LTD,E2003279309,80,117.34,FUEL,14/08/2014,
800051582,ALLSTAR BUSINESS SOLUTIONS LTD,E2003279309,81,116.64,FUEL,14/08/2014,
800051582,ALLSTAR BUSINESS SOLUTIONS LTD,E2003279309,82,109.69,FUEL,14/08/2014,
800051582,ALLSTAR BUSINESS SOLUTIONS LTD,E2003279309,83,106.68,FUEL,14/08/2014,
800051582,ALLSTAR BUSINESS SOLUTIONS LTD,E2003279309,84,105.1,FUEL,14/08/2014,
800051582,ALLSTAR BUSINESS SOLUTIONS LTD,E2003279309,85,104.15,FUEL,14/08/2014,
800051582,ALLSTAR BUSINESS SOLUTIONS LTD,E2003279309,86,101.32,FUEL,14/08/2014,
800051582,ALLSTAR BUSINESS SOLUTIONS LTD,E2003279309,87,98.13,FUEL,14/08/2014,
800051582,ALLSTAR BUSINESS SOLUTIONS LTD,E2003279309,88,94.66,FUEL,14/08/2014,
800051582,ALLSTAR BUSINESS SOLUTIONS LTD,E2003279309,89,94.21,FUEL,14/08/2014,
800051582,ALLSTAR BUSINESS SOLUTIONS LTD,E2003279309,90,81.27,FUEL,14/08/2014,
800051582,ALLSTAR BUSINESS SOLUTIONS LTD,E2003279309,91,80.11,FUEL,14/08/2014,
800051582,ALLSTAR BUSINESS SOLUTIONS LTD,E2003279309,92,59.12,FUEL,14/08/2014,
800051582,ALLSTAR BUSINESS SOLUTIONS LTD,E2003279309,93,51.02,FUEL,14/08/2014,
800051582,ALLSTAR BUSINESS SOLUTIONS LTD,E2003279309,94,45.33,FUEL,14/08/2014,
800051582,ALLSTAR BUSINESS SOLUTIONS LTD,E2003279309,95,42.15,FUEL,14/08/2014,
800051582,ALLSTAR BUSINESS SOLUTIONS LTD,E2003279309,96,41.78,FUEL,14/08/2014,
800051582,ALLSTAR BUSINESS SOLUTIONS LTD,E2003279309,97,37.39,FUEL,14/08/2014,
800051582,ALLSTAR BUSINESS SOLUTIONS LTD,E2003279309,98,30.73,FUEL,14/08/2014,
800051582,ALLSTAR BUSINESS SOLUTIONS LTD,E2003279309,99,28.79,FUEL,14/08/2014,
800051582,ALLSTAR BUSINESS SOLUTIONS LTD,E2003279309,100,25.75,FUEL,14/08/2014,
800051582,ALLSTAR BUSINESS SOLUTIONS LTD,E2003279309,101,22.15,FUEL,14/08/2014,
800051582,ALLSTAR BUSINESS SOLUTIONS LTD,E2003279309,102,21.77,FUEL,14/08/2014,
010814E,HALL FUELS,I06945349,1,"4,204.00",FUEL,14/08/2014,"4,204.00"
110814G,ROCOM,I2481662,1,855.16,DEVELOPMENT  EXPENSES-CONTRACT,14/08/2014,855.16
110814G,ROCOM,I2485823,1,67.4,DEVELOPMENT  EXPENSES-CONTRACT,14/08/2014,395.5
110814G,ROCOM,I2485823,2,249,DEVELOPMENT  EXPENSES-CONTRACT,14/08/2014,
110814G,ROCOM,I2485823,3,16.85,STRATEGIC (NON CYCLICAL),14/08/2014,
110814G,ROCOM,I2485823,4,62.25,STRATEGIC (NON CYCLICAL),14/08/2014,
140768,JCT600 CONTRACTS LIMITED======,INV00068142,1,343.36,LEASE CAR CHARGES,14/08/2014,343.36
140768,JCT600 CONTRACTS LIMITED======,INV00068142,2,-30.44,VAT CAR LEASING,14/08/2014,
140768,JCT600 CONTRACTS LIMITED======,INV00068142,3,30.44,LEASE CAR CHARGES,14/08/2014,
140768,JCT600 CONTRACTS LIMITED======,INV00068144,1,357.51,LEASE CAR CHARGES,14/08/2014,357.51
140768,JCT600 CONTRACTS LIMITED======,INV00068144,2,-31.67,VAT CAR LEASING,14/08/2014,
140768,JCT600 CONTRACTS LIMITED======,INV00068144,3,31.67,LEASE CAR CHARGES,14/08/2014,
140768,JCT600 CONTRACTS LIMITED======,INV00068146,1,319.64,LEASE CAR CHARGES,14/08/2014,319.64
140768,JCT600 CONTRACTS LIMITED======,INV00068146,2,-28.08,VAT CAR LEASING,14/08/2014,
140768,JCT600 CONTRACTS LIMITED======,INV00068146,3,28.08,LEASE CAR CHARGES,14/08/2014,
140768,JCT600 CONTRACTS LIMITED======,INV00068147,1,357.86,LEASE CAR CHARGES,14/08/2014,357.86
140768,JCT600 CONTRACTS LIMITED======,INV00068147,2,-31.78,VAT CAR LEASING,14/08/2014,
140768,JCT600 CONTRACTS LIMITED======,INV00068147,3,31.78,LEASE CAR CHARGES,14/08/2014,
140768,LEX AUTOLEASE,IRIN355195,1,"3,578.09",LEASE CAR CHARGES,14/08/2014,"5,203.20"
140768,LEX AUTOLEASE,IRIN355195,2,"1,625.11",P/PAYMTS-CAR LEASG-RENTAL,14/08/2014,
140768,LEX AUTOLEASE,IRIN355195,3,-468.26,VAT CAR LEASING,14/08/2014,
140768,LEX AUTOLEASE,IRIN355195,4,468.26,LEASE CAR CHARGES,14/08/2014,
080814H,COFELY WORKPLACE LIMITED,M130109,1,"1,892.35",STRATEGIC (NON CYCLICAL),14/08/2014,"1,892.35"
080814H,COFELY WORKPLACE LIMITED,M130113,1,"2,733.41",STRATEGIC (NON CYCLICAL),14/08/2014,"2,733.41"
120814F,SPECIALIST COMPUTER CENTRES===,OP/L874194,1,"9,990.00",MAINTENANCE & SUPPORT,14/08/2014,"13,545.00"
120814F,SPECIALIST COMPUTER CENTRES===,OP/L874194,2,"3,205.00",MAINTENANCE & SUPPORT,14/08/2014,
120814F,SPECIALIST COMPUTER CENTRES===,OP/L874194,3,350,MAINTENANCE & SUPPORT,14/08/2014,
120814F,SPECIALIST COMPUTER CENTRES===,OP/L875307,1,309.6,MAINTENANCE & SUPPORT,14/08/2014,602.64
120814F,SPECIALIST COMPUTER CENTRES===,OP/L875307,2,293.04,MAINTENANCE & SUPPORT,14/08/2014,
120814F,PULLMAN MOTORS================,PULL234,1,600,OPERATIONAL EQUIP-PURCHASE,14/08/2014,600
050814H,HUNTER LODGE==================,S-015570,1,500,ADVERTISING,14/08/2014,500
050814H,HUNTER LODGE==================,S-015571,1,500,ADVERTISING,14/08/2014,500
050814H,HEALTH MANAGEMENT LIMITED=====,117137,1,784.48,DRUG & ALCOHOL TESTS,18/08/2014,784.48
050814H,HEALTH MANAGEMENT LIMITED=====,117138,1,667.69,DRUG & ALCOHOL TESTS,18/08/2014,667.69
050814H,HEALTH MANAGEMENT LIMITED=====,117140,1,"1,718.40",OHS CONTRACT,18/08/2014,"1,718.40"
110814G,LYNN WICKINS,73,1,522.5,PROFESSIONAL SERVICES,18/08/2014,522.5
130814G,ADAM PHONES LTD===============,1058769,1,480,CELLULAR TELEPHONES,18/08/2014,518.85
130814G,ADAM PHONES LTD===============,1058769,2,38.85,CELLULAR TELEPHONES,18/08/2014,
010814E,TMP (LIMITED) UK,1.00E+11,1,"18,500.00",MAINTENANCE & SUPPORT,18/08/2014,"24,500.00"
010814E,TMP (LIMITED) UK,1.00E+11,2,"2,500.00",MAINTENANCE & SUPPORT,18/08/2014,
010814E,TMP (LIMITED) UK,1.00E+11,3,"3,500.00",MAINTENANCE & SUPPORT,18/08/2014,
110814G,CUNDALL JOHNSTON AND PARTNERS,100019834,1,640.25,PROFESSIONAL SERVICES,18/08/2014,640.25
130814G,HAYS ACCOUNTANCY & FINANCE====,100458313,1,696,FRS STAFF AGENCY,18/08/2014,696
130814G,*SPRUE SAFETY PRODUCTS LTD====,1062259,1,"2,595.60",FIRE DETECTORS,18/08/2014,"2,595.60"
130814F,*SPRUE SAFETY PRODUCTS LTD====,1062829,1,"1,112.40",FIRE DETECTORS,18/08/2014,"1,112.40"
130814F,*SPRUE SAFETY PRODUCTS LTD====,1062832,1,741.6,FIRE DETECTORS,18/08/2014,741.6
130814F,*SPRUE SAFETY PRODUCTS LTD====,1062834,1,"2,224.80",FIRE DETECTORS,18/08/2014,"2,224.80"
130814F,*SPRUE SAFETY PRODUCTS LTD====,1062837,1,"1,112.40",FIRE DETECTORS,18/08/2014,"1,112.40"
130814F,*SPRUE SAFETY PRODUCTS LTD====,1062843,1,"1,112.40",FIRE DETECTORS,18/08/2014,"1,112.40"
130814F,*SPRUE SAFETY PRODUCTS LTD====,1062844,1,"1,112.40",FIRE DETECTORS,18/08/2014,"1,112.40"
130814F,*SPRUE SAFETY PRODUCTS LTD====,1062845,1,"1,112.40",FIRE DETECTORS,18/08/2014,"1,112.40"
130814G,*SPRUE SAFETY PRODUCTS LTD====,1062951,1,618,FIRE DETECTORS,18/08/2014,618
130814F,*SPRUE SAFETY PRODUCTS LTD====,1062954,1,"1,359.60",FIRE DETECTORS,18/08/2014,"1,359.60"
130814G,*SPRUE SAFETY PRODUCTS LTD====,1062958,1,"2,595.60",FIRE DETECTORS,18/08/2014,"2,595.60"
130814F,*SPRUE SAFETY PRODUCTS LTD====,1062965,1,"1,112.40",FIRE DETECTORS,18/08/2014,"1,112.40"
050814H,*SPRUE SAFETY PRODUCTS LTD====,1063770,1,618,FIRE DETECTORS,18/08/2014,618
050814H,HALL FUELS,106950295,1,"3,165.60",FUEL,18/08/2014,"3,165.60"
130814F,BT GLOBAL SERVICES============,1130906,1,541.66,TELECOMMUNICATIONS,18/08/2014,541.66
120814F,SILVERSANDS LIMITED===========,121114,1,"4,750.00",PURCHASES-SOFTWARE,18/08/2014,"8,550.00"
120814F,SILVERSANDS LIMITED===========,121114,2,"3,800.00",PURCHASES-SOFTWARE,18/08/2014,
140771,AFFINITY WATER,13273831H,1,646.99,WATER & SEWERAGE RATES,18/08/2014,646.99
130814F,PA ASSOCIATES (UK) LTD========,14078,1,"2,000.13",DEVELOPMENT  EXPENSES-CONTRACT,18/08/2014,"2,000.13"
130814F,RESPIREX======================,147429,1,237.02,REPAIR & MAINTENANCE,18/08/2014,645.06
130814F,RESPIREX======================,147429,2,158.04,REPAIR & MAINTENANCE,18/08/2014,
130814F,RESPIREX======================,147429,3,250,PROTECTIVE EQUIPMENT,18/08/2014,
140814G,DRON & WRIGHT=================,17192,1,"1,288.50",PROFESSIONAL SERVICES,18/08/2014,"29,407.97"
140814G,DRON & WRIGHT=================,17192,2,"5,554.66",PROFESSIONAL SERVICES,18/08/2014,
140814G,DRON & WRIGHT=================,17192,3,225,PROFESSIONAL SERVICES,18/08/2014,
140814G,DRON & WRIGHT=================,17192,4,135,PROFESSIONAL SERVICES,18/08/2014,
140814G,DRON & WRIGHT=================,17192,5,780.5,PROFESSIONAL SERVICES,18/08/2014,
140814G,DRON & WRIGHT=================,17192,6,565,DISPOSAL COSTS-ESTATES AGENTS,18/08/2014,
140814G,DRON & WRIGHT=================,17192,7,277.5,DISPOSAL COSTS-ESTATES AGENTS,18/08/2014,
140814G,DRON & WRIGHT=================,17192,8,"2,591.00",DISPOSAL COSTS-ESTATES AGENTS,18/08/2014,
140814G,DRON & WRIGHT=================,17192,9,221,DISPOSAL COSTS-ESTATES AGENTS,18/08/2014,
140814G,DRON & WRIGHT=================,17192,10,921,DISPOSAL COSTS-ESTATES AGENTS,18/08/2014,
140814G,DRON & WRIGHT=================,17192,11,924.5,DISPOSAL COSTS-ESTATES AGENTS,18/08/2014,
140814G,DRON & WRIGHT=================,17192,12,762.5,DISPOSAL COSTS-ESTATES AGENTS,18/08/2014,
140814G,DRON & WRIGHT=================,17192,13,"2,630.00",DISPOSAL COSTS-ESTATES AGENTS,18/08/2014,
140814G,DRON & WRIGHT=================,17192,14,"1,265.00",DISPOSAL COSTS-ESTATES AGENTS,18/08/2014,
140814G,DRON & WRIGHT=================,17192,15,221,DISPOSAL COSTS-ESTATES AGENTS,18/08/2014,
140814G,DRON & WRIGHT=================,17192,16,"7,142.74",PROFESSIONAL SERVICES,18/08/2014,
140814G,DRON & WRIGHT=================,17192,17,"1,160.00",PROFESSIONAL SERVICES,18/08/2014,
140814G,DRON & WRIGHT=================,17192,18,416.67,PROFESSIONAL SERVICES,18/08/2014,
140814G,DRON & WRIGHT=================,17192,19,"1,497.90",DISPOSAL COSTS-ESTATES AGENTS,18/08/2014,
140814G,DRON & WRIGHT=================,17192,20,350,PROF FEES-MISCELLANEOUS,18/08/2014,
140814G,DRON & WRIGHT=================,17192,21,36,PROF FEES-MISCELLANEOUS,18/08/2014,
140814G,DRON & WRIGHT=================,17192,22,442.5,PROF FEES-MISCELLANEOUS,18/08/2014,
130814F,COMMUNITIES & LOCAL GOVERNMENT,1800020356,1,"123,093.55",RADIO,18/08/2014,"131,117.65"
130814F,COMMUNITIES & LOCAL GOVERNMENT,1800020356,2,"8,024.10",RADIO,18/08/2014,
800041457,ADECCO UK LIMITED=============,26868060,1,620.2,FRS STAFF AGENCY,18/08/2014,620.2
800051993,ADECCO UK LIMITED=============,26875727,1,563.92,FRS STAFF AGENCY,18/08/2014,563.92
800051994,ADECCO UK LIMITED=============,26875728,1,439.6,FRS STAFF AGENCY,18/08/2014,439.6
800051995,ADECCO UK LIMITED=============,26875729,1,942.2,FRS STAFF AGENCY,18/08/2014,942.2
800051996,ADECCO UK LIMITED=============,26875730,1,612.15,FRS STAFF AGENCY,18/08/2014,612.15
800051997,ADECCO UK LIMITED=============,26875731,1,966.84,FRS STAFF AGENCY,18/08/2014,966.84
800051998,ADECCO UK LIMITED=============,26875732,1,463.49,FRS STAFF AGENCY,18/08/2014,463.49
800052000,ADECCO UK LIMITED=============,26875734,1,439.6,FRS STAFF AGENCY,18/08/2014,439.6
800052001,ADECCO UK LIMITED=============,26875735,1,489.72,FRS STAFF AGENCY,18/08/2014,489.72
800052002,ADECCO UK LIMITED=============,26875736,1,879.9,FRS STAFF AGENCY,18/08/2014,879.9
800052003,ADECCO UK LIMITED=============,26875737,1,439.6,FRS STAFF AGENCY,18/08/2014,439.6
800052005,ADECCO UK LIMITED=============,26875738,1,269.45,FRS STAFF AGENCY,18/08/2014,269.45
800052006,ADECCO UK LIMITED=============,26875739,1,439.6,FRS STAFF AGENCY,18/08/2014,439.6
800052007,ADECCO UK LIMITED=============,26875740,1,703.92,FRS STAFF AGENCY,18/08/2014,703.92
800052009,ADECCO UK LIMITED=============,26875742,1,439.6,FRS STAFF AGENCY,18/08/2014,439.6
800052010,ADECCO UK LIMITED=============,26875743,1,611.8,FRS STAFF AGENCY,18/08/2014,611.8
800052011,ADECCO UK LIMITED=============,26875744,1,886,FRS STAFF AGENCY,18/08/2014,886
800052013,ADECCO UK LIMITED=============,26875746,1,367.29,FRS STAFF AGENCY,18/08/2014,367.29
800052014,ADECCO UK LIMITED=============,26875747,1,367.29,FRS STAFF AGENCY,18/08/2014,367.29
800052015,ADECCO UK LIMITED=============,26875748,1,612.15,FRS STAFF AGENCY,18/08/2014,612.15
800052016,ADECCO UK LIMITED=============,26875749,1,439.6,FRS STAFF AGENCY,18/08/2014,439.6
800052018,ADECCO UK LIMITED=============,26875751,1,"1,949.85",FRS STAFF AGENCY,18/08/2014,"1,949.85"
800052019,ADECCO UK LIMITED=============,26875752,1,"2,452.25",FRS STAFF AGENCY,18/08/2014,"2,452.25"
800052020,ADECCO UK LIMITED=============,26875753,1,612.15,FRS STAFF AGENCY,18/08/2014,612.15
800052022,ADECCO UK LIMITED=============,26875755,1,439.6,FRS STAFF AGENCY,18/08/2014,439.6
800052024,ADECCO UK LIMITED=============,26875757,1,"1,270.34",FRS STAFF AGENCY,18/08/2014,"1,270.34"
800052027,ADECCO UK LIMITED=============,26875760,1,563.92,FRS STAFF AGENCY,18/08/2014,563.92
800052028,ADECCO UK LIMITED=============,26879498,1,"1,241.25",FRS STAFF AGENCY,18/08/2014,"1,241.25"
800052029,ADECCO UK LIMITED=============,26879499,1,"1,241.25",FRS STAFF AGENCY,18/08/2014,"1,241.25"
800052030,ADECCO UK LIMITED=============,26879500,1,"1,131.20",FRS STAFF AGENCY,18/08/2014,"1,131.20"
800052031,ADECCO UK LIMITED=============,26879501,1,"1,131.20",FRS STAFF AGENCY,18/08/2014,"1,131.20"
800052032,ADECCO UK LIMITED=============,26879502,1,"2,293.88",PROF FEES-SOFTWARE CONSULTANTS,18/08/2014,"2,293.88"
800052033,ADECCO UK LIMITED=============,26879503,1,"2,867.35",PROF FEES-SOFTWARE CONSULTANTS,18/08/2014,"2,867.35"
800052038,ADECCO UK LIMITED=============,26879505,1,"1,238.19",FRS STAFF AGENCY,18/08/2014,"1,238.19"
800052039,ADECCO UK LIMITED=============,26879506,1,"1,163.40",FRS STAFF AGENCY,18/08/2014,"1,163.40"
800052035,ADECCO UK LIMITED=============,26879508,1,"1,518.88",FRS STAFF AGENCY,18/08/2014,"1,518.88"
800052036,ADECCO UK LIMITED=============,26879509,1,"1,466.50",FRS STAFF AGENCY,18/08/2014,"1,466.50"
120814F,PRECISE MEDIA MONITORING LTD==,288868,1,"1,120.33",PRESS OFFICE,18/08/2014,"1,120.33"
130814F,EVOLUTION ENVIRONMENTAL LTD,3245,1,"1,770.00",ASBESTOS,18/08/2014,"1,770.00"
140771,THAMES WATER UTILITIES LTD====,38538-61116H,1,449.67,WATER & SEWERAGE RATES,18/08/2014,449.67
800051868,*OCS GROUP UK LTD,5000028279-01,1,"3,232.97",CATERING,18/08/2014,"3,232.97"
800051869,*OCS GROUP UK LTD,5000028279-02,1,678.81,CATERING,18/08/2014,678.81
800051715,*OCS GROUP UK LTD,5000028280-19,1,313.2,REFRESHMENTS,18/08/2014,313.2
800051799,*OCS GROUP UK LTD,5000028280-61,1,391.5,REFRESHMENTS,18/08/2014,391.5
800051769,*OCS GROUP UK LTD,5000028280-73,1,304.5,REFRESHMENTS,18/08/2014,304.5
800051784,*OCS GROUP UK LTD,5000028280-88,1,609,REFRESHMENTS,18/08/2014,609
800051952,*OCS GROUP UK LTD,5000028280-97,1,"1,289.00",REFRESHMENTS,18/08/2014,"1,289.00"
800051809,*OCS GROUP UK LTD,5000028281-08,1,408.9,REFRESHMENTS,18/08/2014,408.9
800051840,*OCS GROUP UK LTD,5000028281-39,1,304.5,REFRESHMENTS,18/08/2014,304.5
800051845,*OCS GROUP UK LTD,5000028281-44,1,348,REFRESHMENTS,18/08/2014,348
800051866,*OCS GROUP UK LTD,5000028281-65,1,541.45,CATERING EQUIPMENT,18/08/2014,541.45
140771,ESSEX & SUFFOLK WATER PLC=====,603029810013Q,1,"1,962.43",WATER & SEWERAGE RATES,18/08/2014,"1,962.43"
050814H,MERLIN ELECTRICAL SERVICES LTD,7075,1,"3,036.72",DAY TO DAY MINOR IMPS,18/08/2014,"3,036.72"
130814F,ARTELIA,7412,1,"2,176.22",CONSULTANTS,18/08/2014,"2,176.22"
140814G,TWO SERVICES LTD==============,77767,1,681.5,CATERING EQUIPMENT,18/08/2014,681.5
130814F,TWO SERVICES LTD==============,77782,1,60,CATERING EQUIPMENT,18/08/2014,340.6
130814F,TWO SERVICES LTD==============,77782,2,280.6,CATERING EQUIPMENT,18/08/2014,
140771,THAMES WATER UTILITIES LTD====,80111-25203H,1,435.07,WATER & SEWERAGE RATES,18/08/2014,435.07
140814G,EAST SUSSEX FIRE & RESCUE=====,8022001615,1,"22,338.28",FIRE AUTHORITIES,18/08/2014,"22,338.28"
130814F,ANGUS FIRE LIMITED,8026980,1,"2,047.00",OPERATIONAL EQUIP-PURCHASE,18/08/2014,"2,841.50"
130814F,ANGUS FIRE LIMITED,8026980,2,79,OPERATIONAL EQUIP-PURCHASE,18/08/2014,
130814F,ANGUS FIRE LIMITED,8026980,3,715.5,OPERATIONAL EQUIP-PURCHASE,18/08/2014,
130814F,OPERATIONAL RESEARCH IN HEALTH,81Y/LFBD3/3,1,"8,050.00",CONSULTANTS,18/08/2014,"8,050.00"
140814G,VCG KESTREL LIMITED===========,89361,1,"1,708.00",PRINTING,18/08/2014,"1,708.00"
050814H,DRAEGER SAFETY UK LIMITED=====,90453231,1,"4,091.80",PROTECTIVE EQUIPT - PARTS,18/08/2014,"4,091.80"
080814H,DRAEGER SAFETY UK LIMITED=====,90453404,1,"5,888.20",PROTECTIVE EQUIPT - PARTS,18/08/2014,"5,888.20"
130814F,NORTHUMBRIAN WATER LTD========,913032204,1,616,CURRENT HYDRANT COSTS,18/08/2014,616
130814F,NORTHUMBRIAN WATER LTD========,913040967,1,408,CURRENT HYDRANT COSTS,18/08/2014,408
110814G,ASTEC SURVEYS LIMITED=========,ASL-14-223,1,275,ASBESTOS,18/08/2014,450
110814G,ASTEC SURVEYS LIMITED=========,ASL-14-223,2,175,ASBESTOS,18/08/2014,
110814G,ASTEC SURVEYS LIMITED=========,ASL-14-224,1,445,ASBESTOS,18/08/2014,445
130814G,E&S B DAVIS LTD,DAV/51236,1,360,OPERATIONAL EQUIP-PURCHASE,18/08/2014,360
130814F,OAK TELECOM LTD===============,M43649,1,700,MAINTENANCE & SUPPORT,18/08/2014,700
130814F,G4S FIRE & SECURITY SYSTEMS UK,MTN11913,1,267,PREMISES SECURITY,18/08/2014,267
130814F,SPECIALIST COMPUTER CENTRES===,OP/L876794,1,330,MAINTENANCE & SUPPORT,18/08/2014,330
130814F,KCOM GROUP====================,PA170353,1,439.54,STRATEGIC (NON CYCLICAL),18/08/2014,718.02
130814F,KCOM GROUP====================,PA170353,2,278.48,ACQUISITIONS,18/08/2014,
120814F,PULLMAN MOTORS================,PULL239,1,"2,100.00",OPERATIONAL EQUIP-PURCHASE,18/08/2014,"2,100.00"
140814G,RADIOCOMS SYSTEMS LIMITED=====,RSLSI14003681,1,375,RADIO,18/08/2014,375
130814F,COMPUTER PEOPLE===============,S28634/00,1,"2,500.00",ADVERTISING,18/08/2014,"2,500.00"
010814E,GROUND CONTROL UMITED,SIN037489,1,13.34,GROUNDS MAINTENANCE,18/08/2014,996.1
010814E,GROUND CONTROL UMITED,SIN037489,2,13.34,GROUNDS MAINTENANCE,18/08/2014,
010814E,GROUND CONTROL UMITED,SIN037489,3,13.34,GROUNDS MAINTENANCE,18/08/2014,
010814E,GROUND CONTROL UMITED,SIN037489,4,42.7,GROUNDS MAINTENANCE,18/08/2014,
010814E,GROUND CONTROL UMITED,SIN037489,5,42.7,GROUNDS MAINTENANCE,18/08/2014,
010814E,GROUND CONTROL UMITED,SIN037489,6,13.34,GROUNDS MAINTENANCE,18/08/2014,
010814E,GROUND CONTROL UMITED,SIN037489,7,13.34,GROUNDS MAINTENANCE,18/08/2014,
010814E,GROUND CONTROL UMITED,SIN037489,8,55.32,GROUNDS MAINTENANCE,18/08/2014,
010814E,GROUND CONTROL UMITED,SIN037489,9,13.34,GROUNDS MAINTENANCE,18/08/2014,
010814E,GROUND CONTROL UMITED,SIN037489,10,13.34,GROUNDS MAINTENANCE,18/08/2014,
010814E,GROUND CONTROL UMITED,SIN037489,11,62,GROUNDS MAINTENANCE,18/08/2014,
010814E,GROUND CONTROL UMITED,SIN037489,12,46.43,GROUNDS MAINTENANCE,18/08/2014,
010814E,GROUND CONTROL UMITED,SIN037489,13,50.44,GROUNDS MAINTENANCE,18/08/2014,
010814E,GROUND CONTROL UMITED,SIN037489,14,13.34,GROUNDS MAINTENANCE,18/08/2014,
010814E,GROUND CONTROL UMITED,SIN037489,15,13.34,GROUNDS MAINTENANCE,18/08/2014,
010814E,GROUND CONTROL UMITED,SIN037489,16,13.34,GROUNDS MAINTENANCE,18/08/2014,
010814E,GROUND CONTROL UMITED,SIN037489,17,50.44,GROUNDS MAINTENANCE,18/08/2014,
010814E,GROUND CONTROL UMITED,SIN037489,18,15.9,GROUNDS MAINTENANCE,18/08/2014,
010814E,GROUND CONTROL UMITED,SIN037489,19,13.34,GROUNDS MAINTENANCE,18/08/2014,
010814E,GROUND CONTROL UMITED,SIN037489,20,51.77,GROUNDS MAINTENANCE,18/08/2014,
010814E,GROUND CONTROL UMITED,SIN037489,21,13.34,GROUNDS MAINTENANCE,18/08/2014,
010814E,GROUND CONTROL UMITED,SIN037489,22,13.34,GROUNDS MAINTENANCE,18/08/2014,
010814E,GROUND CONTROL UMITED,SIN037489,23,13.34,GROUNDS MAINTENANCE,18/08/2014,
010814E,GROUND CONTROL UMITED,SIN037489,24,50.44,GROUNDS MAINTENANCE,18/08/2014,
010814E,GROUND CONTROL UMITED,SIN037489,25,46.43,GROUNDS MAINTENANCE,18/08/2014,
010814E,GROUND CONTROL UMITED,SIN037489,26,13.34,GROUNDS MAINTENANCE,18/08/2014,
010814E,GROUND CONTROL UMITED,SIN037489,27,46.43,GROUNDS MAINTENANCE,18/08/2014,
010814E,GROUND CONTROL UMITED,SIN037489,28,15.9,GROUNDS MAINTENANCE,18/08/2014,
010814E,GROUND CONTROL UMITED,SIN037489,29,50.44,GROUNDS MAINTENANCE,18/08/2014,
010814E,GROUND CONTROL UMITED,SIN037489,30,50.44,GROUNDS MAINTENANCE,18/08/2014,
010814E,GROUND CONTROL UMITED,SIN037489,31,50.44,GROUNDS MAINTENANCE,18/08/2014,
010814E,GROUND CONTROL UMITED,SIN037489,32,47.59,GROUNDS MAINTENANCE,18/08/2014,
010814E,GROUND CONTROL UMITED,SIN037489,33,13.34,GROUNDS MAINTENANCE,18/08/2014,
010814E,GROUND CONTROL UMITED,SIN037489,34,6.85,GROUNDS MAINTENANCE,18/08/2014,
140814G,CADCORP=======================,SV0021647,1,400,CONSULTANTS,18/08/2014,400
800041409,*XMA LTD,V904476,1,396.2,OPERATIONAL EQUIP-PURCHASE,18/08/2014,396.2
130814G,BRITISH TELECOM===============,VP71178070M20501KI,1,"2,711.79",CALL CHARGES,18/08/2014,"84,832.15"
130814G,BRITISH TELECOM===============,VP71178070M20501KI,2,"82,120.36",TELECOMMUNICATIONS,18/08/2014,
902436,LONDON PENSIONS FUND AUTHORITY,PENSION AUG 14,2,"333,500.00",PENSION PAST SERVICE COSTS,19/08/2014,"333,500.00"
902435,THERMO FISHER SCIENTIFIC MESST,RSI 188332,1,"2,478.00",REPAIR & MAINTENANCE,19/08/2014,"2,478.00"
150814G,USEL==========================,21237,1,"5,650.00",PROTECTIVE EQUIPMENT,21/08/2014,"5,650.00"
150814F,MOOLANDS LTD,384,1,"4,090.20",STRATEGIC (NON CYCLICAL),21/08/2014,"4,210.20"
150814F,MOOLANDS LTD,384,2,120,STRATEGIC (NON CYCLICAL),21/08/2014,
180814E,MOOLANDS LTD,899,1,945,STRATEGIC (NON CYCLICAL),21/08/2014,945
180814E,MOOLANDS LTD,926,1,898,STRATEGIC (NON CYCLICAL),21/08/2014,898
180814E,MOOLANDS LTD,927,1,922,STRATEGIC (NON CYCLICAL),21/08/2014,922
180814E,MOOLANDS LTD,928,1,899,STRATEGIC (NON CYCLICAL),21/08/2014,899
180814E,MOOLANDS LTD,929,1,917,STRATEGIC (NON CYCLICAL),21/08/2014,917
180814E,MOOLANDS LTD,930,1,940,STRATEGIC (NON CYCLICAL),21/08/2014,940
180814E,MOOLANDS LTD,931,1,945,STRATEGIC (NON CYCLICAL),21/08/2014,945
180814E,MOOLANDS LTD,932,1,869,STRATEGIC (NON CYCLICAL),21/08/2014,869
180814E,MOOLANDS LTD,933,1,905,STRATEGIC (NON CYCLICAL),21/08/2014,905
180814E,MOOLANDS LTD,934,1,847,STRATEGIC (NON CYCLICAL),21/08/2014,847
180814E,MOOLANDS LTD,935,1,858,STRATEGIC (NON CYCLICAL),21/08/2014,858
180814E,MOOLANDS LTD,936,1,919,STRATEGIC (NON CYCLICAL),21/08/2014,919
180814E,MOOLANDS LTD,937,1,917,STRATEGIC (NON CYCLICAL),21/08/2014,917
180814E,MOOLANDS LTD,938,1,889,STRATEGIC (NON CYCLICAL),21/08/2014,889
180814E,MOOLANDS LTD,940,1,940,STRATEGIC (NON CYCLICAL),21/08/2014,940
180814E,MOOLANDS LTD,941,1,920,STRATEGIC (NON CYCLICAL),21/08/2014,920
180814E,MOOLANDS LTD,970,1,"3,791.77",STRATEGIC (NON CYCLICAL),21/08/2014,"3,791.77"
050814H,HEALTH MANAGEMENT LIMITED=====,117338,1,"107,035.75",OHS CONTRACT,21/08/2014,"107,035.75"
150814G,*SPRUE SAFETY PRODUCTS LTD====,1062262,1,988.8,FIRE DETECTORS,21/08/2014,988.8
150814F,*SPRUE SAFETY PRODUCTS LTD====,1062268,1,"3,200.00",FIRE DETECTORS,21/08/2014,"3,200.00"
150814G,*SPRUE SAFETY PRODUCTS LTD====,1064007,1,"6,000.00",FIRE DETECTORS,21/08/2014,"6,000.00"
150814G,*SPRUE SAFETY PRODUCTS LTD====,1064032,1,"3,708.00",FIRE DETECTORS,21/08/2014,"3,708.00"
190814F,*SPRUE SAFETY PRODUCTS LTD====,1064033,1,988.8,FIRE DETECTORS,21/08/2014,988.8
150814G,*SPRUE SAFETY PRODUCTS LTD====,1064035,1,"3,300.00",FIRE DETECTORS,21/08/2014,"3,300.00"
800052118,*JAMES HUNTER (OUTFITTERS) LTD,107787,1,291.48,CLOTHING,21/08/2014,291.48
800052120,*JAMES HUNTER (OUTFITTERS) LTD,107789,1,145.74,CLOTHING,21/08/2014,284.56
800052120,*JAMES HUNTER (OUTFITTERS) LTD,107789,2,138.82,CLOTHING,21/08/2014,
800052121,*JAMES HUNTER (OUTFITTERS) LTD,107790,1,218.49,CLOTHING,21/08/2014,284.49
800052121,*JAMES HUNTER (OUTFITTERS) LTD,107790,2,66,CLOTHING,21/08/2014,
800052127,*JAMES HUNTER (OUTFITTERS) LTD,107796,1,231.56,CLOTHING,21/08/2014,293.35
800052127,*JAMES HUNTER (OUTFITTERS) LTD,107796,2,61.79,CLOTHING,21/08/2014,
800052128,*JAMES HUNTER (OUTFITTERS) LTD,107797,1,293.13,CLOTHING,21/08/2014,293.13
800052130,*JAMES HUNTER (OUTFITTERS) LTD,107799,1,231.56,CLOTHING,21/08/2014,293.35
800052130,*JAMES HUNTER (OUTFITTERS) LTD,107799,2,61.79,CLOTHING,21/08/2014,
150814G,TOA CORPORATION (UK) LTD,11446/667,1,311.36,STRATEGIC (NON CYCLICAL),21/08/2014,324.68
150814G,TOA CORPORATION (UK) LTD,11446/667,2,13.32,STRATEGIC (NON CYCLICAL),21/08/2014,
190814F,VISTA LANDSCAPE MANAGEMENT LTD,120010,1,"1,625.00",GROUNDS MAINTENANCE,21/08/2014,"1,625.00"
150814G,RUTH LEE LTD==================,12373,1,436.3,OPERATIONAL EQUIP-PURCHASE,21/08/2014,436.3
180814E,GRANGEWOOD PLASTIC PACKAGING,125156,1,800,GENERAL CONSUMABLES,21/08/2014,800
190814F,SAFEGUARD PEST CON. & ENV.LTD,13993,1,420,PEST CONTROL,21/08/2014,420
150814G,CMT===========================,144923,1,378.65,OPERATIONAL EQUIP-PURCHASE,21/08/2014,394.15
150814G,CMT===========================,144923,2,15.5,OPERATIONAL EQUIP-PURCHASE,21/08/2014,
150814F,IRON MOUNTAIN (UK) LTD========,16187401,1,"2,871.04",MAINTENANCE & SUPPORT,21/08/2014,"2,871.04"
190814F,RIG SYSTEMS LTD===============,1716,1,"5,725.41",PROFESSIONAL DEVELOPMENT,21/08/2014,"5,725.41"
190814F,DRON & WRIGHT=================,17236,1,429,PROFESSIONAL SERVICES,21/08/2014,"9,986.40"
190814F,DRON & WRIGHT=================,17236,2,"9,557.40",DISPOSAL COSTS-ESTATES AGENTS,21/08/2014,
180814E,GRADIENT CONSULTANTS LLP======,2098,1,740,PROF FEES-MISCELLANEOUS,21/08/2014,"1,520.00"
180814E,GRADIENT CONSULTANTS LLP======,2098,2,290,PROF FEES-MISCELLANEOUS,21/08/2014,
180814E,GRADIENT CONSULTANTS LLP======,2098,3,490,PROF FEES-MISCELLANEOUS,21/08/2014,
180814E,GRADIENT CONSULTANTS LLP======,2099,1,195,ASBESTOS,21/08/2014,"17,626.25"
180814E,GRADIENT CONSULTANTS LLP======,2099,2,420,ASBESTOS,21/08/2014,
180814E,GRADIENT CONSULTANTS LLP======,2099,3,97.5,ASBESTOS,21/08/2014,
180814E,GRADIENT CONSULTANTS LLP======,2099,4,895,ASBESTOS,21/08/2014,
180814E,GRADIENT CONSULTANTS LLP======,2099,5,"1,220.00",ASBESTOS,21/08/2014,
180814E,GRADIENT CONSULTANTS LLP======,2099,6,97.5,ASBESTOS,21/08/2014,
180814E,GRADIENT CONSULTANTS LLP======,2099,7,545,ASBESTOS,21/08/2014,
180814E,GRADIENT CONSULTANTS LLP======,2099,8,290,ASBESTOS,21/08/2014,
180814E,GRADIENT CONSULTANTS LLP======,2099,9,290,ASBESTOS,21/08/2014,
180814E,GRADIENT CONSULTANTS LLP======,2099,10,62.5,ASBESTOS,21/08/2014,
180814E,GRADIENT CONSULTANTS LLP======,2099,11,195,ASBESTOS,21/08/2014,
180814E,GRADIENT CONSULTANTS LLP======,2099,12,146.25,ASBESTOS,21/08/2014,
180814E,GRADIENT CONSULTANTS LLP======,2099,13,195,ASBESTOS,21/08/2014,
180814E,GRADIENT CONSULTANTS LLP======,2099,14,290,ASBESTOS,21/08/2014,
180814E,GRADIENT CONSULTANTS LLP======,2099,15,125,ASBESTOS,21/08/2014,
180814E,GRADIENT CONSULTANTS LLP======,2099,16,290,ASBESTOS,21/08/2014,
180814E,GRADIENT CONSULTANTS LLP======,2099,17,97.5,ASBESTOS,21/08/2014,
180814E,GRADIENT CONSULTANTS LLP======,2099,18,195,ASBESTOS,21/08/2014,
180814E,GRADIENT CONSULTANTS LLP======,2099,19,146.25,ASBESTOS,21/08/2014,
180814E,GRADIENT CONSULTANTS LLP======,2099,20,306.25,ASBESTOS,21/08/2014,
180814E,GRADIENT CONSULTANTS LLP======,2099,21,152.5,ASBESTOS,21/08/2014,
180814E,GRADIENT CONSULTANTS LLP======,2099,22,97.5,ASBESTOS,21/08/2014,
180814E,GRADIENT CONSULTANTS LLP======,2099,23,55,ASBESTOS,21/08/2014,
180814E,GRADIENT CONSULTANTS LLP======,2099,24,290,ASBESTOS,21/08/2014,
180814E,GRADIENT CONSULTANTS LLP======,2099,25,55,ASBESTOS,21/08/2014,
180814E,GRADIENT CONSULTANTS LLP======,2099,26,55,ASBESTOS,21/08/2014,
180814E,GRADIENT CONSULTANTS LLP======,2099,27,195,ASBESTOS,21/08/2014,
180814E,GRADIENT CONSULTANTS LLP======,2099,28,55,ASBESTOS,21/08/2014,
180814E,GRADIENT CONSULTANTS LLP======,2099,29,195,ASBESTOS,21/08/2014,
180814E,GRADIENT CONSULTANTS LLP======,2099,30,290,ASBESTOS,21/08/2014,
180814E,GRADIENT CONSULTANTS LLP======,2099,31,290,ASBESTOS,21/08/2014,
180814E,GRADIENT CONSULTANTS LLP======,2099,32,55,ASBESTOS,21/08/2014,
180814E,GRADIENT CONSULTANTS LLP======,2099,33,345,ASBESTOS,21/08/2014,
180814E,GRADIENT CONSULTANTS LLP======,2099,34,55,ASBESTOS,21/08/2014,
180814E,GRADIENT CONSULTANTS LLP======,2099,35,201.25,ASBESTOS,21/08/2014,
180814E,GRADIENT CONSULTANTS LLP======,2099,36,290,ASBESTOS,21/08/2014,
180814E,GRADIENT CONSULTANTS LLP======,2099,37,55,ASBESTOS,21/08/2014,
180814E,GRADIENT CONSULTANTS LLP======,2099,38,55,ASBESTOS,21/08/2014,
180814E,GRADIENT CONSULTANTS LLP======,2099,39,195,ASBESTOS,21/08/2014,
180814E,GRADIENT CONSULTANTS LLP======,2099,40,300,ASBESTOS,21/08/2014,
180814E,GRADIENT CONSULTANTS LLP======,2099,41,290,ASBESTOS,21/08/2014,
180814E,GRADIENT CONSULTANTS LLP======,2099,42,55,ASBESTOS,21/08/2014,
180814E,GRADIENT CONSULTANTS LLP======,2099,43,250,ASBESTOS,21/08/2014,
180814E,GRADIENT CONSULTANTS LLP======,2099,44,62.5,ASBESTOS,21/08/2014,
180814E,GRADIENT CONSULTANTS LLP======,2099,45,195,ASBESTOS,21/08/2014,
180814E,GRADIENT CONSULTANTS LLP======,2099,46,97.5,ASBESTOS,21/08/2014,
180814E,GRADIENT CONSULTANTS LLP======,2099,47,300,ASBESTOS,21/08/2014,
180814E,GRADIENT CONSULTANTS LLP======,2099,48,195,ASBESTOS,21/08/2014,
180814E,GRADIENT CONSULTANTS LLP======,2099,49,55,ASBESTOS,21/08/2014,
180814E,GRADIENT CONSULTANTS LLP======,2099,50,55,ASBESTOS,21/08/2014,
180814E,GRADIENT CONSULTANTS LLP======,2099,51,290,ASBESTOS,21/08/2014,
180814E,GRADIENT CONSULTANTS LLP======,2099,52,55,ASBESTOS,21/08/2014,
180814E,GRADIENT CONSULTANTS LLP======,2099,53,146.25,ASBESTOS,21/08/2014,
180814E,GRADIENT CONSULTANTS LLP======,2099,54,55,ASBESTOS,21/08/2014,
180814E,GRADIENT CONSULTANTS LLP======,2099,55,97.5,ASBESTOS,21/08/2014,
180814E,GRADIENT CONSULTANTS LLP======,2099,56,290,ASBESTOS,21/08/2014,
180814E,GRADIENT CONSULTANTS LLP======,2099,57,55,ASBESTOS,21/08/2014,
180814E,GRADIENT CONSULTANTS LLP======,2099,58,290,ASBESTOS,21/08/2014,
180814E,GRADIENT CONSULTANTS LLP======,2099,59,152.5,ASBESTOS,21/08/2014,
180814E,GRADIENT CONSULTANTS LLP======,2099,60,55,ASBESTOS,21/08/2014,
180814E,GRADIENT CONSULTANTS LLP======,2099,61,250,ASBESTOS,21/08/2014,
180814E,GRADIENT CONSULTANTS LLP======,2099,62,80,ASBESTOS,21/08/2014,
180814E,GRADIENT CONSULTANTS LLP======,2099,63,97.5,ASBESTOS,21/08/2014,
180814E,GRADIENT CONSULTANTS LLP======,2099,64,290,ASBESTOS,21/08/2014,
180814E,GRADIENT CONSULTANTS LLP======,2099,65,195,ASBESTOS,21/08/2014,
180814E,GRADIENT CONSULTANTS LLP======,2099,66,55,ASBESTOS,21/08/2014,
180814E,GRADIENT CONSULTANTS LLP======,2099,67,146.25,ASBESTOS,21/08/2014,
180814E,GRADIENT CONSULTANTS LLP======,2099,68,195,ASBESTOS,21/08/2014,
180814E,GRADIENT CONSULTANTS LLP======,2099,69,195,ASBESTOS,21/08/2014,
180814E,GRADIENT CONSULTANTS LLP======,2099,70,146.25,ASBESTOS,21/08/2014,
180814E,GRADIENT CONSULTANTS LLP======,2099,71,55,ASBESTOS,21/08/2014,
180814E,GRADIENT CONSULTANTS LLP======,2099,72,55,ASBESTOS,21/08/2014,
180814E,GRADIENT CONSULTANTS LLP======,2099,73,195,ASBESTOS,21/08/2014,
180814E,GRADIENT CONSULTANTS LLP======,2099,74,545,ASBESTOS,21/08/2014,
180814E,GRADIENT CONSULTANTS LLP======,2099,75,62.5,ASBESTOS,21/08/2014,
180814E,GRADIENT CONSULTANTS LLP======,2099,76,490,ASBESTOS,21/08/2014,
180814E,GRADIENT CONSULTANTS LLP======,2099,77,290,ASBESTOS,21/08/2014,
180814E,GRADIENT CONSULTANTS LLP======,2099,78,187.5,ASBESTOS,21/08/2014,
180814E,GRADIENT CONSULTANTS LLP======,2099,79,195,ASBESTOS,21/08/2014,
180814E,GRADIENT CONSULTANTS LLP======,2099,80,55,ASBESTOS,21/08/2014,
180814E,GRADIENT CONSULTANTS LLP======,2099,81,195,ASBESTOS,21/08/2014,
180814E,GRADIENT CONSULTANTS LLP======,2099,82,55,ASBESTOS,21/08/2014,
180814E,GRADIENT CONSULTANTS LLP======,2099,83,55,ASBESTOS,21/08/2014,
180814E,GRADIENT CONSULTANTS LLP======,2099,84,"1,120.00",ASBESTOS,21/08/2014,
150814F,B NOKES CONTRACTS LTD,2292,1,470,TACTICAL DAY TO DAY,21/08/2014,470
130814G,VODAFONE LIMITED==============,232239,1,"1,015.00",TELECOMMUNICATIONS,21/08/2014,"1,203.06"
130814G,VODAFONE LIMITED==============,232239,2,188.06,TELECOMMUNICATIONS,21/08/2014,
010814E,VIGILANCE PROPERTIES,2413,1,"7,500.00",PREMISES SECURITY,21/08/2014,"7,500.00"
190814F,ARKAS LIMITED=================,25773,1,329.22,STRATEGIC (CYCLICAL),21/08/2014,"1,752.30"
190814F,ARKAS LIMITED=================,25773,2,817.1,STRATEGIC (CYCLICAL),21/08/2014,
190814F,ARKAS LIMITED=================,25773,3,247,STRATEGIC (CYCLICAL),21/08/2014,
190814F,ARKAS LIMITED=================,25773,4,358.98,STRATEGIC (CYCLICAL),21/08/2014,
190814F,ARKAS LIMITED=================,25775,1,214,TACTICAL DAY TO DAY,21/08/2014,"1,352.73"
190814F,ARKAS LIMITED=================,25775,2,247,TACTICAL DAY TO DAY,21/08/2014,
190814F,ARKAS LIMITED=================,25775,3,262.73,STRATEGIC (CYCLICAL),21/08/2014,
190814F,ARKAS LIMITED=================,25775,4,629,STRATEGIC (CYCLICAL),21/08/2014,
190814F,ARKAS LIMITED=================,25776,1,181,STRATEGIC (CYCLICAL),21/08/2014,"1,022.34"
190814F,ARKAS LIMITED=================,25776,2,197.5,STRATEGIC (CYCLICAL),21/08/2014,
190814F,ARKAS LIMITED=================,25776,3,252.76,STRATEGIC (CYCLICAL),21/08/2014,
190814F,ARKAS LIMITED=================,25776,4,391.08,STRATEGIC (CYCLICAL),21/08/2014,
190814F,ARKAS LIMITED=================,25777,1,181,STRATEGIC (CYCLICAL),21/08/2014,395
190814F,ARKAS LIMITED=================,25777,2,214,STRATEGIC (CYCLICAL),21/08/2014,
800052012,ADECCO UK LIMITED=============,26875745,1,571.47,FRS STAFF AGENCY,21/08/2014,571.47
800052040,ADECCO UK LIMITED=============,26879507,1,980.58,FRS STAFF AGENCY,21/08/2014,980.58
800052037,ADECCO UK LIMITED=============,26879510,1,"1,372.23",FRS STAFF AGENCY,21/08/2014,"1,372.23"
150814G,DELTOR COMMUNICATIONS LTD.===,27565,1,"5,180.00",PRINTING,21/08/2014,"5,180.00"
190814F,CARPETS & FLOOR COVERS DIRECT=,2985,1,"1,295.80",FIXTURES & FITTINGS,21/08/2014,"1,295.80"
190814F,CARPETS & FLOOR COVERS DIRECT=,2996,1,"3,259.83",FIXTURES & FITTINGS,21/08/2014,"3,259.83"
150814G,EUROLOOS LTD,30538,1,650,OPERATIONAL EQUIP-PURCHASE,21/08/2014,650
150814F,EVOLUTION ENVIRONMENTAL LTD,3255,1,305,ASBESTOS,21/08/2014,675
150814F,EVOLUTION ENVIRONMENTAL LTD,3255,2,185,ASBESTOS,21/08/2014,
150814F,EVOLUTION ENVIRONMENTAL LTD,3255,3,185,ASBESTOS,21/08/2014,
130814F,EVOLUTION ENVIRONMENTAL LTD,3256,1,305,ASBESTOS,21/08/2014,675
130814F,EVOLUTION ENVIRONMENTAL LTD,3256,2,185,ASBESTOS,21/08/2014,
130814F,EVOLUTION ENVIRONMENTAL LTD,3256,3,185,ASBESTOS,21/08/2014,
150814G,PRESTIGE PROJECTS LTD,3383,1,648,OPERATIONAL EQUIP-PURCHASE,21/08/2014,648
150814G,MPLC (INTERNATIONAL) LIMITED,341985,1,"9,397.10",FILM & VIDEO,21/08/2014,"9,397.10"
190814F,FOCUS & VISION TECHNOLOGY LTD,41771,1,523.4,MEDICAL EXPENSES CONTRACT,21/08/2014,523.4
150814G,SPORTSAFE UK LTD==============,460694,1,340,GYM EQUIPMENT,21/08/2014,340
150814G,SPORTSAFE UK LTD==============,460695,1,275,GYM EQUIPMENT,21/08/2014,275
150814G,SPORTSAFE UK LTD==============,460701,1,263.94,GYM EQUIPMENT,21/08/2014,263.94
150814G,SPORTSAFE UK LTD==============,460702,1,66.25,GYM EQUIPMENT,21/08/2014,323.77
150814G,SPORTSAFE UK LTD==============,460702,2,29.95,GYM EQUIPMENT,21/08/2014,
150814G,SPORTSAFE UK LTD==============,460702,3,103.88,GYM EQUIPMENT,21/08/2014,
150814G,SPORTSAFE UK LTD==============,460702,4,7.25,GYM EQUIPMENT,21/08/2014,
150814G,SPORTSAFE UK LTD==============,460702,5,51.44,GYM EQUIPMENT,21/08/2014,
150814G,SPORTSAFE UK LTD==============,460702,6,65,GYM EQUIPMENT,21/08/2014,
150814G,SPORTSAFE UK LTD==============,460703,1,150,GYM EQUIPMENT,21/08/2014,443.32
150814G,SPORTSAFE UK LTD==============,460703,2,103.88,GYM EQUIPMENT,21/08/2014,
150814G,SPORTSAFE UK LTD==============,460703,3,51.44,GYM EQUIPMENT,21/08/2014,
150814G,SPORTSAFE UK LTD==============,460703,4,138,GYM EQUIPMENT,21/08/2014,
800051702,*OCS GROUP UK LTD,5000028280-06,1,435,REFRESHMENTS,21/08/2014,435
140773,THAMES WATER UTILITIES LTD====,5179216119>,1,335.82,WATER & SEWERAGE RATES,21/08/2014,335.82
190814F,EX-OR LTD=====================,5230018861,1,696.85,STRATEGIC (CYCLICAL),21/08/2014,696.85
180814E,INDEC BECKENHAM LTD===========,5666,1,"2,480.00",DEVELOPMENT  EXPENSES-CONTRACT,21/08/2014,"2,480.00"
150814G,PREMIER HOSE TECHNOLOGIES LTD=,62996,1,"1,584.00",OPERATIONAL EQUIP-PURCHASE,21/08/2014,"1,609.00"
150814G,PREMIER HOSE TECHNOLOGIES LTD=,62996,2,25,OPERATIONAL EQUIP-PURCHASE,21/08/2014,
190814F,DISCLOSURE SCOTLAND===========,633224,1,325,CRB CHECKS,21/08/2014,325
140774,BRITISH GAS BUSINESS==========,6864507141,1,399.04,ELECTRICITY,21/08/2014,"12,586.70"
140774,BRITISH GAS BUSINESS==========,6864507141,2,315.92,ELECTRICITY,21/08/2014,
140774,BRITISH GAS BUSINESS==========,6864507141,3,501.74,ELECTRICITY,21/08/2014,
140774,BRITISH GAS BUSINESS==========,6864507141,4,555.09,ELECTRICITY,21/08/2014,
140774,BRITISH GAS BUSINESS==========,6864507141,5,445.67,ELECTRICITY,21/08/2014,
140774,BRITISH GAS BUSINESS==========,6864507141,6,406.25,ELECTRICITY,21/08/2014,
140774,BRITISH GAS BUSINESS==========,6864507141,7,532.67,ELECTRICITY,21/08/2014,
140774,BRITISH GAS BUSINESS==========,6864507141,8,122.83,ELECTRICITY,21/08/2014,
140774,BRITISH GAS BUSINESS==========,6864507141,9,414.35,ELECTRICITY,21/08/2014,
140774,BRITISH GAS BUSINESS==========,6864507141,10,524.34,ELECTRICITY,21/08/2014,
140774,BRITISH GAS BUSINESS==========,6864507141,11,231.4,ELECTRICITY,21/08/2014,
140774,BRITISH GAS BUSINESS==========,6864507141,12,168.31,ELECTRICITY,21/08/2014,
140774,BRITISH GAS BUSINESS==========,6864507141,13,374.46,ELECTRICITY,21/08/2014,
140774,BRITISH GAS BUSINESS==========,6864507141,14,616.6,ELECTRICITY,21/08/2014,
140774,BRITISH GAS BUSINESS==========,6864507141,15,451.94,ELECTRICITY,21/08/2014,
140774,BRITISH GAS BUSINESS==========,6864507141,16,344.97,ELECTRICITY,21/08/2014,
140774,BRITISH GAS BUSINESS==========,6864507141,17,155.82,ELECTRICITY,21/08/2014,
140774,BRITISH GAS BUSINESS==========,6864507141,18,160.72,ELECTRICITY,21/08/2014,
140774,BRITISH GAS BUSINESS==========,6864507141,19,60.49,ELECTRICITY,21/08/2014,
140774,BRITISH GAS BUSINESS==========,6864507141,20,30.65,ELECTRICITY,21/08/2014,
140774,BRITISH GAS BUSINESS==========,6864507141,21,725.28,ELECTRICITY,21/08/2014,
140774,BRITISH GAS BUSINESS==========,6864507141,22,61.6,ELECTRICITY,21/08/2014,
140774,BRITISH GAS BUSINESS==========,6864507141,23,182.47,ELECTRICITY,21/08/2014,
140774,BRITISH GAS BUSINESS==========,6864507141,24,21.46,ELECTRICITY,21/08/2014,
140774,BRITISH GAS BUSINESS==========,6864507141,25,13.21,ELECTRICITY,21/08/2014,
140774,BRITISH GAS BUSINESS==========,6864507141,26,17.11,ELECTRICITY,21/08/2014,
140774,BRITISH GAS BUSINESS==========,6864507141,27,540.36,ELECTRICITY,21/08/2014,
140774,BRITISH GAS BUSINESS==========,6864507141,28,"1,074.84",ELECTRICITY,21/08/2014,
140774,BRITISH GAS BUSINESS==========,6864507141,29,732.17,ELECTRICITY,21/08/2014,
140774,BRITISH GAS BUSINESS==========,6864507141,30,353.85,ELECTRICITY,21/08/2014,
140774,BRITISH GAS BUSINESS==========,6864507141,31,303.77,ELECTRICITY,21/08/2014,
140774,BRITISH GAS BUSINESS==========,6864507141,32,62.71,ELECTRICITY,21/08/2014,
140774,BRITISH GAS BUSINESS==========,6864507141,33,274.56,ELECTRICITY,21/08/2014,
140774,BRITISH GAS BUSINESS==========,6864507141,34,317.37,ELECTRICITY,21/08/2014,
140774,BRITISH GAS BUSINESS==========,6864507141,35,676.09,ELECTRICITY,21/08/2014,
140774,BRITISH GAS BUSINESS==========,6864507141,36,416.59,ELECTRICITY,21/08/2014,
140775,BRITISH GAS BUSINESS==========,6864507142,1,19.42,ELECTRICITY,21/08/2014,"12,153.67"
140775,BRITISH GAS BUSINESS==========,6864507142,2,357.19,ELECTRICITY,21/08/2014,
140775,BRITISH GAS BUSINESS==========,6864507142,3,21.93,ELECTRICITY,21/08/2014,
140775,BRITISH GAS BUSINESS==========,6864507142,4,343.1,ELECTRICITY,21/08/2014,
140775,BRITISH GAS BUSINESS==========,6864507142,5,329.68,ELECTRICITY,21/08/2014,
140775,BRITISH GAS BUSINESS==========,6864507142,6,70.1,ELECTRICITY,21/08/2014,
140775,BRITISH GAS BUSINESS==========,6864507142,7,632.62,ELECTRICITY,21/08/2014,
140775,BRITISH GAS BUSINESS==========,6864507142,8,18.5,ELECTRICITY,21/08/2014,
140775,BRITISH GAS BUSINESS==========,6864507142,9,165.58,ELECTRICITY,21/08/2014,
140775,BRITISH GAS BUSINESS==========,6864507142,10,626.7,ELECTRICITY,21/08/2014,
140775,BRITISH GAS BUSINESS==========,6864507142,11,14.43,ELECTRICITY,21/08/2014,
140775,BRITISH GAS BUSINESS==========,6864507142,12,356.98,ELECTRICITY,21/08/2014,
140775,BRITISH GAS BUSINESS==========,6864507142,13,497.52,ELECTRICITY,21/08/2014,
140775,BRITISH GAS BUSINESS==========,6864507142,14,383.38,ELECTRICITY,21/08/2014,
140775,BRITISH GAS BUSINESS==========,6864507142,15,119.34,ELECTRICITY,21/08/2014,
140775,BRITISH GAS BUSINESS==========,6864507142,16,26.74,ELECTRICITY,21/08/2014,
140775,BRITISH GAS BUSINESS==========,6864507142,17,229.62,ELECTRICITY,21/08/2014,
140775,BRITISH GAS BUSINESS==========,6864507142,18,"1,600.98",ELECTRICITY,21/08/2014,
140775,BRITISH GAS BUSINESS==========,6864507142,19,27.93,ELECTRICITY,21/08/2014,
140775,BRITISH GAS BUSINESS==========,6864507142,20,81.97,ELECTRICITY,21/08/2014,
140775,BRITISH GAS BUSINESS==========,6864507142,21,551.24,ELECTRICITY,21/08/2014,
140775,BRITISH GAS BUSINESS==========,6864507142,22,287.26,ELECTRICITY,21/08/2014,
140775,BRITISH GAS BUSINESS==========,6864507142,23,302.29,ELECTRICITY,21/08/2014,
140775,BRITISH GAS BUSINESS==========,6864507142,24,246.52,ELECTRICITY,21/08/2014,
140775,BRITISH GAS BUSINESS==========,6864507142,25,380.32,ELECTRICITY,21/08/2014,
140775,BRITISH GAS BUSINESS==========,6864507142,26,564.26,ELECTRICITY,21/08/2014,
140775,BRITISH GAS BUSINESS==========,6864507142,27,403.71,ELECTRICITY,21/08/2014,
140775,BRITISH GAS BUSINESS==========,6864507142,28,160.39,ELECTRICITY,21/08/2014,
140775,BRITISH GAS BUSINESS==========,6864507142,29,308.79,ELECTRICITY,21/08/2014,
140775,BRITISH GAS BUSINESS==========,6864507142,30,303.28,ELECTRICITY,21/08/2014,
140775,BRITISH GAS BUSINESS==========,6864507142,31,434.81,ELECTRICITY,21/08/2014,
140775,BRITISH GAS BUSINESS==========,6864507142,32,290.27,ELECTRICITY,21/08/2014,
140775,BRITISH GAS BUSINESS==========,6864507142,33,500.17,ELECTRICITY,21/08/2014,
140775,BRITISH GAS BUSINESS==========,6864507142,34,588.95,ELECTRICITY,21/08/2014,
140775,BRITISH GAS BUSINESS==========,6864507142,35,576.53,ELECTRICITY,21/08/2014,
140775,BRITISH GAS BUSINESS==========,6864507142,36,317.34,ELECTRICITY,21/08/2014,
140775,BRITISH GAS BUSINESS==========,6864507142,37,13.83,ELECTRICITY,21/08/2014,
140776,BRITISH GAS BUSINESS==========,6864507143,1,177.87,ELECTRICITY,21/08/2014,"12,399.96"
140776,BRITISH GAS BUSINESS==========,6864507143,2,154.47,ELECTRICITY,21/08/2014,
140776,BRITISH GAS BUSINESS==========,6864507143,3,41.77,ELECTRICITY,21/08/2014,
140776,BRITISH GAS BUSINESS==========,6864507143,4,27.49,ELECTRICITY,21/08/2014,
140776,BRITISH GAS BUSINESS==========,6864507143,5,161.08,ELECTRICITY,21/08/2014,
140776,BRITISH GAS BUSINESS==========,6864507143,6,239.31,ELECTRICITY,21/08/2014,
140776,BRITISH GAS BUSINESS==========,6864507143,7,39.82,ELECTRICITY,21/08/2014,
140776,BRITISH GAS BUSINESS==========,6864507143,8,352.4,ELECTRICITY,21/08/2014,
140776,BRITISH GAS BUSINESS==========,6864507143,9,860.5,ELECTRICITY,21/08/2014,
140776,BRITISH GAS BUSINESS==========,6864507143,10,591.9,ELECTRICITY,21/08/2014,
140776,BRITISH GAS BUSINESS==========,6864507143,11,405.4,ELECTRICITY,21/08/2014,
140776,BRITISH GAS BUSINESS==========,6864507143,12,208.55,ELECTRICITY,21/08/2014,
140776,BRITISH GAS BUSINESS==========,6864507143,13,"1,157.11",ELECTRICITY,21/08/2014,
140776,BRITISH GAS BUSINESS==========,6864507143,14,266,ELECTRICITY,21/08/2014,
140776,BRITISH GAS BUSINESS==========,6864507143,15,624.73,ELECTRICITY,21/08/2014,
140776,BRITISH GAS BUSINESS==========,6864507143,16,278.65,ELECTRICITY,21/08/2014,
140776,BRITISH GAS BUSINESS==========,6864507143,17,150.41,ELECTRICITY,21/08/2014,
140776,BRITISH GAS BUSINESS==========,6864507143,18,257.19,ELECTRICITY,21/08/2014,
140776,BRITISH GAS BUSINESS==========,6864507143,19,501.85,ELECTRICITY,21/08/2014,
140776,BRITISH GAS BUSINESS==========,6864507143,20,277.5,ELECTRICITY,21/08/2014,
140776,BRITISH GAS BUSINESS==========,6864507143,21,428.67,ELECTRICITY,21/08/2014,
140776,BRITISH GAS BUSINESS==========,6864507143,22,969.25,ELECTRICITY,21/08/2014,
140776,BRITISH GAS BUSINESS==========,6864507143,23,341.08,ELECTRICITY,21/08/2014,
140776,BRITISH GAS BUSINESS==========,6864507143,24,409.05,ELECTRICITY,21/08/2014,
140776,BRITISH GAS BUSINESS==========,6864507143,25,298.28,ELECTRICITY,21/08/2014,
140776,BRITISH GAS BUSINESS==========,6864507143,26,682.42,ELECTRICITY,21/08/2014,
140776,BRITISH GAS BUSINESS==========,6864507143,27,302.16,ELECTRICITY,21/08/2014,
140776,BRITISH GAS BUSINESS==========,6864507143,28,343.68,ELECTRICITY,21/08/2014,
140776,BRITISH GAS BUSINESS==========,6864507143,29,306.71,ELECTRICITY,21/08/2014,
140776,BRITISH GAS BUSINESS==========,6864507143,30,373.09,ELECTRICITY,21/08/2014,
140776,BRITISH GAS BUSINESS==========,6864507143,31,582.99,ELECTRICITY,21/08/2014,
140776,BRITISH GAS BUSINESS==========,6864507143,32,461.73,ELECTRICITY,21/08/2014,
140776,BRITISH GAS BUSINESS==========,6864507143,33,42.32,ELECTRICITY,21/08/2014,
140776,BRITISH GAS BUSINESS==========,6864507143,34,33.99,ELECTRICITY,21/08/2014,
140776,BRITISH GAS BUSINESS==========,6864507143,35,25.27,ELECTRICITY,21/08/2014,
140776,BRITISH GAS BUSINESS==========,6864507143,36,25.27,ELECTRICITY,21/08/2014,
140777,BRITISH GAS BUSINESS==========,6864507144,1,404.65,ELECTRICITY,21/08/2014,"13,467.47"
140777,BRITISH GAS BUSINESS==========,6864507144,2,193.4,ELECTRICITY,21/08/2014,
140777,BRITISH GAS BUSINESS==========,6864507144,3,701.21,ELECTRICITY,21/08/2014,
140777,BRITISH GAS BUSINESS==========,6864507144,4,169.3,ELECTRICITY,21/08/2014,
140777,BRITISH GAS BUSINESS==========,6864507144,5,298.9,ELECTRICITY,21/08/2014,
140777,BRITISH GAS BUSINESS==========,6864507144,6,196.85,ELECTRICITY,21/08/2014,
140777,BRITISH GAS BUSINESS==========,6864507144,7,436.01,ELECTRICITY,21/08/2014,
140777,BRITISH GAS BUSINESS==========,6864507144,8,731.65,ELECTRICITY,21/08/2014,
140777,BRITISH GAS BUSINESS==========,6864507144,9,"2,600.31",ELECTRICITY,21/08/2014,
140777,BRITISH GAS BUSINESS==========,6864507144,10,222.94,ELECTRICITY,21/08/2014,
140777,BRITISH GAS BUSINESS==========,6864507144,11,23.13,ELECTRICITY,21/08/2014,
140777,BRITISH GAS BUSINESS==========,6864507144,12,160.04,ELECTRICITY,21/08/2014,
140777,BRITISH GAS BUSINESS==========,6864507144,13,550.84,ELECTRICITY,21/08/2014,
140777,BRITISH GAS BUSINESS==========,6864507144,14,434.85,ELECTRICITY,21/08/2014,
140777,BRITISH GAS BUSINESS==========,6864507144,15,300.68,ELECTRICITY,21/08/2014,
140777,BRITISH GAS BUSINESS==========,6864507144,16,417.62,ELECTRICITY,21/08/2014,
140777,BRITISH GAS BUSINESS==========,6864507144,17,663.49,ELECTRICITY,21/08/2014,
140777,BRITISH GAS BUSINESS==========,6864507144,18,408.62,ELECTRICITY,21/08/2014,
140777,BRITISH GAS BUSINESS==========,6864507144,19,"1,210.99",ELECTRICITY,21/08/2014,
140777,BRITISH GAS BUSINESS==========,6864507144,20,329.99,ELECTRICITY,21/08/2014,
140777,BRITISH GAS BUSINESS==========,6864507144,21,321.25,ELECTRICITY,21/08/2014,
140777,BRITISH GAS BUSINESS==========,6864507144,22,444.76,ELECTRICITY,21/08/2014,
140777,BRITISH GAS BUSINESS==========,6864507144,23,18.87,ELECTRICITY,21/08/2014,
140777,BRITISH GAS BUSINESS==========,6864507144,24,17.12,ELECTRICITY,21/08/2014,
140777,BRITISH GAS BUSINESS==========,6864507144,25,14.51,ELECTRICITY,21/08/2014,
140777,BRITISH GAS BUSINESS==========,6864507144,26,271.86,ELECTRICITY,21/08/2014,
140777,BRITISH GAS BUSINESS==========,6864507144,27,456.21,ELECTRICITY,21/08/2014,
140777,BRITISH GAS BUSINESS==========,6864507144,28,217.44,ELECTRICITY,21/08/2014,
140777,BRITISH GAS BUSINESS==========,6864507144,29,411.34,ELECTRICITY,21/08/2014,
140777,BRITISH GAS BUSINESS==========,6864507144,30,318.99,ELECTRICITY,21/08/2014,
140777,BRITISH GAS BUSINESS==========,6864507144,31,367.65,ELECTRICITY,21/08/2014,
140777,BRITISH GAS BUSINESS==========,6864507144,32,13.86,ELECTRICITY,21/08/2014,
140777,BRITISH GAS BUSINESS==========,6864507144,33,138.14,ELECTRICITY,21/08/2014,
150814G,SWEETT  UK LTD,7041585,1,494.36,PROF FEES-MISCELLANEOUS,21/08/2014,494.36
150814G,SWEETT  UK LTD,7041596,1,885.01,PROF FEES-MISCELLANEOUS,21/08/2014,885.01
050814H,MERLIN ELECTRICAL SERVICES LTD,7098,1,"7,906.52",DAY TO DAY MINOR IMPS,21/08/2014,"7,906.52"
210814F,DEFENCE FIRE TRAINING &,7367378,1,"1,438.00",OPERATIONAL EQUIP-PURCHASE,21/08/2014,"1,438.00"
150814G,*SP SERVICES,742625,1,1.8,HYGIENE,21/08/2014,254.82
150814G,*SP SERVICES,742625,2,3.45,HYGIENE,21/08/2014,
150814G,*SP SERVICES,742625,3,6.8,HYGIENE,21/08/2014,
150814G,*SP SERVICES,742625,4,4.1,HYGIENE,21/08/2014,
150814G,*SP SERVICES,742625,5,3.92,HYGIENE,21/08/2014,
150814G,*SP SERVICES,742625,6,5.56,HYGIENE,21/08/2014,
150814G,*SP SERVICES,742625,7,5.56,HYGIENE,21/08/2014,
150814G,*SP SERVICES,742625,8,67.84,HYGIENE,21/08/2014,
150814G,*SP SERVICES,742625,9,19.8,HYGIENE,21/08/2014,
150814G,*SP SERVICES,742625,10,12.6,HYGIENE,21/08/2014,
150814G,*SP SERVICES,742625,11,1.8,HYGIENE,21/08/2014,
150814G,*SP SERVICES,742625,12,3.45,HYGIENE,21/08/2014,
150814G,*SP SERVICES,742625,13,6.8,HYGIENE,21/08/2014,
150814G,*SP SERVICES,742625,14,4.1,HYGIENE,21/08/2014,
150814G,*SP SERVICES,742625,15,2.94,HYGIENE,21/08/2014,
150814G,*SP SERVICES,742625,16,5.56,HYGIENE,21/08/2014,
150814G,*SP SERVICES,742625,17,5.56,HYGIENE,21/08/2014,
150814G,*SP SERVICES,742625,18,12.6,HYGIENE,21/08/2014,
150814G,*SP SERVICES,742625,19,29.7,HYGIENE,21/08/2014,
150814G,*SP SERVICES,742625,20,50.88,HYGIENE,21/08/2014,
140814G,GREATER MANCHESTER FRS=======,76059120006,1,"11,805.91",FIRE AUTHORITIES,21/08/2014,"11,805.91"
190814F,BLUE KELD SPRINGS LTD=========,8003050,1,"2,079.00",UNIFORMS - POMS,21/08/2014,"2,079.00"
190814F,BLUE KELD SPRINGS LTD=========,8003051,1,"2,425.50",UNIFORMS - POMS,21/08/2014,"2,425.50"
130814F,DRAEGER SAFETY UK LIMITED=====,90453505,1,177.3,PROTECTIVE EQUIPT - PARTS,21/08/2014,"2,767.56"
130814F,DRAEGER SAFETY UK LIMITED=====,90453505,2,52.91,PROTECTIVE EQUIPT - PARTS,21/08/2014,
130814F,DRAEGER SAFETY UK LIMITED=====,90453505,3,709.25,PROTECTIVE EQUIPT - PARTS,21/08/2014,
130814F,DRAEGER SAFETY UK LIMITED=====,90453505,4,265.5,PROTECTIVE EQUIPT - PARTS,21/08/2014,
130814F,DRAEGER SAFETY UK LIMITED=====,90453505,5,285.2,PROTECTIVE EQUIPT - PARTS,21/08/2014,
130814F,DRAEGER SAFETY UK LIMITED=====,90453505,6,138.8,PROTECTIVE EQUIPT - PARTS,21/08/2014,
130814F,DRAEGER SAFETY UK LIMITED=====,90453505,7,"1,138.60",PROTECTIVE EQUIPT - PARTS,21/08/2014,
080814H,DRAEGER SAFETY UK LIMITED=====,90453575,1,"1,359.00",PROTECTIVE EQUIPT - PARTS,21/08/2014,"2,728.40"
080814H,DRAEGER SAFETY UK LIMITED=====,90453575,2,851.1,PROTECTIVE EQUIPT - PARTS,21/08/2014,
080814H,DRAEGER SAFETY UK LIMITED=====,90453575,3,285.2,PROTECTIVE EQUIPT - PARTS,21/08/2014,
080814H,DRAEGER SAFETY UK LIMITED=====,90453575,4,233.1,PROTECTIVE EQUIPT - PARTS,21/08/2014,
190814F,ROYAL MAIL (LONDON DIVISION)==,9047929698,1,291.25,POSTAL SERVICES,21/08/2014,291.25
140773,THAMES WATER UTILITIES LTD====,95240-85193\,1,941.86,WATER & SEWERAGE RATES,21/08/2014,941.86
800052139,ALLSTAR BUSINESS SOLUTIONS LTD,E2003236602,1,"1,274.37",FUEL,21/08/2014,"20,191.32"
800052139,ALLSTAR BUSINESS SOLUTIONS LTD,E2003236602,2,598.66,FUEL,21/08/2014,
800052139,ALLSTAR BUSINESS SOLUTIONS LTD,E2003236602,3,553.08,FUEL,21/08/2014,
800052139,ALLSTAR BUSINESS SOLUTIONS LTD,E2003236602,4,491.27,FUEL,21/08/2014,
800052139,ALLSTAR BUSINESS SOLUTIONS LTD,E2003236602,5,430.94,FUEL,21/08/2014,
800052139,ALLSTAR BUSINESS SOLUTIONS LTD,E2003236602,6,427.89,FUEL,21/08/2014,
800052139,ALLSTAR BUSINESS SOLUTIONS LTD,E2003236602,7,416.62,FUEL,21/08/2014,
800052139,ALLSTAR BUSINESS SOLUTIONS LTD,E2003236602,8,362.27,FUEL,21/08/2014,
800052139,ALLSTAR BUSINESS SOLUTIONS LTD,E2003236602,9,361.79,FUEL,21/08/2014,
800052139,ALLSTAR BUSINESS SOLUTIONS LTD,E2003236602,10,356.23,FUEL,21/08/2014,
800052139,ALLSTAR BUSINESS SOLUTIONS LTD,E2003236602,11,355.77,FUEL,21/08/2014,
800052139,ALLSTAR BUSINESS SOLUTIONS LTD,E2003236602,12,346.54,FUEL,21/08/2014,
800052139,ALLSTAR BUSINESS SOLUTIONS LTD,E2003236602,13,338.29,FUEL,21/08/2014,
800052139,ALLSTAR BUSINESS SOLUTIONS LTD,E2003236602,14,330.01,FUEL,21/08/2014,
800052139,ALLSTAR BUSINESS SOLUTIONS LTD,E2003236602,15,328.54,FUEL,21/08/2014,
800052139,ALLSTAR BUSINESS SOLUTIONS LTD,E2003236602,16,327.42,FUEL,21/08/2014,
800052139,ALLSTAR BUSINESS SOLUTIONS LTD,E2003236602,17,319.59,FUEL,21/08/2014,
800052139,ALLSTAR BUSINESS SOLUTIONS LTD,E2003236602,18,316.95,FUEL,21/08/2014,
800052139,ALLSTAR BUSINESS SOLUTIONS LTD,E2003236602,19,313.21,FUEL,21/08/2014,
800052139,ALLSTAR BUSINESS SOLUTIONS LTD,E2003236602,20,297.23,FUEL,21/08/2014,
800052139,ALLSTAR BUSINESS SOLUTIONS LTD,E2003236602,21,297.06,FUEL,21/08/2014,
800052139,ALLSTAR BUSINESS SOLUTIONS LTD,E2003236602,22,294.48,FUEL,21/08/2014,
800052139,ALLSTAR BUSINESS SOLUTIONS LTD,E2003236602,23,276.86,FUEL,21/08/2014,
800052139,ALLSTAR BUSINESS SOLUTIONS LTD,E2003236602,24,275.53,FUEL,21/08/2014,
800052139,ALLSTAR BUSINESS SOLUTIONS LTD,E2003236602,25,274.94,FUEL,21/08/2014,
800052139,ALLSTAR BUSINESS SOLUTIONS LTD,E2003236602,26,272.24,FUEL,21/08/2014,
800052139,ALLSTAR BUSINESS SOLUTIONS LTD,E2003236602,27,263.21,FUEL,21/08/2014,
800052139,ALLSTAR BUSINESS SOLUTIONS LTD,E2003236602,28,263.21,FUEL,21/08/2014,
800052139,ALLSTAR BUSINESS SOLUTIONS LTD,E2003236602,29,258.59,FUEL,21/08/2014,
800052139,ALLSTAR BUSINESS SOLUTIONS LTD,E2003236602,30,255.56,FUEL,21/08/2014,
800052139,ALLSTAR BUSINESS SOLUTIONS LTD,E2003236602,31,253.76,FUEL,21/08/2014,
800052139,ALLSTAR BUSINESS SOLUTIONS LTD,E2003236602,32,252.86,FUEL,21/08/2014,
800052139,ALLSTAR BUSINESS SOLUTIONS LTD,E2003236602,33,251.04,FUEL,21/08/2014,
800052139,ALLSTAR BUSINESS SOLUTIONS LTD,E2003236602,34,237.29,FUEL,21/08/2014,
800052139,ALLSTAR BUSINESS SOLUTIONS LTD,E2003236602,35,231.65,FUEL,21/08/2014,
800052139,ALLSTAR BUSINESS SOLUTIONS LTD,E2003236602,36,220.89,FUEL,21/08/2014,
800052139,ALLSTAR BUSINESS SOLUTIONS LTD,E2003236602,37,214.48,FUEL,21/08/2014,
800052139,ALLSTAR BUSINESS SOLUTIONS LTD,E2003236602,38,212.16,FUEL,21/08/2014,
800052139,ALLSTAR BUSINESS SOLUTIONS LTD,E2003236602,39,201.25,FUEL,21/08/2014,
800052139,ALLSTAR BUSINESS SOLUTIONS LTD,E2003236602,40,197.54,FUEL,21/08/2014,
800052139,ALLSTAR BUSINESS SOLUTIONS LTD,E2003236602,41,188.25,FUEL,21/08/2014,
800052139,ALLSTAR BUSINESS SOLUTIONS LTD,E2003236602,42,186.53,FUEL,21/08/2014,
800052139,ALLSTAR BUSINESS SOLUTIONS LTD,E2003236602,43,184.68,FUEL,21/08/2014,
800052139,ALLSTAR BUSINESS SOLUTIONS LTD,E2003236602,44,183.65,FUEL,21/08/2014,
800052139,ALLSTAR BUSINESS SOLUTIONS LTD,E2003236602,45,181.04,FUEL,21/08/2014,
800052139,ALLSTAR BUSINESS SOLUTIONS LTD,E2003236602,46,177.84,FUEL,21/08/2014,
800052139,ALLSTAR BUSINESS SOLUTIONS LTD,E2003236602,47,166.11,FUEL,21/08/2014,
800052139,ALLSTAR BUSINESS SOLUTIONS LTD,E2003236602,48,163.13,FUEL,21/08/2014,
800052139,ALLSTAR BUSINESS SOLUTIONS LTD,E2003236602,49,160.22,FUEL,21/08/2014,
800052139,ALLSTAR BUSINESS SOLUTIONS LTD,E2003236602,50,160.12,FUEL,21/08/2014,
800052139,ALLSTAR BUSINESS SOLUTIONS LTD,E2003236602,51,156.28,FUEL,21/08/2014,
800052139,ALLSTAR BUSINESS SOLUTIONS LTD,E2003236602,52,152.99,FUEL,21/08/2014,
800052139,ALLSTAR BUSINESS SOLUTIONS LTD,E2003236602,53,151.75,FUEL,21/08/2014,
800052139,ALLSTAR BUSINESS SOLUTIONS LTD,E2003236602,54,149.66,FUEL,21/08/2014,
800052139,ALLSTAR BUSINESS SOLUTIONS LTD,E2003236602,55,148.7,FUEL,21/08/2014,
800052139,ALLSTAR BUSINESS SOLUTIONS LTD,E2003236602,56,147.69,FUEL,21/08/2014,
800052139,ALLSTAR BUSINESS SOLUTIONS LTD,E2003236602,57,143.93,FUEL,21/08/2014,
800052139,ALLSTAR BUSINESS SOLUTIONS LTD,E2003236602,58,143.74,FUEL,21/08/2014,
800052139,ALLSTAR BUSINESS SOLUTIONS LTD,E2003236602,59,140.07,FUEL,21/08/2014,
800052139,ALLSTAR BUSINESS SOLUTIONS LTD,E2003236602,60,138.58,FUEL,21/08/2014,
800052139,ALLSTAR BUSINESS SOLUTIONS LTD,E2003236602,61,137.62,FUEL,21/08/2014,
800052139,ALLSTAR BUSINESS SOLUTIONS LTD,E2003236602,62,135.56,FUEL,21/08/2014,
800052139,ALLSTAR BUSINESS SOLUTIONS LTD,E2003236602,63,129.58,FUEL,21/08/2014,
800052139,ALLSTAR BUSINESS SOLUTIONS LTD,E2003236602,64,126.86,FUEL,21/08/2014,
800052139,ALLSTAR BUSINESS SOLUTIONS LTD,E2003236602,65,126.59,FUEL,21/08/2014,
800052139,ALLSTAR BUSINESS SOLUTIONS LTD,E2003236602,66,125.75,FUEL,21/08/2014,
800052139,ALLSTAR BUSINESS SOLUTIONS LTD,E2003236602,67,122.71,FUEL,21/08/2014,
800052139,ALLSTAR BUSINESS SOLUTIONS LTD,E2003236602,68,117.09,FUEL,21/08/2014,
800052139,ALLSTAR BUSINESS SOLUTIONS LTD,E2003236602,69,116.66,FUEL,21/08/2014,
800052139,ALLSTAR BUSINESS SOLUTIONS LTD,E2003236602,70,116.43,FUEL,21/08/2014,
800052139,ALLSTAR BUSINESS SOLUTIONS LTD,E2003236602,71,115.77,FUEL,21/08/2014,
800052139,ALLSTAR BUSINESS SOLUTIONS LTD,E2003236602,72,112.72,FUEL,21/08/2014,
800052139,ALLSTAR BUSINESS SOLUTIONS LTD,E2003236602,73,111.24,FUEL,21/08/2014,
800052139,ALLSTAR BUSINESS SOLUTIONS LTD,E2003236602,74,110.95,FUEL,21/08/2014,
800052139,ALLSTAR BUSINESS SOLUTIONS LTD,E2003236602,75,107.48,FUEL,21/08/2014,
800052139,ALLSTAR BUSINESS SOLUTIONS LTD,E2003236602,76,103.51,FUEL,21/08/2014,
800052139,ALLSTAR BUSINESS SOLUTIONS LTD,E2003236602,77,101.33,FUEL,21/08/2014,
800052139,ALLSTAR BUSINESS SOLUTIONS LTD,E2003236602,78,99.31,FUEL,21/08/2014,
800052139,ALLSTAR BUSINESS SOLUTIONS LTD,E2003236602,79,96.64,FUEL,21/08/2014,
800052139,ALLSTAR BUSINESS SOLUTIONS LTD,E2003236602,80,93.52,FUEL,21/08/2014,
800052139,ALLSTAR BUSINESS SOLUTIONS LTD,E2003236602,81,92.25,FUEL,21/08/2014,
800052139,ALLSTAR BUSINESS SOLUTIONS LTD,E2003236602,82,91.67,FUEL,21/08/2014,
800052139,ALLSTAR BUSINESS SOLUTIONS LTD,E2003236602,83,83.29,FUEL,21/08/2014,
800052139,ALLSTAR BUSINESS SOLUTIONS LTD,E2003236602,84,80.88,FUEL,21/08/2014,
800052139,ALLSTAR BUSINESS SOLUTIONS LTD,E2003236602,85,79.13,FUEL,21/08/2014,
800052139,ALLSTAR BUSINESS SOLUTIONS LTD,E2003236602,86,77.26,FUEL,21/08/2014,
800052139,ALLSTAR BUSINESS SOLUTIONS LTD,E2003236602,87,77.06,FUEL,21/08/2014,
800052139,ALLSTAR BUSINESS SOLUTIONS LTD,E2003236602,88,75.05,FUEL,21/08/2014,
800052139,ALLSTAR BUSINESS SOLUTIONS LTD,E2003236602,89,72.69,FUEL,21/08/2014,
800052139,ALLSTAR BUSINESS SOLUTIONS LTD,E2003236602,90,61.38,FUEL,21/08/2014,
800052139,ALLSTAR BUSINESS SOLUTIONS LTD,E2003236602,91,58.58,FUEL,21/08/2014,
800052139,ALLSTAR BUSINESS SOLUTIONS LTD,E2003236602,92,53.24,FUEL,21/08/2014,
800052139,ALLSTAR BUSINESS SOLUTIONS LTD,E2003236602,93,49.63,FUEL,21/08/2014,
800052139,ALLSTAR BUSINESS SOLUTIONS LTD,E2003236602,94,45,FUEL,21/08/2014,
800052139,ALLSTAR BUSINESS SOLUTIONS LTD,E2003236602,95,36.7,FUEL,21/08/2014,
800052139,ALLSTAR BUSINESS SOLUTIONS LTD,E2003236602,96,27.9,FUEL,21/08/2014,
800052139,ALLSTAR BUSINESS SOLUTIONS LTD,E2003236602,97,24.88,FUEL,21/08/2014,
800052139,ALLSTAR BUSINESS SOLUTIONS LTD,E2003236602,98,21.18,FUEL,21/08/2014,
800052140,ALLSTAR BUSINESS SOLUTIONS LTD,E2003316968,1,"1,504.81",FUEL,21/08/2014,"21,936.53"
800052140,ALLSTAR BUSINESS SOLUTIONS LTD,E2003316968,2,755.22,FUEL,21/08/2014,
800052140,ALLSTAR BUSINESS SOLUTIONS LTD,E2003316968,3,714.76,FUEL,21/08/2014,
800052140,ALLSTAR BUSINESS SOLUTIONS LTD,E2003316968,4,579.06,FUEL,21/08/2014,
800052140,ALLSTAR BUSINESS SOLUTIONS LTD,E2003316968,5,497.98,FUEL,21/08/2014,
800052140,ALLSTAR BUSINESS SOLUTIONS LTD,E2003316968,6,458.51,FUEL,21/08/2014,
800052140,ALLSTAR BUSINESS SOLUTIONS LTD,E2003316968,7,418.83,FUEL,21/08/2014,
800052140,ALLSTAR BUSINESS SOLUTIONS LTD,E2003316968,8,411.43,FUEL,21/08/2014,
800052140,ALLSTAR BUSINESS SOLUTIONS LTD,E2003316968,9,401.34,FUEL,21/08/2014,
800052140,ALLSTAR BUSINESS SOLUTIONS LTD,E2003316968,10,377.87,FUEL,21/08/2014,
800052140,ALLSTAR BUSINESS SOLUTIONS LTD,E2003316968,11,373.14,FUEL,21/08/2014,
800052140,ALLSTAR BUSINESS SOLUTIONS LTD,E2003316968,12,373.05,FUEL,21/08/2014,
800052140,ALLSTAR BUSINESS SOLUTIONS LTD,E2003316968,13,362.16,FUEL,21/08/2014,
800052140,ALLSTAR BUSINESS SOLUTIONS LTD,E2003316968,14,355.46,FUEL,21/08/2014,
800052140,ALLSTAR BUSINESS SOLUTIONS LTD,E2003316968,15,354.61,FUEL,21/08/2014,
800052140,ALLSTAR BUSINESS SOLUTIONS LTD,E2003316968,16,348.57,FUEL,21/08/2014,
800052140,ALLSTAR BUSINESS SOLUTIONS LTD,E2003316968,17,332.79,FUEL,21/08/2014,
800052140,ALLSTAR BUSINESS SOLUTIONS LTD,E2003316968,18,329.19,FUEL,21/08/2014,
800052140,ALLSTAR BUSINESS SOLUTIONS LTD,E2003316968,19,325.51,FUEL,21/08/2014,
800052140,ALLSTAR BUSINESS SOLUTIONS LTD,E2003316968,20,315.78,FUEL,21/08/2014,
800052140,ALLSTAR BUSINESS SOLUTIONS LTD,E2003316968,21,310.75,FUEL,21/08/2014,
800052140,ALLSTAR BUSINESS SOLUTIONS LTD,E2003316968,22,310.74,FUEL,21/08/2014,
800052140,ALLSTAR BUSINESS SOLUTIONS LTD,E2003316968,23,300.04,FUEL,21/08/2014,
800052140,ALLSTAR BUSINESS SOLUTIONS LTD,E2003316968,24,294.28,FUEL,21/08/2014,
800052140,ALLSTAR BUSINESS SOLUTIONS LTD,E2003316968,25,293.2,FUEL,21/08/2014,
800052140,ALLSTAR BUSINESS SOLUTIONS LTD,E2003316968,26,292.34,FUEL,21/08/2014,
800052140,ALLSTAR BUSINESS SOLUTIONS LTD,E2003316968,27,285.54,FUEL,21/08/2014,
800052140,ALLSTAR BUSINESS SOLUTIONS LTD,E2003316968,28,281.03,FUEL,21/08/2014,
800052140,ALLSTAR BUSINESS SOLUTIONS LTD,E2003316968,29,279.88,FUEL,21/08/2014,
800052140,ALLSTAR BUSINESS SOLUTIONS LTD,E2003316968,30,277.58,FUEL,21/08/2014,
800052140,ALLSTAR BUSINESS SOLUTIONS LTD,E2003316968,31,274.77,FUEL,21/08/2014,
800052140,ALLSTAR BUSINESS SOLUTIONS LTD,E2003316968,32,261.82,FUEL,21/08/2014,
800052140,ALLSTAR BUSINESS SOLUTIONS LTD,E2003316968,33,260.16,FUEL,21/08/2014,
800052140,ALLSTAR BUSINESS SOLUTIONS LTD,E2003316968,34,258.56,FUEL,21/08/2014,
800052140,ALLSTAR BUSINESS SOLUTIONS LTD,E2003316968,35,256.68,FUEL,21/08/2014,
800052140,ALLSTAR BUSINESS SOLUTIONS LTD,E2003316968,36,254.7,FUEL,21/08/2014,
800052140,ALLSTAR BUSINESS SOLUTIONS LTD,E2003316968,37,252.42,FUEL,21/08/2014,
800052140,ALLSTAR BUSINESS SOLUTIONS LTD,E2003316968,38,251.22,FUEL,21/08/2014,
800052140,ALLSTAR BUSINESS SOLUTIONS LTD,E2003316968,39,243.99,FUEL,21/08/2014,
800052140,ALLSTAR BUSINESS SOLUTIONS LTD,E2003316968,40,218.46,FUEL,21/08/2014,
800052140,ALLSTAR BUSINESS SOLUTIONS LTD,E2003316968,41,202.27,FUEL,21/08/2014,
800052140,ALLSTAR BUSINESS SOLUTIONS LTD,E2003316968,42,197.42,FUEL,21/08/2014,
800052140,ALLSTAR BUSINESS SOLUTIONS LTD,E2003316968,43,194.45,FUEL,21/08/2014,
800052140,ALLSTAR BUSINESS SOLUTIONS LTD,E2003316968,44,184.57,FUEL,21/08/2014,
800052140,ALLSTAR BUSINESS SOLUTIONS LTD,E2003316968,45,177.71,FUEL,21/08/2014,
800052140,ALLSTAR BUSINESS SOLUTIONS LTD,E2003316968,46,175.55,FUEL,21/08/2014,
800052140,ALLSTAR BUSINESS SOLUTIONS LTD,E2003316968,47,173.04,FUEL,21/08/2014,
800052140,ALLSTAR BUSINESS SOLUTIONS LTD,E2003316968,48,172.88,FUEL,21/08/2014,
800052140,ALLSTAR BUSINESS SOLUTIONS LTD,E2003316968,49,172.27,FUEL,21/08/2014,
800052140,ALLSTAR BUSINESS SOLUTIONS LTD,E2003316968,50,168.89,FUEL,21/08/2014,
800052140,ALLSTAR BUSINESS SOLUTIONS LTD,E2003316968,51,165.4,FUEL,21/08/2014,
800052140,ALLSTAR BUSINESS SOLUTIONS LTD,E2003316968,52,163.18,FUEL,21/08/2014,
800052140,ALLSTAR BUSINESS SOLUTIONS LTD,E2003316968,53,158.57,FUEL,21/08/2014,
800052140,ALLSTAR BUSINESS SOLUTIONS LTD,E2003316968,54,158.37,FUEL,21/08/2014,
800052140,ALLSTAR BUSINESS SOLUTIONS LTD,E2003316968,55,157.8,FUEL,21/08/2014,
800052140,ALLSTAR BUSINESS SOLUTIONS LTD,E2003316968,56,154.52,FUEL,21/08/2014,
800052140,ALLSTAR BUSINESS SOLUTIONS LTD,E2003316968,57,153.84,FUEL,21/08/2014,
800052140,ALLSTAR BUSINESS SOLUTIONS LTD,E2003316968,58,152.62,FUEL,21/08/2014,
800052140,ALLSTAR BUSINESS SOLUTIONS LTD,E2003316968,59,147.38,FUEL,21/08/2014,
800052140,ALLSTAR BUSINESS SOLUTIONS LTD,E2003316968,60,136,FUEL,21/08/2014,
800052140,ALLSTAR BUSINESS SOLUTIONS LTD,E2003316968,61,134.03,FUEL,21/08/2014,
800052140,ALLSTAR BUSINESS SOLUTIONS LTD,E2003316968,62,134.03,FUEL,21/08/2014,
800052140,ALLSTAR BUSINESS SOLUTIONS LTD,E2003316968,63,133.82,FUEL,21/08/2014,
800052140,ALLSTAR BUSINESS SOLUTIONS LTD,E2003316968,64,129.62,FUEL,21/08/2014,
800052140,ALLSTAR BUSINESS SOLUTIONS LTD,E2003316968,65,126.57,FUEL,21/08/2014,
800052140,ALLSTAR BUSINESS SOLUTIONS LTD,E2003316968,66,124.37,FUEL,21/08/2014,
800052140,ALLSTAR BUSINESS SOLUTIONS LTD,E2003316968,67,121.1,FUEL,21/08/2014,
800052140,ALLSTAR BUSINESS SOLUTIONS LTD,E2003316968,68,116.05,FUEL,21/08/2014,
800052140,ALLSTAR BUSINESS SOLUTIONS LTD,E2003316968,69,112.53,FUEL,21/08/2014,
800052140,ALLSTAR BUSINESS SOLUTIONS LTD,E2003316968,70,109.45,FUEL,21/08/2014,
800052140,ALLSTAR BUSINESS SOLUTIONS LTD,E2003316968,71,107.59,FUEL,21/08/2014,
800052140,ALLSTAR BUSINESS SOLUTIONS LTD,E2003316968,72,107.04,FUEL,21/08/2014,
800052140,ALLSTAR BUSINESS SOLUTIONS LTD,E2003316968,73,104.59,FUEL,21/08/2014,
800052140,ALLSTAR BUSINESS SOLUTIONS LTD,E2003316968,74,104.27,FUEL,21/08/2014,
800052140,ALLSTAR BUSINESS SOLUTIONS LTD,E2003316968,75,100.83,FUEL,21/08/2014,
800052140,ALLSTAR BUSINESS SOLUTIONS LTD,E2003316968,76,97.87,FUEL,21/08/2014,
800052140,ALLSTAR BUSINESS SOLUTIONS LTD,E2003316968,77,97.75,FUEL,21/08/2014,
800052140,ALLSTAR BUSINESS SOLUTIONS LTD,E2003316968,78,95.43,FUEL,21/08/2014,
800052140,ALLSTAR BUSINESS SOLUTIONS LTD,E2003316968,79,91.67,FUEL,21/08/2014,
800052140,ALLSTAR BUSINESS SOLUTIONS LTD,E2003316968,80,91.63,FUEL,21/08/2014,
800052140,ALLSTAR BUSINESS SOLUTIONS LTD,E2003316968,81,87.6,FUEL,21/08/2014,
800052140,ALLSTAR BUSINESS SOLUTIONS LTD,E2003316968,82,86.86,FUEL,21/08/2014,
800052140,ALLSTAR BUSINESS SOLUTIONS LTD,E2003316968,83,83.33,FUEL,21/08/2014,
800052140,ALLSTAR BUSINESS SOLUTIONS LTD,E2003316968,84,81.16,FUEL,21/08/2014,
800052140,ALLSTAR BUSINESS SOLUTIONS LTD,E2003316968,85,79.55,FUEL,21/08/2014,
800052140,ALLSTAR BUSINESS SOLUTIONS LTD,E2003316968,86,76.16,FUEL,21/08/2014,
800052140,ALLSTAR BUSINESS SOLUTIONS LTD,E2003316968,87,74.15,FUEL,21/08/2014,
800052140,ALLSTAR BUSINESS SOLUTIONS LTD,E2003316968,88,70.59,FUEL,21/08/2014,
800052140,ALLSTAR BUSINESS SOLUTIONS LTD,E2003316968,89,69.35,FUEL,21/08/2014,
800052140,ALLSTAR BUSINESS SOLUTIONS LTD,E2003316968,90,68.84,FUEL,21/08/2014,
800052140,ALLSTAR BUSINESS SOLUTIONS LTD,E2003316968,91,66.61,FUEL,21/08/2014,
800052140,ALLSTAR BUSINESS SOLUTIONS LTD,E2003316968,92,65.71,FUEL,21/08/2014,
800052140,ALLSTAR BUSINESS SOLUTIONS LTD,E2003316968,93,65.19,FUEL,21/08/2014,
800052140,ALLSTAR BUSINESS SOLUTIONS LTD,E2003316968,94,58.33,FUEL,21/08/2014,
800052140,ALLSTAR BUSINESS SOLUTIONS LTD,E2003316968,95,56.75,FUEL,21/08/2014,
800052140,ALLSTAR BUSINESS SOLUTIONS LTD,E2003316968,96,53.41,FUEL,21/08/2014,
800052140,ALLSTAR BUSINESS SOLUTIONS LTD,E2003316968,97,51.71,FUEL,21/08/2014,
800052140,ALLSTAR BUSINESS SOLUTIONS LTD,E2003316968,98,39.18,FUEL,21/08/2014,
800052140,ALLSTAR BUSINESS SOLUTIONS LTD,E2003316968,99,37.62,FUEL,21/08/2014,
800052140,ALLSTAR BUSINESS SOLUTIONS LTD,E2003316968,100,9.23,FUEL,21/08/2014,
180814E,FOOTPRINT UNIFORMS============,F4806,1,175.4,CLOTHING,21/08/2014,263.1
180814E,FOOTPRINT UNIFORMS============,F4806,2,43.85,CLOTHING,21/08/2014,
180814E,FOOTPRINT UNIFORMS============,F4806,3,43.85,CLOTHING,21/08/2014,
150814G,WM ENGINEERING SERVICES LTD===,I-4768,1,350,STRATEGIC (NON CYCLICAL),21/08/2014,350
150814G,HALL FUELS,I06942355,1,"2,732.60",FUEL,21/08/2014,"2,732.60"
110814G,HALL FUELS,I06957791,1,"2,544.96",FUEL,21/08/2014,"2,544.96"
110814G,HALL FUELS,I06957792,1,"3,181.20",FUEL,21/08/2014,"3,181.20"
110814G,HALL FUELS,I06959782,1,"2,651.00",FUEL,21/08/2014,"2,651.00"
110814G,ROCOM,I2507636,1,867.2,DEVELOPMENT  EXPENSES-CONTRACT,21/08/2014,978.37
110814G,ROCOM,I2507636,2,99.58,DEVELOPMENT  EXPENSES-CONTRACT,21/08/2014,
110814G,ROCOM,I2507636,3,11.59,DEVELOPMENT  EXPENSES-CONTRACT,21/08/2014,
140773,JCT600 CONTRACTS LIMITED======,INV00055753,1,404.3,LEASE CAR CHARGES,21/08/2014,404.3
140773,JCT600 CONTRACTS LIMITED======,INV00055753,2,-35.6,VAT CAR LEASING,21/08/2014,
140773,JCT600 CONTRACTS LIMITED======,INV00055753,3,35.6,LEASE CAR CHARGES,21/08/2014,
190814F,JCT600 CONTRACTS LIMITED======,INV00064257,1,"1,144.10",MILEAGE CHARGES,21/08/2014,"1,144.10"
140773,JCT600 CONTRACTS LIMITED======,INV00068648,1,"2,931.01",LEASE CAR CHARGES,21/08/2014,"4,953.00"
140773,JCT600 CONTRACTS LIMITED======,INV00068648,2,"2,021.99",P/PAYMTS-CAR LEASG-RENTAL,21/08/2014,
140773,JCT600 CONTRACTS LIMITED======,INV00068648,3,-434.66,VAT CAR LEASING,21/08/2014,
140773,JCT600 CONTRACTS LIMITED======,INV00068648,4,434.66,LEASE CAR CHARGES,21/08/2014,
190814F,CORPORATE DIRECT (EUROPE) LTD=,INV0174827,1,"1,259.40",RADIO,21/08/2014,"1,936.63"
190814F,CORPORATE DIRECT (EUROPE) LTD=,INV0174827,2,479.4,RADIO,21/08/2014,
190814F,CORPORATE DIRECT (EUROPE) LTD=,INV0174827,3,144,RADIO,21/08/2014,
190814F,CORPORATE DIRECT (EUROPE) LTD=,INV0174827,4,44.88,RADIO,21/08/2014,
190814F,CORPORATE DIRECT (EUROPE) LTD=,INV0174827,5,8.95,RADIO,21/08/2014,
150814G,INTUITIVE SYSTEMS AND NETWORKS,ISN00011291,1,"7,500.00",PURCHASES-COMPUTER/EQUIPMENT,21/08/2014,"15,000.00"
150814G,INTUITIVE SYSTEMS AND NETWORKS,ISN00011291,2,950,PURCHASES-COMPUTER/EQUIPMENT,21/08/2014,
150814G,INTUITIVE SYSTEMS AND NETWORKS,ISN00011291,3,650,PURCHASES-COMPUTER/EQUIPMENT,21/08/2014,
150814G,INTUITIVE SYSTEMS AND NETWORKS,ISN00011291,4,"5,900.00",PURCHASES-COMPUTER/EQUIPMENT,21/08/2014,
080814H,BLUE3 (LONDON) LTD OPERATING,LFB-ISP-007,1,"3,852.52",DAY TO DAY MINOR IMPS,21/08/2014,"3,852.52"
050814F,COFELY WORKPLACE LIMITED,M130219,1,302.85,STRATEGIC (NON CYCLICAL),21/08/2014,302.85
130814F,COFELY WORKPLACE LIMITED,M130398,1,302.85,STRATEGIC (NON CYCLICAL),21/08/2014,302.85
130814F,COFELY WORKPLACE LIMITED,M130431,1,632.59,STRATEGIC (NON CYCLICAL),21/08/2014,632.59
130814F,COFELY WORKPLACE LIMITED,M130432,1,"2,340.07",STRATEGIC (NON CYCLICAL),21/08/2014,"2,340.07"
130814F,COFELY WORKPLACE LIMITED,M130433,1,"1,359.61",STRATEGIC (NON CYCLICAL),21/08/2014,"1,359.61"
902437,BABCOCK TRAINING LTD,PTSI010893,1,"1,242,951.14",TRAINING CONTRACT,21/08/2014,"1,514,089.24"
902437,BABCOCK TRAINING LTD,PTSI010893,2,"271,138.10",TRAINING CONTRACT,21/08/2014,
140773,ARVAL UK LTD,RI0001299952,1,418.58,LEASE CAR CHARGES,21/08/2014,418.58
140773,ARVAL UK LTD,RI0001299952,2,-33.3,VAT CAR LEASING,21/08/2014,
140773,ARVAL UK LTD,RI0001299952,3,33.3,LEASE CAR CHARGES,21/08/2014,
140773,ARVAL UK LTD,RI0001299953,1,398.2,LEASE CAR CHARGES,21/08/2014,398.2
140773,ARVAL UK LTD,RI0001299953,2,-34.16,VAT CAR LEASING,21/08/2014,
140773,ARVAL UK LTD,RI0001299953,3,34.16,LEASE CAR CHARGES,21/08/2014,
140773,ARVAL UK LTD,RI0001299954,1,309.02,LEASE CAR CHARGES,21/08/2014,309.02
140773,ARVAL UK LTD,RI0001299954,2,-25.01,VAT CAR LEASING,21/08/2014,
140773,ARVAL UK LTD,RI0001299954,3,25.01,LEASE CAR CHARGES,21/08/2014,
140773,ARVAL UK LTD,RI0001299955,1,353.05,LEASE CAR CHARGES,21/08/2014,353.05
140773,ARVAL UK LTD,RI0001299955,2,-27.23,VAT CAR LEASING,21/08/2014,
140773,ARVAL UK LTD,RI0001299955,3,27.23,LEASE CAR CHARGES,21/08/2014,
140773,ARVAL UK LTD,RI0001299956,1,380.74,LEASE CAR CHARGES,21/08/2014,380.74
140773,ARVAL UK LTD,RI0001299956,2,-30.18,VAT CAR LEASING,21/08/2014,
140773,ARVAL UK LTD,RI0001299956,3,30.18,LEASE CAR CHARGES,21/08/2014,
180814E,1SPATIAL,SIN001388,1,860,MAINTENANCE & SUPPORT,21/08/2014,860
150814G,WORDWAVE INTERNATIONAL LTD====,SINV/00077507,1,"1,306.40",CONSULTANTS,21/08/2014,"1,306.40"
150814F,VODAFONE PAGING LTD===========,VI1396665,1,259.21,CELLULAR TELEPHONES,21/08/2014,259.21
210814F,DEFENCE FIRE TRAINING &,7367378,1,"1,438.00",OPERATIONAL EQUIP-PURCHASE,22/08/2014,"1,438.00"
210814F,GOVNET COMMUNICATIONS=========,71115,1,395,PROFESSIONAL DEVELOPMENT,26/08/2014,395
210814F,MOOLANDS LTD,939,1,962,STRATEGIC (NON CYCLICAL),26/08/2014,962
190814F,HEALTH MANAGEMENT LIMITED=====,117368,1,"1,257.00",THIRD PARTY REPORTS,26/08/2014,"3,174.50"
190814F,HEALTH MANAGEMENT LIMITED=====,117368,2,347.5,THIRD PARTY REPORTS,26/08/2014,
190814F,HEALTH MANAGEMENT LIMITED=====,117368,3,"1,570.00",THIRD PARTY REPORTS,26/08/2014,
190814F,HEALTH MANAGEMENT LIMITED=====,117369,1,300,THIRD PARTY REPORTS,26/08/2014,"1,400.40"
190814F,HEALTH MANAGEMENT LIMITED=====,117369,2,"1,100.40",THIRD PARTY REPORTS,26/08/2014,
140779,BRE GLOBAL LTD,11230923,1,"6,338.00",CONSULTANTS,26/08/2014,"6,338.00"
150814G,ADAM PHONES LTD===============,1059428,1,496,CELLULAR TELEPHONES,26/08/2014,529.52
150814G,ADAM PHONES LTD===============,1059428,2,33.52,CELLULAR TELEPHONES,26/08/2014,
210814F,THE FILE FACTORY LIMITED,1001,1,242.5,STATIONERY CONSUMABLES,26/08/2014,868.75
210814F,THE FILE FACTORY LIMITED,1001,2,310,STATIONERY CONSUMABLES,26/08/2014,
210814F,THE FILE FACTORY LIMITED,1001,3,116.25,STATIONERY CONSUMABLES,26/08/2014,
210814F,THE FILE FACTORY LIMITED,1001,4,200,STATIONERY CONSUMABLES,26/08/2014,
200814E,HAYS ACCOUNTANCY & FINANCE====,1004604193,1,913.5,FRS STAFF AGENCY,26/08/2014,913.5
200814E,G WORRALL & SON LIMITED=======,106462,1,409.5,TACTICAL DAY TO DAY,26/08/2014,409.5
200814E,REAM CONTRACTS LTD,11390,1,935.77,TACTICAL DAY TO DAY,26/08/2014,935.77
120814F,BANHAUS LTD,1291,1,825,OPERATIONAL EQUIP-PURCHASE,26/08/2014,825
210814F,SAFEGUARD PEST CON. & ENV.LTD,13529,1,610,PEST CONTROL,26/08/2014,610
210814F,SAFEGUARD PEST CON. & ENV.LTD,14503,1,493.92,PEST CONTROL,26/08/2014,493.92
150814G,H FINE & SON LTD==============,147611,1,455,UNIFORMS - POMS,26/08/2014,455
200814E,HERTS COUNTY COUNCIL FIRE & RE,1801558942,1,"8,940.00",FIRE AUTHS-MUTUAL ASSISTANCE,26/08/2014,"8,940.00"
200814E,B NOKES CONTRACTS LTD,2316,1,267.5,TACTICAL DAY TO DAY,26/08/2014,267.5
200814E,AUTOGLASS LIMITED=============,23808632,1,576.53,WINDSCREEN & TYRE CHARGES,26/08/2014,576.53
200814E,AUTOGLASS LIMITED=============,23859014,1,710.59,WINDSCREEN & TYRE CHARGES,26/08/2014,710.59
800052008,ADECCO UK LIMITED=============,26875741,1,771.33,FRS STAFF AGENCY,26/08/2014,771.33
800052365,ADECCO UK LIMITED=============,26882965,1,644.48,FRS STAFF AGENCY,26/08/2014,644.48
800052361,ADECCO UK LIMITED=============,26882967,1,612.15,FRS STAFF AGENCY,26/08/2014,612.15
800052363,ADECCO UK LIMITED=============,26882969,1,603.41,FRS STAFF AGENCY,26/08/2014,603.41
800052359,ADECCO UK LIMITED=============,26882971,1,351.68,FRS STAFF AGENCY,26/08/2014,351.68
800052366,ADECCO UK LIMITED=============,26882972,1,489.72,FRS STAFF AGENCY,26/08/2014,489.72
800052367,ADECCO UK LIMITED=============,26882973,1,879.9,FRS STAFF AGENCY,26/08/2014,879.9
800052368,ADECCO UK LIMITED=============,26882974,1,439.6,FRS STAFF AGENCY,26/08/2014,439.6
800052370,ADECCO UK LIMITED=============,26882976,1,771.33,FRS STAFF AGENCY,26/08/2014,771.33
800052409,ADECCO UK LIMITED=============,26882977,1,398.78,FRS STAFF AGENCY,26/08/2014,398.78
800052389,ADECCO UK LIMITED=============,26882978,1,708.8,FRS STAFF AGENCY,26/08/2014,708.8
800052390,ADECCO UK LIMITED=============,26882979,1,708.8,FRS STAFF AGENCY,26/08/2014,708.8
800052375,ADECCO UK LIMITED=============,26882980,1,612.15,FRS STAFF AGENCY,26/08/2014,612.15
800052372,ADECCO UK LIMITED=============,26882981,1,612.15,FRS STAFF AGENCY,26/08/2014,612.15
800052376,ADECCO UK LIMITED=============,26882982,1,439.6,FRS STAFF AGENCY,26/08/2014,439.6
800052378,ADECCO UK LIMITED=============,26882984,1,439.6,FRS STAFF AGENCY,26/08/2014,439.6
800052380,ADECCO UK LIMITED=============,26882985,1,942.2,FRS STAFF AGENCY,26/08/2014,942.2
800052381,ADECCO UK LIMITED=============,26882986,1,342.8,FRS STAFF AGENCY,26/08/2014,342.8
800052382,ADECCO UK LIMITED=============,26882987,1,"1,949.85",FRS STAFF AGENCY,26/08/2014,"1,949.85"
800052383,ADECCO UK LIMITED=============,26882988,1,612.15,FRS STAFF AGENCY,26/08/2014,612.15
800052384,ADECCO UK LIMITED=============,26882989,1,490.45,FRS STAFF AGENCY,26/08/2014,490.45
800052385,ADECCO UK LIMITED=============,26882990,1,612.15,FRS STAFF AGENCY,26/08/2014,612.15
800052387,ADECCO UK LIMITED=============,26882992,1,704.9,FRS STAFF AGENCY,26/08/2014,704.9
800052388,ADECCO UK LIMITED=============,26882993,1,288.59,FRS STAFF AGENCY,26/08/2014,288.59
140779,THAMES WATER UTILITIES LTD====,2963180521:,1,335.4,WATER & SEWERAGE RATES,26/08/2014,335.4
210814F,MCGRATH BROS (WASTE CONTROL) L,332605,1,402.7,REFUSE COLLECTION,26/08/2014,402.7
140779,THAMES WATER UTILITIES LTD====,"3344972311,",1,384.83,WATER & SEWERAGE RATES,26/08/2014,384.83
140814G,W.GILCHRIST & CO,3546,1,635,HYGIENE,26/08/2014,635
180814E,W.GILCHRIST & CO,3547,1,431.62,PROTECTIVE EQUIPT - PARTS,26/08/2014,441.62
180814E,W.GILCHRIST & CO,3547,2,10,REPAIR & MAINTENANCE,26/08/2014,
200814E,ARTIC BUILDING SERVICES LTD,35872,1,"19,861.12",DEVELOPMENT  EXPENSES-CONTRACT,26/08/2014,"19,861.12"
200814E,ARTIC BUILDING SERVICES LTD,36092,1,"42,278.48",PROF FEES-MISCELLANEOUS,26/08/2014,"42,278.48"
140779,THAMES WATER UTILITIES LTD====,37729-99268G,1,542.48,WATER & SEWERAGE RATES,26/08/2014,542.48
200814E,COMPUTACENTRE================,3880214061,1,"3,200.89",ACQUISITIONS,26/08/2014,"3,200.89"
200814E,LOCAL GOVERNMENT ASSOCIATION==,40136922,1,495,PROFESSIONAL DEVELOPMENT,26/08/2014,495
200814E,LOCAL GOVERNMENT ASSOCIATION==,40136923,1,495,PROFESSIONAL DEVELOPMENT,26/08/2014,495
200814E,LOCAL GOVERNMENT ASSOCIATION==,40136925,1,495,PROFESSIONAL DEVELOPMENT,26/08/2014,495
200814E,CANON (UK) LTD===============,401498613,1,"2,505.75",OFFICE EQUIPMENT,26/08/2014,"2,505.75"
200814E,FOCUS & VISION TECHNOLOGY LTD,41721,1,252.26,MEDICAL EXPENSES CONTRACT,26/08/2014,252.26
200814E,FOCUS & VISION TECHNOLOGY LTD,41749,1,450.3,MEDICAL EXPENSES CONTRACT,26/08/2014,450.3
800051653,*GREENHAM TRADING LTD=========,5651474,1,118.9,HYGIENE,26/08/2014,258.7
800051653,*GREENHAM TRADING LTD=========,5651474,2,93.2,OPERATIONAL EQUIP-PURCHASE,26/08/2014,
800051653,*GREENHAM TRADING LTD=========,5651474,3,46.6,OPERATIONAL EQUIP-PURCHASE,26/08/2014,
210814F,CORE SURVEYSLTD===============,5751,1,400,DEVELOPMENT  EXPENSES-CONTRACT,26/08/2014,400
210814F,URS SCOTT WILSON LIMITED,5964005,1,"6,170.41",PROF FEES-MISCELLANEOUS,26/08/2014,"6,170.41"
210814F,SWEETT  UK LTD,7041595,1,827.96,STRATEGIC (NON CYCLICAL),26/08/2014,827.96
200814E,CANON (UK) LTD===============,770480352,1,390.85,OFFICE EQUIPMENT,26/08/2014,390.85
200814E,CANON (UK) LTD===============,770480359,1,390.85,OFFICE EQUIPMENT,26/08/2014,390.85
210814F,CANON (UK) LTD===============,770480796,1,225.05,OFFICE EQUIPMENT,26/08/2014,900.23
210814F,CANON (UK) LTD===============,770480796,2,225.06,OFFICE EQUIPMENT,26/08/2014,
210814F,CANON (UK) LTD===============,770480796,3,225.06,OFFICE EQUIPMENT,26/08/2014,
210814F,CANON (UK) LTD===============,770480796,4,225.06,OFFICE EQUIPMENT,26/08/2014,
210814F,TWO SERVICES LTD==============,77881,1,120,CATERING EQUIPMENT,26/08/2014,316.63
210814F,TWO SERVICES LTD==============,77881,2,196.63,CATERING EQUIPMENT,26/08/2014,
200814E,SUPPORTPLAN (UK) LTD==========,82756,1,"1,161.00",MAINTENANCE & SUPPORT,26/08/2014,"33,006.00"
200814E,SUPPORTPLAN (UK) LTD==========,82756,2,"7,350.00",MAINTENANCE & SUPPORT,26/08/2014,
200814E,SUPPORTPLAN (UK) LTD==========,82756,3,"7,925.00",MAINTENANCE & SUPPORT,26/08/2014,
200814E,SUPPORTPLAN (UK) LTD==========,82756,4,"8,163.00",MAINTENANCE & SUPPORT,26/08/2014,
200814E,SUPPORTPLAN (UK) LTD==========,82756,5,"8,407.00",MAINTENANCE & SUPPORT,26/08/2014,
210814F,A.R.C.S. ENVIRONMENTAL LTD====,8565,1,100,ASBESTOS,26/08/2014,600
210814F,A.R.C.S. ENVIRONMENTAL LTD====,8565,2,500,ASBESTOS,26/08/2014,
210814F,A.R.C.S. ENVIRONMENTAL LTD====,8566,1,450,ASBESTOS,26/08/2014,450
210814F,A.R.C.S. ENVIRONMENTAL LTD====,8567,1,950,ASBESTOS,26/08/2014,950
180814E,DRAEGER SAFETY UK LIMITED=====,90453830,1,722.38,PROTECTIVE EQUIPT - PARTS,26/08/2014,722.38
200814E,NORTHUMBRIAN WATER LTD========,91324192X,1,"1,937.75",CURRENT HYDRANT COSTS,26/08/2014,"1,937.75"
200814E,NORTHUMBRIAN WATER LTD========,913245690,1,424,CURRENT HYDRANT COSTS,26/08/2014,424
200814E,NORTHUMBRIAN WATER LTD========,913245720,1,408,CURRENT HYDRANT COSTS,26/08/2014,408
200814E,NORTHUMBRIAN WATER LTD========,913245798,1,424,CURRENT HYDRANT COSTS,26/08/2014,424
200814E,NORTHUMBRIAN WATER LTD========,913250228,1,973.5,CURRENT HYDRANT COSTS,26/08/2014,973.5
200814E,NORTHUMBRIAN WATER LTD========,913254771,1,424,CURRENT HYDRANT COSTS,26/08/2014,424
130814F,CAPITA SECURE INFO SOLUTIONS,93820578,1,300,STRATEGIC (NON CYCLICAL),26/08/2014,300
130814F,CAPITA SECURE INFO SOLUTIONS,93821004,1,300,STRATEGIC (NON CYCLICAL),26/08/2014,300
130814G,CAPITA SECURE INFO SOLUTIONS,93821015,1,"53,214.26",CAMS CONTRACT,26/08/2014,"53,214.26"
130814G,CAPITA SECURE INFO SOLUTIONS,93821017,1,"13,682.62",CAMS CONTRACT,26/08/2014,"13,682.62"
140779,THAMES WATER UTILITIES LTD====,97652-75302G,1,690.16,WATER & SEWERAGE RATES,26/08/2014,690.16
200814E,ASTEC SURVEYS LIMITED=========,ASL-14-240,1,205,ASBESTOS,26/08/2014,585
200814E,ASTEC SURVEYS LIMITED=========,ASL-14-240,2,205,ASBESTOS,26/08/2014,
200814E,ASTEC SURVEYS LIMITED=========,ASL-14-240,3,175,ASBESTOS,26/08/2014,
200814E,ASTEC SURVEYS LIMITED=========,ASL-14-241,1,395,ASBESTOS,26/08/2014,395
200814E,THAMES WATER UTILITIES LTD====,CBA1406646,1,"1,185.00",CURRENT HYDRANT COSTS,26/08/2014,"1,185.00"
200814E,THAMES WATER UTILITIES LTD====,CBA1406649,1,477,CURRENT HYDRANT COSTS,26/08/2014,477
200814E,THAMES WATER UTILITIES LTD====,CBA1406656,1,"1,185.00",CURRENT HYDRANT COSTS,26/08/2014,"1,185.00"
200814E,THAMES WATER UTILITIES LTD====,CBA1406664,1,280,CURRENT HYDRANT COSTS,26/08/2014,280
200814E,THAMES WATER UTILITIES LTD====,CBA1406689,1,477,CURRENT HYDRANT COSTS,26/08/2014,477
200814E,THAMES WATER UTILITIES LTD====,CBA1407112,1,"1,185.00",CURRENT HYDRANT COSTS,26/08/2014,"1,185.00"
200814E,THAMES WATER UTILITIES LTD====,CBA1407126,1,"1,185.00",CURRENT HYDRANT COSTS,26/08/2014,"1,185.00"
200814E,THAMES WATER UTILITIES LTD====,CBA1407129,1,"1,185.00",CURRENT HYDRANT COSTS,26/08/2014,"1,185.00"
200814E,THAMES WATER UTILITIES LTD====,CBA1407130,1,477,CURRENT HYDRANT COSTS,26/08/2014,477
200814E,THAMES WATER UTILITIES LTD====,CBA1407132,1,"1,185.00",CURRENT HYDRANT COSTS,26/08/2014,"1,185.00"
200814E,THAMES WATER UTILITIES LTD====,CBA1407139,1,"1,185.00",CURRENT HYDRANT COSTS,26/08/2014,"1,185.00"
200814E,THAMES WATER UTILITIES LTD====,CBA1407144,1,"1,185.00",CURRENT HYDRANT COSTS,26/08/2014,"1,185.00"
200814E,THAMES WATER UTILITIES LTD====,CBA1407145,1,"1,185.00",CURRENT HYDRANT COSTS,26/08/2014,"1,185.00"
200814E,THAMES WATER UTILITIES LTD====,CBA14076652,1,"1,185.00",CURRENT HYDRANT COSTS,26/08/2014,"1,185.00"
200814E,RADIOCOMS SYSTEMS LIMITED=====,CF281905,1,"1,311.00",ACQUISITIONS,26/08/2014,"5,202.60"
200814E,RADIOCOMS SYSTEMS LIMITED=====,CF281905,2,"3,891.60",ACQUISITIONS,26/08/2014,
210814F,HALL FUELS,I06950294,1,"3,166.65",FUEL,26/08/2014,"3,166.65"
140779,DAYS CONTRACT HIRE,INV00047443,1,"2,415.64",LEASE CAR CHARGES,26/08/2014,"3,498.84"
140779,DAYS CONTRACT HIRE,INV00047443,2,"1,083.20",P/PAYMTS-CAR LEASG-RENTAL,26/08/2014,
140779,DAYS CONTRACT HIRE,INV00047443,3,-314.36,VAT CAR LEASING,26/08/2014,
140779,DAYS CONTRACT HIRE,INV00047443,4,314.36,LEASE CAR CHARGES,26/08/2014,
140779,LEX AUTOLEASE,IRIBN353799,1,"3,389.34",LEASE CAR CHARGES,26/08/2014,"4,739.88"
140779,LEX AUTOLEASE,IRIBN353799,2,"1,350.54",P/PAYMTS-CAR LEASG-RENTAL,26/08/2014,
140779,LEX AUTOLEASE,IRIBN353799,3,-422.17,VAT CAR LEASING,26/08/2014,
140779,LEX AUTOLEASE,IRIBN353799,4,422.17,LEASE CAR CHARGES,26/08/2014,
140779,LEX AUTOLEASE,IRIN353954,1,"2,995.71",LEASE CAR CHARGES,26/08/2014,"4,205.52"
140779,LEX AUTOLEASE,IRIN353954,2,"1,209.81",P/PAYMTS-CAR LEASG-RENTAL,26/08/2014,
140779,LEX AUTOLEASE,IRIN353954,3,-368.04,VAT CAR LEASING,26/08/2014,
140779,LEX AUTOLEASE,IRIN353954,4,368.04,LEASE CAR CHARGES,26/08/2014,
210814F,THAMES LKE TRAINING,JCLFD12014,1,829,PROFESSIONAL DEVELOPMENT,26/08/2014,829
110814G,HUNTER LODGE==================,SI-05599,1,"9,500.00",ADVERTISING,26/08/2014,"14,500.00"
110814G,HUNTER LODGE==================,SI-05599,2,"5,000.00",ADVERTISING,26/08/2014,
200814E,SUTTON & EAST SURREY WATER PLC,SI031861,1,"1,152.00",CURRENT HYDRANT COSTS,26/08/2014,"1,152.00"
800051690,*XMA LTD,V945214,1,54.55,STATIONERY CONSUMABLES,26/08/2014,378.13
800051690,*XMA LTD,V945214,2,102.46,STATIONERY CONSUMABLES,26/08/2014,
800051690,*XMA LTD,V945214,3,110.56,STATIONERY CONSUMABLES,26/08/2014,
800051690,*XMA LTD,V945214,4,110.56,STATIONERY CONSUMABLES,26/08/2014,
800051692,*XMA LTD,V945278,1,164.12,STATIONERY CONSUMABLES,26/08/2014,659.17
800051692,*XMA LTD,V945278,2,163.33,STATIONERY CONSUMABLES,26/08/2014,
800051692,*XMA LTD,V945278,3,164.12,STATIONERY CONSUMABLES,26/08/2014,
800051692,*XMA LTD,V945278,4,116.37,STATIONERY CONSUMABLES,26/08/2014,
800051692,*XMA LTD,V945278,5,51.23,STATIONERY CONSUMABLES,26/08/2014,
260814E,MOOLANDS LTD,989,1,"19,796.00",STRATEGIC (NON CYCLICAL),29/08/2014,"19,796.00"
260814E,FIRE PREVENTION PRODUCTS LTD==,85033,1,"1,058.00",OPERATIONAL EQUIP-PURCHASE,29/08/2014,"1,058.00"
140782,CORONA ENERGY RETAIL 4 LTD,945607141,1,480.79,GAS,29/08/2014,"8,537.94"
140782,CORONA ENERGY RETAIL 4 LTD,945607141,2,5.86,GAS,29/08/2014,
140782,CORONA ENERGY RETAIL 4 LTD,945607141,3,136.1,GAS,29/08/2014,
140782,CORONA ENERGY RETAIL 4 LTD,945607141,4,262.41,GAS,29/08/2014,
140782,CORONA ENERGY RETAIL 4 LTD,945607141,5,260.89,GAS,29/08/2014,
140782,CORONA ENERGY RETAIL 4 LTD,945607141,6,402.46,GAS,29/08/2014,
140782,CORONA ENERGY RETAIL 4 LTD,945607141,7,255.13,GAS,29/08/2014,
140782,CORONA ENERGY RETAIL 4 LTD,945607141,8,181.55,GAS,29/08/2014,
140782,CORONA ENERGY RETAIL 4 LTD,945607141,9,347.23,GAS,29/08/2014,
140782,CORONA ENERGY RETAIL 4 LTD,945607141,10,314.11,GAS,29/08/2014,
140782,CORONA ENERGY RETAIL 4 LTD,945607141,11,212.45,GAS,29/08/2014,
140782,CORONA ENERGY RETAIL 4 LTD,945607141,12,130.48,GAS,29/08/2014,
140782,CORONA ENERGY RETAIL 4 LTD,945607141,13,170.86,GAS,29/08/2014,
140782,CORONA ENERGY RETAIL 4 LTD,945607141,14,244.48,GAS,29/08/2014,
140782,CORONA ENERGY RETAIL 4 LTD,945607141,15,269.54,GAS,29/08/2014,
140782,CORONA ENERGY RETAIL 4 LTD,945607141,16,535.43,GAS,29/08/2014,
140782,CORONA ENERGY RETAIL 4 LTD,945607141,17,303.95,GAS,29/08/2014,
140782,CORONA ENERGY RETAIL 4 LTD,945607141,18,193.53,GAS,29/08/2014,
140782,CORONA ENERGY RETAIL 4 LTD,945607141,19,635.48,GAS,29/08/2014,
140782,CORONA ENERGY RETAIL 4 LTD,945607141,20,27.74,GAS,29/08/2014,
140782,CORONA ENERGY RETAIL 4 LTD,945607141,21,30.07,GAS,29/08/2014,
140782,CORONA ENERGY RETAIL 4 LTD,945607141,22,24.2,GAS,29/08/2014,
140782,CORONA ENERGY RETAIL 4 LTD,945607141,23,304.19,GAS,29/08/2014,
140782,CORONA ENERGY RETAIL 4 LTD,945607141,24,876.34,GAS,29/08/2014,
140782,CORONA ENERGY RETAIL 4 LTD,945607141,25,337.39,GAS,29/08/2014,
140782,CORONA ENERGY RETAIL 4 LTD,945607141,26,209.25,GAS,29/08/2014,
140782,CORONA ENERGY RETAIL 4 LTD,945607141,27,345.89,GAS,29/08/2014,
140782,CORONA ENERGY RETAIL 4 LTD,945607141,28,227.53,GAS,29/08/2014,
140782,CORONA ENERGY RETAIL 4 LTD,945607141,29,178.57,GAS,29/08/2014,
140782,CORONA ENERGY RETAIL 4 LTD,945607141,30,318.56,GAS,29/08/2014,
140782,CORONA ENERGY RETAIL 4 LTD,945607141,31,315.48,GAS,29/08/2014,
140783,CORONA ENERGY RETAIL 4 LTD,945607142,1,462.72,GAS,29/08/2014,"8,431.06"
140783,CORONA ENERGY RETAIL 4 LTD,945607142,2,497.67,GAS,29/08/2014,
140783,CORONA ENERGY RETAIL 4 LTD,945607142,3,124.16,GAS,29/08/2014,
140783,CORONA ENERGY RETAIL 4 LTD,945607142,4,151.79,GAS,29/08/2014,
140783,CORONA ENERGY RETAIL 4 LTD,945607142,5,243.6,GAS,29/08/2014,
140783,CORONA ENERGY RETAIL 4 LTD,945607142,6,275.59,GAS,29/08/2014,
140783,CORONA ENERGY RETAIL 4 LTD,945607142,7,255.36,GAS,29/08/2014,
140783,CORONA ENERGY RETAIL 4 LTD,945607142,8,510.93,GAS,29/08/2014,
140783,CORONA ENERGY RETAIL 4 LTD,945607142,9,403.54,GAS,29/08/2014,
140783,CORONA ENERGY RETAIL 4 LTD,945607142,10,361.79,GAS,29/08/2014,
140783,CORONA ENERGY RETAIL 4 LTD,945607142,11,255.29,GAS,29/08/2014,
140783,CORONA ENERGY RETAIL 4 LTD,945607142,12,144.47,GAS,29/08/2014,
140783,CORONA ENERGY RETAIL 4 LTD,945607142,13,44.11,GAS,29/08/2014,
140783,CORONA ENERGY RETAIL 4 LTD,945607142,14,765.9,GAS,29/08/2014,
140783,CORONA ENERGY RETAIL 4 LTD,945607142,15,25.25,GAS,29/08/2014,
140783,CORONA ENERGY RETAIL 4 LTD,945607142,16,340.29,GAS,29/08/2014,
140783,CORONA ENERGY RETAIL 4 LTD,945607142,17,228.7,GAS,29/08/2014,
140783,CORONA ENERGY RETAIL 4 LTD,945607142,18,95.17,GAS,29/08/2014,
140783,CORONA ENERGY RETAIL 4 LTD,945607142,19,276.21,GAS,29/08/2014,
140783,CORONA ENERGY RETAIL 4 LTD,945607142,20,239.37,GAS,29/08/2014,
140783,CORONA ENERGY RETAIL 4 LTD,945607142,21,238.55,GAS,29/08/2014,
140783,CORONA ENERGY RETAIL 4 LTD,945607142,22,19.84,GAS,29/08/2014,
140783,CORONA ENERGY RETAIL 4 LTD,945607142,23,224.13,GAS,29/08/2014,
140783,CORONA ENERGY RETAIL 4 LTD,945607142,24,201.02,GAS,29/08/2014,
140783,CORONA ENERGY RETAIL 4 LTD,945607142,25,193.1,GAS,29/08/2014,
140783,CORONA ENERGY RETAIL 4 LTD,945607142,26,235.75,GAS,29/08/2014,
140783,CORONA ENERGY RETAIL 4 LTD,945607142,27,272.29,GAS,29/08/2014,
140783,CORONA ENERGY RETAIL 4 LTD,945607142,28,268.84,GAS,29/08/2014,
140783,CORONA ENERGY RETAIL 4 LTD,945607142,29,369.42,GAS,29/08/2014,
140783,CORONA ENERGY RETAIL 4 LTD,945607142,30,167.71,GAS,29/08/2014,
140783,CORONA ENERGY RETAIL 4 LTD,945607142,31,397.55,GAS,29/08/2014,
140783,CORONA ENERGY RETAIL 4 LTD,945607142,32,140.95,GAS,29/08/2014,
140784,CORONA ENERGY RETAIL 4 LTD,945607143,1,337.7,GAS,29/08/2014,"11,066.88"
140784,CORONA ENERGY RETAIL 4 LTD,945607143,2,187.84,GAS,29/08/2014,
140784,CORONA ENERGY RETAIL 4 LTD,945607143,3,"1,021.42",GAS,29/08/2014,
140784,CORONA ENERGY RETAIL 4 LTD,945607143,4,268.61,GAS,29/08/2014,
140784,CORONA ENERGY RETAIL 4 LTD,945607143,5,56.77,GAS,29/08/2014,
140784,CORONA ENERGY RETAIL 4 LTD,945607143,6,112.33,GAS,29/08/2014,
140784,CORONA ENERGY RETAIL 4 LTD,945607143,7,518.46,GAS,29/08/2014,
140784,CORONA ENERGY RETAIL 4 LTD,945607143,8,189.09,GAS,29/08/2014,
140784,CORONA ENERGY RETAIL 4 LTD,945607143,9,449.73,GAS,29/08/2014,
140784,CORONA ENERGY RETAIL 4 LTD,945607143,10,"1,207.25",GAS,29/08/2014,
140784,CORONA ENERGY RETAIL 4 LTD,945607143,11,158.24,GAS,29/08/2014,
140784,CORONA ENERGY RETAIL 4 LTD,945607143,12,696.28,GAS,29/08/2014,
140784,CORONA ENERGY RETAIL 4 LTD,945607143,13,190.42,GAS,29/08/2014,
140784,CORONA ENERGY RETAIL 4 LTD,945607143,14,373.73,GAS,29/08/2014,
140784,CORONA ENERGY RETAIL 4 LTD,945607143,15,69.22,GAS,29/08/2014,
140784,CORONA ENERGY RETAIL 4 LTD,945607143,16,267.52,GAS,29/08/2014,
140784,CORONA ENERGY RETAIL 4 LTD,945607143,17,211.82,GAS,29/08/2014,
140784,CORONA ENERGY RETAIL 4 LTD,945607143,18,364.57,GAS,29/08/2014,
140784,CORONA ENERGY RETAIL 4 LTD,945607143,19,200.54,GAS,29/08/2014,
140784,CORONA ENERGY RETAIL 4 LTD,945607143,20,734.56,GAS,29/08/2014,
140784,CORONA ENERGY RETAIL 4 LTD,945607143,21,232.39,GAS,29/08/2014,
140784,CORONA ENERGY RETAIL 4 LTD,945607143,22,307.09,GAS,29/08/2014,
140784,CORONA ENERGY RETAIL 4 LTD,945607143,23,180,GAS,29/08/2014,
140784,CORONA ENERGY RETAIL 4 LTD,945607143,24,357,GAS,29/08/2014,
140784,CORONA ENERGY RETAIL 4 LTD,945607143,25,161.09,GAS,29/08/2014,
140784,CORONA ENERGY RETAIL 4 LTD,945607143,26,278.78,GAS,29/08/2014,
140784,CORONA ENERGY RETAIL 4 LTD,945607143,27,215.18,GAS,29/08/2014,
140784,CORONA ENERGY RETAIL 4 LTD,945607143,28,210.56,GAS,29/08/2014,
140784,CORONA ENERGY RETAIL 4 LTD,945607143,29,508.06,GAS,29/08/2014,
140784,CORONA ENERGY RETAIL 4 LTD,945607143,30,798.12,GAS,29/08/2014,
140784,CORONA ENERGY RETAIL 4 LTD,945607143,31,202.51,GAS,29/08/2014,
140785,CORONA ENERGY RETAIL 4 LTD,945607144,1,167.31,GAS,29/08/2014,"9,990.09"
140785,CORONA ENERGY RETAIL 4 LTD,945607144,2,360.21,GAS,29/08/2014,
140785,CORONA ENERGY RETAIL 4 LTD,945607144,3,207.03,GAS,29/08/2014,
140785,CORONA ENERGY RETAIL 4 LTD,945607144,4,301.24,GAS,29/08/2014,
140785,CORONA ENERGY RETAIL 4 LTD,945607144,5,"1,391.51",GAS,29/08/2014,
140785,CORONA ENERGY RETAIL 4 LTD,945607144,6,347.88,GAS,29/08/2014,
140785,CORONA ENERGY RETAIL 4 LTD,945607144,7,118.11,GAS,29/08/2014,
140785,CORONA ENERGY RETAIL 4 LTD,945607144,8,309.7,GAS,29/08/2014,
140785,CORONA ENERGY RETAIL 4 LTD,945607144,9,241.28,GAS,29/08/2014,
140785,CORONA ENERGY RETAIL 4 LTD,945607144,10,458.67,GAS,29/08/2014,
140785,CORONA ENERGY RETAIL 4 LTD,945607144,11,9.3,GAS,29/08/2014,
140785,CORONA ENERGY RETAIL 4 LTD,945607144,12,181.41,GAS,29/08/2014,
140785,CORONA ENERGY RETAIL 4 LTD,945607144,13,356.85,GAS,29/08/2014,
140785,CORONA ENERGY RETAIL 4 LTD,945607144,14,315.81,GAS,29/08/2014,
140785,CORONA ENERGY RETAIL 4 LTD,945607144,15,271.99,GAS,29/08/2014,
140785,CORONA ENERGY RETAIL 4 LTD,945607144,16,106.36,GAS,29/08/2014,
140785,CORONA ENERGY RETAIL 4 LTD,945607144,17,346.97,GAS,29/08/2014,
140785,CORONA ENERGY RETAIL 4 LTD,945607144,18,181.18,GAS,29/08/2014,
140785,CORONA ENERGY RETAIL 4 LTD,945607144,19,252.28,GAS,29/08/2014,
140785,CORONA ENERGY RETAIL 4 LTD,945607144,20,581.97,GAS,29/08/2014,
140785,CORONA ENERGY RETAIL 4 LTD,945607144,21,145.21,GAS,29/08/2014,
140785,CORONA ENERGY RETAIL 4 LTD,945607144,22,279.51,GAS,29/08/2014,
140785,CORONA ENERGY RETAIL 4 LTD,945607144,23,264.31,GAS,29/08/2014,
140785,CORONA ENERGY RETAIL 4 LTD,945607144,24,20.77,GAS,29/08/2014,
140785,CORONA ENERGY RETAIL 4 LTD,945607144,25,268.95,GAS,29/08/2014,
140785,CORONA ENERGY RETAIL 4 LTD,945607144,26,291.51,GAS,29/08/2014,
140785,CORONA ENERGY RETAIL 4 LTD,945607144,27,229.16,GAS,29/08/2014,
140785,CORONA ENERGY RETAIL 4 LTD,945607144,28,622.6,GAS,29/08/2014,
140785,CORONA ENERGY RETAIL 4 LTD,945607144,29,265.87,GAS,29/08/2014,
140785,CORONA ENERGY RETAIL 4 LTD,945607144,30,286.7,GAS,29/08/2014,
140785,CORONA ENERGY RETAIL 4 LTD,945607144,31,403.72,GAS,29/08/2014,
140785,CORONA ENERGY RETAIL 4 LTD,945607144,32,404.72,GAS,29/08/2014,
220814G,NISBETS=======================,10058660,1,529.99,CATERING EQUIPMENT,29/08/2014,529.99
220814G,*SPRUE SAFETY PRODUCTS LTD====,1064017,1,"2,400.00",FIRE DETECTORS,29/08/2014,"2,400.00"
220814G,*SPRUE SAFETY PRODUCTS LTD====,1064030,1,880,FIRE DETECTORS,29/08/2014,880
800052131,*JAMES HUNTER (OUTFITTERS) LTD,107800,1,362.23,CLOTHING,29/08/2014,362.23
220814G,REAM CONTRACTS LTD,11405,1,"45,978.38",DEVELOPMENT  EXPENSES-CONTRACT,29/08/2014,"45,978.38"
130814G,BANHAUS LTD,1292,1,"1,650.00",OPERATIONAL EQUIP-PURCHASE,29/08/2014,"1,650.00"
800051884,REDFERN TRAVEL LTD,1327688,1,557.65,PUBLIC TRANSPORT,29/08/2014,557.65
800051882,REDFERN TRAVEL LTD,1328049,1,267.41,PUBLIC TRANSPORT,29/08/2014,267.41
800051892,REDFERN TRAVEL LTD,1329771,1,608.42,PUBLIC TRANSPORT,29/08/2014,608.42
800051899,REDFERN TRAVEL LTD,1332186,1,"5,070.80",PUBLIC TRANSPORT,29/08/2014,"5,070.80"
800051951,REDFERN TRAVEL LTD,1332692,1,254.52,PUBLIC TRANSPORT,29/08/2014,254.52
800051903,REDFERN TRAVEL LTD,1333518,1,"1,040.90",PUBLIC TRANSPORT,29/08/2014,"1,040.90"
800051904,REDFERN TRAVEL LTD,1333519,1,289.9,PUBLIC TRANSPORT,29/08/2014,289.9
800051920,REDFERN TRAVEL LTD,1333774,1,381.95,PUBLIC TRANSPORT,29/08/2014,381.95
800051915,REDFERN TRAVEL LTD,1333775,1,518.4,PUBLIC TRANSPORT,29/08/2014,518.4
800051914,REDFERN TRAVEL LTD,1333791,1,447.4,PUBLIC TRANSPORT,29/08/2014,447.4
800051905,REDFERN TRAVEL LTD,1333793,1,411.65,PUBLIC TRANSPORT,29/08/2014,411.65
800051917,REDFERN TRAVEL LTD,1333798,1,434.65,PUBLIC TRANSPORT,29/08/2014,434.65
800051910,REDFERN TRAVEL LTD,1333800,1,434.65,PUBLIC TRANSPORT,29/08/2014,434.65
800051907,REDFERN TRAVEL LTD,1333801,1,468.95,PUBLIC TRANSPORT,29/08/2014,468.95
800051912,REDFERN TRAVEL LTD,1333809,1,328.65,PUBLIC TRANSPORT,29/08/2014,328.65
800051919,REDFERN TRAVEL LTD,1333810,1,397.35,PUBLIC TRANSPORT,29/08/2014,397.35
800051909,REDFERN TRAVEL LTD,1333811,1,310.9,PUBLIC TRANSPORT,29/08/2014,310.9
800051911,REDFERN TRAVEL LTD,1333812,1,483.4,PUBLIC TRANSPORT,29/08/2014,483.4
800051918,REDFERN TRAVEL LTD,1333816,1,345.2,PUBLIC TRANSPORT,29/08/2014,345.2
800051923,REDFERN TRAVEL LTD,1335275,1,694.7,PUBLIC TRANSPORT,29/08/2014,694.7
800051949,REDFERN TRAVEL LTD,1335825,1,300,OVERSEAS TRAVEL,29/08/2014,300
800051935,REDFERN TRAVEL LTD,1340415,1,288.85,PUBLIC TRANSPORT,29/08/2014,288.85
800051933,REDFERN TRAVEL LTD,1340416,1,288.85,PUBLIC TRANSPORT,29/08/2014,288.85
800051934,REDFERN TRAVEL LTD,1340418,1,285.45,PUBLIC TRANSPORT,29/08/2014,285.45
800051932,REDFERN TRAVEL LTD,1340434,1,285.45,PUBLIC TRANSPORT,29/08/2014,285.45
800051944,REDFERN TRAVEL LTD,1341343,1,299.1,PUBLIC TRANSPORT,29/08/2014,299.1
210814F,H J HALL & SON================,134194,1,719.82,UNIFORMS - POMS,29/08/2014,"1,110.42"
210814F,H J HALL & SON================,134194,2,390.6,UNIFORMS - POMS,29/08/2014,
800051946,REDFERN TRAVEL LTD,1342014,1,253.35,PUBLIC TRANSPORT,29/08/2014,253.35
220814G,PA ASSOCIATES (UK) LTD========,14064,1,120,CONSULTANTS,29/08/2014,840
220814G,PA ASSOCIATES (UK) LTD========,14064,2,120,CONSULTANTS,29/08/2014,
220814G,PA ASSOCIATES (UK) LTD========,14064,3,120,CONSULTANTS,29/08/2014,
220814G,PA ASSOCIATES (UK) LTD========,14064,4,120,CONSULTANTS,29/08/2014,
220814G,PA ASSOCIATES (UK) LTD========,14064,5,120,CONSULTANTS,29/08/2014,
220814G,PA ASSOCIATES (UK) LTD========,14064,6,120,CONSULTANTS,29/08/2014,
220814G,PA ASSOCIATES (UK) LTD========,14064,7,120,CONSULTANTS,29/08/2014,
140787,ARTHUR J. GALLAGHER (UK),15439295,1,"110,530.34",PREMIUMS,29/08/2014,"147,373.78"
140787,ARTHUR J. GALLAGHER (UK),15439295,2,"36,843.44",PAYMENTS IN ADVANCE,29/08/2014,
140787,ARTHUR J. GALLAGHER (UK),15439487,1,"93,293.25",PREMIUMS,29/08/2014,"295,104.00"
140787,ARTHUR J. GALLAGHER (UK),15439487,2,"31,097.75",PAYMENTS IN ADVANCE,29/08/2014,
140787,ARTHUR J. GALLAGHER (UK),15439487,3,"128,034.75",PREMIUMS,29/08/2014,
140787,ARTHUR J. GALLAGHER (UK),15439487,4,"42,678.25",PAYMENTS IN ADVANCE,29/08/2014,
140787,ARTHUR J. GALLAGHER (UK),15439811,1,"10,583.12",PREMIUMS,29/08/2014,"14,110.83"
140787,ARTHUR J. GALLAGHER (UK),15439811,2,"3,527.71",PAYMENTS IN ADVANCE,29/08/2014,
140787,ARTHUR J. GALLAGHER (UK),15440025,1,"16,695.00",PREMIUMS,29/08/2014,"22,260.00"
140787,ARTHUR J. GALLAGHER (UK),15440025,2,"5,565.00",PAYMENTS IN ADVANCE,29/08/2014,
140787,ARTHUR J. GALLAGHER (UK),15440346,1,"16,695.00",PREMIUMS,29/08/2014,"22,260.00"
140787,ARTHUR J. GALLAGHER (UK),15440346,2,"5,565.00",PAYMENTS IN ADVANCE,29/08/2014,
140787,ARTHUR J. GALLAGHER (UK),15440514,1,"15,900.00",PREMIUMS,29/08/2014,"21,200.00"
140787,ARTHUR J. GALLAGHER (UK),15440514,2,"5,300.00",PAYMENTS IN ADVANCE,29/08/2014,
140787,ARTHUR J. GALLAGHER (UK),15440665,1,"113,389.19",PREMIUMS,29/08/2014,"151,185.58"
140787,ARTHUR J. GALLAGHER (UK),15440665,2,"37,796.39",PAYMENTS IN ADVANCE,29/08/2014,
140787,ARTHUR J. GALLAGHER (UK),15443232,1,"1,502.15",PREMIUMS,29/08/2014,"2,002.87"
140787,ARTHUR J. GALLAGHER (UK),15443232,2,500.72,PAYMENTS IN ADVANCE,29/08/2014,
140787,ARTHUR J. GALLAGHER (UK),15443359,1,"4,744.14",PREMIUMS,29/08/2014,"6,325.52"
140787,ARTHUR J. GALLAGHER (UK),15443359,2,"1,581.38",PAYMENTS IN ADVANCE,29/08/2014,
140787,ARTHUR J. GALLAGHER (UK),15443670,1,"4,038.60",PREMIUMS,29/08/2014,"5,384.80"
140787,ARTHUR J. GALLAGHER (UK),15443670,2,"1,346.20",PAYMENTS IN ADVANCE,29/08/2014,
200814E,DYSLEXIA ACTION,172410,1,540,LEARNING SUPPORT,29/08/2014,540
110814G,GREATER LONDON AUTHORITY======,1800004192,1,"30,733.59",GLA GROUP SHARED SERVICES,29/08/2014,"30,733.59"
220814G,BDG WORKFUTURES LTD===========,201401637,1,"6,990.00",PROFESSIONAL SERVICES,29/08/2014,"6,990.00"
220814G,GRADIENT CONSULTANTS LLP======,2109,1,487.23,ASBESTOS,29/08/2014,"1,705.28"
220814G,GRADIENT CONSULTANTS LLP======,2109,2,243.61,ASBESTOS,29/08/2014,
220814G,GRADIENT CONSULTANTS LLP======,2109,3,243.61,ASBESTOS,29/08/2014,
220814G,GRADIENT CONSULTANTS LLP======,2109,4,243.61,ASBESTOS,29/08/2014,
220814G,GRADIENT CONSULTANTS LLP======,2109,5,243.61,ASBESTOS,29/08/2014,
220814G,GRADIENT CONSULTANTS LLP======,2109,6,243.61,ASBESTOS,29/08/2014,
260814E,SOUTHERN ASBESTOS SERVICES LTD,218377,1,"1,490.00",ASBESTOS,29/08/2014,"1,490.00"
260814E,INFIGO LTD====================,23209,1,497.5,STATIONERY CONSUMABLES,29/08/2014,497.5
270814F,VIGILANCE PROPERTIES,2434,1,"4,625.00",PREMISES SECURITY,29/08/2014,"4,625.00"
270814F,VIGILANCE PROPERTIES,2435,1,"4,625.00",PREMISES SECURITY,29/08/2014,"4,625.00"
270814F,VIGILANCE PROPERTIES,2436,1,"4,625.00",PREMISES SECURITY,29/08/2014,"4,625.00"
270814F,VIGILANCE PROPERTIES,2437,1,"4,625.00",PREMISES SECURITY,29/08/2014,"4,625.00"
270814F,VIGILANCE PROPERTIES,2438,1,"6,937.50",PREMISES SECURITY,29/08/2014,"6,937.50"
270814F,VIGILANCE PROPERTIES,2439,1,"4,625.00",PREMISES SECURITY,29/08/2014,"4,625.00"
270814F,VIGILANCE PROPERTIES,2440,1,"4,625.00",PREMISES SECURITY,29/08/2014,"4,625.00"
270814F,VIGILANCE PROPERTIES,2441,1,"4,625.00",PREMISES SECURITY,29/08/2014,"4,625.00"
270814F,VIGILANCE PROPERTIES,2442,1,"4,625.00",PREMISES SECURITY,29/08/2014,"4,625.00"
270814F,VIGILANCE PROPERTIES,2443,1,"4,625.00",PREMISES SECURITY,29/08/2014,"4,625.00"
800052386,ADECCO UK LIMITED=============,26882991,1,611.8,FRS STAFF AGENCY,29/08/2014,611.8
800052411,ADECCO UK LIMITED=============,26890175,1,489.72,FRS STAFF AGENCY,29/08/2014,489.72
800052413,ADECCO UK LIMITED=============,26890177,1,577.17,FRS STAFF AGENCY,29/08/2014,577.17
800052414,ADECCO UK LIMITED=============,26890178,1,439.6,FRS STAFF AGENCY,29/08/2014,439.6
800052415,ADECCO UK LIMITED=============,26890179,1,612.15,FRS STAFF AGENCY,29/08/2014,612.15
800052416,ADECCO UK LIMITED=============,26890180,1,879.9,FRS STAFF AGENCY,29/08/2014,879.9
800052418,ADECCO UK LIMITED=============,26890182,1,439.6,FRS STAFF AGENCY,29/08/2014,439.6
800052419,ADECCO UK LIMITED=============,26890183,1,527.94,FRS STAFF AGENCY,29/08/2014,527.94
800052441,ADECCO UK LIMITED=============,26890185,1,708.8,FRS STAFF AGENCY,29/08/2014,708.8
800052442,ADECCO UK LIMITED=============,26890186,1,708.8,FRS STAFF AGENCY,29/08/2014,708.8
800052423,ADECCO UK LIMITED=============,26890187,1,577.17,FRS STAFF AGENCY,29/08/2014,577.17
800052424,ADECCO UK LIMITED=============,26890188,1,612.15,FRS STAFF AGENCY,29/08/2014,612.15
800052425,ADECCO UK LIMITED=============,26890189,1,263.76,FRS STAFF AGENCY,29/08/2014,263.76
800052426,ADECCO UK LIMITED=============,26890190,1,401.92,FRS STAFF AGENCY,29/08/2014,401.92
800052427,ADECCO UK LIMITED=============,26890191,1,942.2,FRS STAFF AGENCY,29/08/2014,942.2
800052428,ADECCO UK LIMITED=============,26890192,1,"1,285.50",FRS STAFF AGENCY,29/08/2014,"1,285.50"
800052429,ADECCO UK LIMITED=============,26890193,1,"1,949.85",FRS STAFF AGENCY,29/08/2014,"1,949.85"
800052431,ADECCO UK LIMITED=============,26890195,1,367.29,FRS STAFF AGENCY,29/08/2014,367.29
800052433,ADECCO UK LIMITED=============,26890197,1,704.9,FRS STAFF AGENCY,29/08/2014,704.9
800052443,ADECCO UK LIMITED=============,26890198,1,297.33,FRS STAFF AGENCY,29/08/2014,297.33
800052445,ADECCO UK LIMITED=============,26890199,1,439.6,FRS STAFF AGENCY,29/08/2014,439.6
800052444,ADECCO UK LIMITED=============,26890201,1,439.6,FRS STAFF AGENCY,29/08/2014,439.6
260814E,CARPETS & FLOOR COVERS DIRECT=,3008,1,300,TACTICAL DAY TO DAY,29/08/2014,300
260814E,CARPETS & FLOOR COVERS DIRECT=,3009,1,"2,784.00",FIXTURES & FITTINGS,29/08/2014,"2,784.00"
260814E,CARPETS & FLOOR COVERS DIRECT=,3017,1,527.36,FIXTURES & FITTINGS,29/08/2014,527.36
220814G,CIPFA BUSINESS,3100435,1,733.33,MISCELLANEOUS DISBURSEMENTS,29/08/2014,733.33
220814G,EVOLUTION ENVIRONMENTAL LTD,3237,1,"1,600.00",ASBESTOS,29/08/2014,"2,190.00"
220814G,EVOLUTION ENVIRONMENTAL LTD,3237,2,590,ASBESTOS,29/08/2014,
260814E,EVOLUTION ENVIRONMENTAL LTD,3269,1,185,ASBESTOS,29/08/2014,555
260814E,EVOLUTION ENVIRONMENTAL LTD,3269,2,185,ASBESTOS,29/08/2014,
260814E,EVOLUTION ENVIRONMENTAL LTD,3269,3,185,ASBESTOS,29/08/2014,
270814F,*HOMEPACK LTD=================,39790,1,93.6,OPERATIONAL EQUIP-PURCHASE,29/08/2014,280.8
270814F,*HOMEPACK LTD=================,39790,2,93.6,OPERATIONAL EQUIP-PURCHASE,29/08/2014,
270814F,*HOMEPACK LTD=================,39790,3,93.6,OPERATIONAL EQUIP-PURCHASE,29/08/2014,
270814F,FOCUS & VISION TECHNOLOGY LTD,41827,1,463.1,MEDICAL EXPENSES CONTRACT,29/08/2014,463.1
260814E,WILLMOTT DIXON CONSTRUCTION,442797,1,"642,538.54",DEVELOPMENT  EXPENSES-CONTRACT,29/08/2014,"642,538.54"
800051745,*OCS GROUP UK LTD,5000028280-49,1,304.5,REFRESHMENTS,29/08/2014,304.5
190814F,LYON EQUIPMENT LIMITED========,501007,1,"2,855.91",OPERATIONAL EQUIP-PURCHASE,29/08/2014,"2,855.91"
190814F,EX-OR LTD=====================,5230018861,1,696.85,STRATEGIC (CYCLICAL),29/08/2014,696.85
210814F,PRESSURE COOLERS LTD==========,551856,1,8.25,CATERING FIXTURES,29/08/2014,"1,197.00"
210814F,PRESSURE COOLERS LTD==========,551856,2,8.25,CATERING FIXTURES,29/08/2014,
210814F,PRESSURE COOLERS LTD==========,551856,3,8.25,CATERING FIXTURES,29/08/2014,
210814F,PRESSURE COOLERS LTD==========,551856,4,8.25,CATERING FIXTURES,29/08/2014,
210814F,PRESSURE COOLERS LTD==========,551856,5,8,CATERING FIXTURES,29/08/2014,
210814F,PRESSURE COOLERS LTD==========,551856,6,8.25,CATERING FIXTURES,29/08/2014,
210814F,PRESSURE COOLERS LTD==========,551856,7,8,CATERING FIXTURES,29/08/2014,
210814F,PRESSURE COOLERS LTD==========,551856,8,8.25,CATERING FIXTURES,29/08/2014,
210814F,PRESSURE COOLERS LTD==========,551856,9,8.25,CATERING FIXTURES,29/08/2014,
210814F,PRESSURE COOLERS LTD==========,551856,10,8.25,CATERING FIXTURES,29/08/2014,
210814F,PRESSURE COOLERS LTD==========,551856,11,8.25,CATERING EQUIPMENT,29/08/2014,
210814F,PRESSURE COOLERS LTD==========,551856,12,8.25,CATERING FIXTURES,29/08/2014,
210814F,PRESSURE COOLERS LTD==========,551856,13,8.25,CATERING FIXTURES,29/08/2014,
210814F,PRESSURE COOLERS LTD==========,551856,14,8.25,CATERING FIXTURES,29/08/2014,
210814F,PRESSURE COOLERS LTD==========,551856,15,8,CATERING FIXTURES,29/08/2014,
210814F,PRESSURE COOLERS LTD==========,551856,16,8.25,CATERING FIXTURES,29/08/2014,
210814F,PRESSURE COOLERS LTD==========,551856,17,8,CATERING FIXTURES,29/08/2014,
210814F,PRESSURE COOLERS LTD==========,551856,18,8.25,CATERING FIXTURES,29/08/2014,
210814F,PRESSURE COOLERS LTD==========,551856,19,8.25,CATERING FIXTURES,29/08/2014,
210814F,PRESSURE COOLERS LTD==========,551856,20,8,CATERING FIXTURES,29/08/2014,
210814F,PRESSURE COOLERS LTD==========,551856,21,8.25,CATERING FIXTURES,29/08/2014,
210814F,PRESSURE COOLERS LTD==========,551856,22,8.25,CATERING FIXTURES,29/08/2014,
210814F,PRESSURE COOLERS LTD==========,551856,23,8.25,CATERING FIXTURES,29/08/2014,
210814F,PRESSURE COOLERS LTD==========,551856,24,8,CATERING FIXTURES,29/08/2014,
210814F,PRESSURE COOLERS LTD==========,551856,25,8.25,CATERING FIXTURES,29/08/2014,
210814F,PRESSURE COOLERS LTD==========,551856,26,8.25,CATERING FIXTURES,29/08/2014,
210814F,PRESSURE COOLERS LTD==========,551856,27,8.25,CATERING FIXTURES,29/08/2014,
210814F,PRESSURE COOLERS LTD==========,551856,28,8.25,CATERING EQUIPMENT,29/08/2014,
210814F,PRESSURE COOLERS LTD==========,551856,29,8.25,CATERING FIXTURES,29/08/2014,
210814F,PRESSURE COOLERS LTD==========,551856,30,8.25,CATERING EQUIPMENT,29/08/2014,
210814F,PRESSURE COOLERS LTD==========,551856,31,8.25,CATERING FIXTURES,29/08/2014,
210814F,PRESSURE COOLERS LTD==========,551856,32,8.25,CATERING FIXTURES,29/08/2014,
210814F,PRESSURE COOLERS LTD==========,551856,33,8.25,CATERING FIXTURES,29/08/2014,
210814F,PRESSURE COOLERS LTD==========,551856,34,8.25,CATERING FIXTURES,29/08/2014,
210814F,PRESSURE COOLERS LTD==========,551856,35,8.25,OFFICE EQUIPMENT,29/08/2014,
210814F,PRESSURE COOLERS LTD==========,551856,36,8.25,CATERING FIXTURES,29/08/2014,
210814F,PRESSURE COOLERS LTD==========,551856,37,8.25,CATERING FIXTURES,29/08/2014,
210814F,PRESSURE COOLERS LTD==========,551856,38,8.25,CATERING FIXTURES,29/08/2014,
210814F,PRESSURE COOLERS LTD==========,551856,39,8,CATERING FIXTURES,29/08/2014,
210814F,PRESSURE COOLERS LTD==========,551856,40,8,CATERING FIXTURES,29/08/2014,
210814F,PRESSURE COOLERS LTD==========,551856,41,8.25,CATERING FIXTURES,29/08/2014,
210814F,PRESSURE COOLERS LTD==========,551856,42,8.25,CATERING FIXTURES,29/08/2014,
210814F,PRESSURE COOLERS LTD==========,551856,43,8.25,CATERING FIXTURES,29/08/2014,
210814F,PRESSURE COOLERS LTD==========,551856,44,8.25,CATERING FIXTURES,29/08/2014,
210814F,PRESSURE COOLERS LTD==========,551856,45,8,CATERING FIXTURES,29/08/2014,
210814F,PRESSURE COOLERS LTD==========,551856,46,8.25,CATERING FIXTURES,29/08/2014,
210814F,PRESSURE COOLERS LTD==========,551856,47,8.25,CATERING FIXTURES,29/08/2014,
210814F,PRESSURE COOLERS LTD==========,551856,48,8.25,CATERING FIXTURES,29/08/2014,
210814F,PRESSURE COOLERS LTD==========,551856,49,8.25,CATERING FIXTURES,29/08/2014,
210814F,PRESSURE COOLERS LTD==========,551856,50,8.25,CATERING FIXTURES,29/08/2014,
210814F,PRESSURE COOLERS LTD==========,551856,51,8.25,CATERING FIXTURES,29/08/2014,
210814F,PRESSURE COOLERS LTD==========,551856,52,8,CATERING FIXTURES,29/08/2014,
210814F,PRESSURE COOLERS LTD==========,551856,53,8.25,CATERING FIXTURES,29/08/2014,
210814F,PRESSURE COOLERS LTD==========,551856,54,8.25,CATERING EQUIPMENT,29/08/2014,
210814F,PRESSURE COOLERS LTD==========,551856,55,8.25,CATERING FIXTURES,29/08/2014,
210814F,PRESSURE COOLERS LTD==========,551856,56,8.25,CATERING FIXTURES,29/08/2014,
210814F,PRESSURE COOLERS LTD==========,551856,57,8.25,CATERING FIXTURES,29/08/2014,
210814F,PRESSURE COOLERS LTD==========,551856,58,8.25,CATERING FIXTURES,29/08/2014,
210814F,PRESSURE COOLERS LTD==========,551856,59,8.25,CATERING FIXTURES,29/08/2014,
210814F,PRESSURE COOLERS LTD==========,551856,60,8.25,CATERING FIXTURES,29/08/2014,
210814F,PRESSURE COOLERS LTD==========,551856,61,8.25,CATERING FIXTURES,29/08/2014,
210814F,PRESSURE COOLERS LTD==========,551856,62,8,CATERING FIXTURES,29/08/2014,
210814F,PRESSURE COOLERS LTD==========,551856,63,8.25,CATERING FIXTURES,29/08/2014,
210814F,PRESSURE COOLERS LTD==========,551856,64,8.25,CATERING FIXTURES,29/08/2014,
210814F,PRESSURE COOLERS LTD==========,551856,65,8.25,CATERING FIXTURES,29/08/2014,
210814F,PRESSURE COOLERS LTD==========,551856,66,8.25,CATERING FIXTURES,29/08/2014,
210814F,PRESSURE COOLERS LTD==========,551856,67,8.25,CATERING FIXTURES,29/08/2014,
210814F,PRESSURE COOLERS LTD==========,551856,68,8.25,CATERING FIXTURES,29/08/2014,
210814F,PRESSURE COOLERS LTD==========,551856,69,8.25,CATERING FIXTURES,29/08/2014,
210814F,PRESSURE COOLERS LTD==========,551856,70,8.25,CATERING FIXTURES,29/08/2014,
210814F,PRESSURE COOLERS LTD==========,551856,71,8.25,CATERING FIXTURES,29/08/2014,
210814F,PRESSURE COOLERS LTD==========,551856,72,8.25,CATERING FIXTURES,29/08/2014,
210814F,PRESSURE COOLERS LTD==========,551856,73,8.25,CATERING FIXTURES,29/08/2014,
210814F,PRESSURE COOLERS LTD==========,551856,74,8.25,CATERING FIXTURES,29/08/2014,
210814F,PRESSURE COOLERS LTD==========,551856,75,8.25,CATERING FIXTURES,29/08/2014,
210814F,PRESSURE COOLERS LTD==========,551856,76,8.25,OFFICE EQUIPMENT,29/08/2014,
210814F,PRESSURE COOLERS LTD==========,551856,77,8.25,CATERING FIXTURES,29/08/2014,
210814F,PRESSURE COOLERS LTD==========,551856,78,8,CATERING FIXTURES,29/08/2014,
210814F,PRESSURE COOLERS LTD==========,551856,79,8,CATERING FIXTURES,29/08/2014,
210814F,PRESSURE COOLERS LTD==========,551856,80,8.25,CATERING FIXTURES,29/08/2014,
210814F,PRESSURE COOLERS LTD==========,551856,81,8,CATERING FIXTURES,29/08/2014,
210814F,PRESSURE COOLERS LTD==========,551856,82,8,OFFICE EQUIPMENT,29/08/2014,
210814F,PRESSURE COOLERS LTD==========,551856,83,8.25,CATERING FIXTURES,29/08/2014,
210814F,PRESSURE COOLERS LTD==========,551856,84,8,CATERING FIXTURES,29/08/2014,
210814F,PRESSURE COOLERS LTD==========,551856,85,8.25,CATERING FIXTURES,29/08/2014,
210814F,PRESSURE COOLERS LTD==========,551856,86,8.25,CATERING FIXTURES,29/08/2014,
210814F,PRESSURE COOLERS LTD==========,551856,87,8,CATERING FIXTURES,29/08/2014,
210814F,PRESSURE COOLERS LTD==========,551856,88,8.25,CATERING FIXTURES,29/08/2014,
210814F,PRESSURE COOLERS LTD==========,551856,89,8.25,CATERING FIXTURES,29/08/2014,
210814F,PRESSURE COOLERS LTD==========,551856,90,8,CATERING FIXTURES,29/08/2014,
210814F,PRESSURE COOLERS LTD==========,551856,91,8.25,CATERING FIXTURES,29/08/2014,
210814F,PRESSURE COOLERS LTD==========,551856,92,8.25,CATERING FIXTURES,29/08/2014,
210814F,PRESSURE COOLERS LTD==========,551856,93,8.25,CATERING FIXTURES,29/08/2014,
210814F,PRESSURE COOLERS LTD==========,551856,94,8.25,CATERING FIXTURES,29/08/2014,
210814F,PRESSURE COOLERS LTD==========,551856,95,8.25,CATERING FIXTURES,29/08/2014,
210814F,PRESSURE COOLERS LTD==========,551856,96,8.25,CATERING FIXTURES,29/08/2014,
210814F,PRESSURE COOLERS LTD==========,551856,97,8,CATERING FIXTURES,29/08/2014,
210814F,PRESSURE COOLERS LTD==========,551856,98,8.25,CATERING FIXTURES,29/08/2014,
210814F,PRESSURE COOLERS LTD==========,551856,99,8.25,CATERING FIXTURES,29/08/2014,
210814F,PRESSURE COOLERS LTD==========,551856,100,8.25,CATERING FIXTURES,29/08/2014,
210814F,PRESSURE COOLERS LTD==========,551856,101,8,CATERING FIXTURES,29/08/2014,
210814F,PRESSURE COOLERS LTD==========,551856,102,8,CATERING FIXTURES,29/08/2014,
210814F,PRESSURE COOLERS LTD==========,551856,103,8.25,CATERING FIXTURES,29/08/2014,
210814F,PRESSURE COOLERS LTD==========,551856,104,8.25,CATERING FIXTURES,29/08/2014,
210814F,PRESSURE COOLERS LTD==========,551856,105,8,CATERING FIXTURES,29/08/2014,
210814F,PRESSURE COOLERS LTD==========,551856,106,8.25,CATERING FIXTURES,29/08/2014,
210814F,PRESSURE COOLERS LTD==========,551856,107,8.25,RADIO,29/08/2014,
210814F,PRESSURE COOLERS LTD==========,551856,108,8.25,CATERING FIXTURES,29/08/2014,
210814F,PRESSURE COOLERS LTD==========,551856,109,8.25,CATERING FIXTURES,29/08/2014,
210814F,PRESSURE COOLERS LTD==========,551856,110,8.25,CATERING FIXTURES,29/08/2014,
210814F,PRESSURE COOLERS LTD==========,551856,111,8,CATERING FIXTURES,29/08/2014,
210814F,PRESSURE COOLERS LTD==========,551856,112,8.25,CATERING FIXTURES,29/08/2014,
210814F,PRESSURE COOLERS LTD==========,551856,113,8.25,CATERING FIXTURES,29/08/2014,
210814F,PRESSURE COOLERS LTD==========,551856,114,8.25,CATERING FIXTURES,29/08/2014,
210814F,PRESSURE COOLERS LTD==========,551856,115,8.25,CATERING FIXTURES,29/08/2014,
210814F,PRESSURE COOLERS LTD==========,551856,116,8.25,CATERING FIXTURES,29/08/2014,
210814F,PRESSURE COOLERS LTD==========,551856,117,8,CATERING EQUIPMENT,29/08/2014,
210814F,PRESSURE COOLERS LTD==========,551856,118,8.25,CATERING FIXTURES,29/08/2014,
210814F,PRESSURE COOLERS LTD==========,551856,119,8.25,CATERING FIXTURES,29/08/2014,
210814F,PRESSURE COOLERS LTD==========,551856,120,8.25,CATERING FIXTURES,29/08/2014,
210814F,PRESSURE COOLERS LTD==========,551856,121,8.25,CATERING FIXTURES,29/08/2014,
210814F,PRESSURE COOLERS LTD==========,551856,122,8.25,STATIONERY CONSUMABLES,29/08/2014,
210814F,PRESSURE COOLERS LTD==========,551856,123,8.25,CATERING FIXTURES,29/08/2014,
210814F,PRESSURE COOLERS LTD==========,551856,124,8.25,CATERING FIXTURES,29/08/2014,
210814F,PRESSURE COOLERS LTD==========,551856,125,8,CATERING FIXTURES,29/08/2014,
210814F,PRESSURE COOLERS LTD==========,551856,126,8.25,CATERING FIXTURES,29/08/2014,
210814F,PRESSURE COOLERS LTD==========,551856,127,8.25,CATERING FIXTURES,29/08/2014,
210814F,PRESSURE COOLERS LTD==========,551856,128,8.25,CATERING FIXTURES,29/08/2014,
210814F,PRESSURE COOLERS LTD==========,551856,129,8.25,CATERING FIXTURES,29/08/2014,
210814F,PRESSURE COOLERS LTD==========,551856,130,8.25,CATERING FIXTURES,29/08/2014,
210814F,PRESSURE COOLERS LTD==========,551856,131,8.25,CATERING FIXTURES,29/08/2014,
210814F,PRESSURE COOLERS LTD==========,551856,132,8,CATERING FIXTURES,29/08/2014,
210814F,PRESSURE COOLERS LTD==========,551856,133,8,CATERING FIXTURES,29/08/2014,
210814F,PRESSURE COOLERS LTD==========,551856,134,8.25,CATERING FIXTURES,29/08/2014,
210814F,PRESSURE COOLERS LTD==========,551856,135,8.25,CATERING FIXTURES,29/08/2014,
210814F,PRESSURE COOLERS LTD==========,551856,136,8,CATERING FIXTURES,29/08/2014,
210814F,PRESSURE COOLERS LTD==========,551856,137,8.25,CATERING FIXTURES,29/08/2014,
210814F,PRESSURE COOLERS LTD==========,551856,138,8.25,CATERING FIXTURES,29/08/2014,
210814F,PRESSURE COOLERS LTD==========,551856,139,8.25,CATERING FIXTURES,29/08/2014,
210814F,PRESSURE COOLERS LTD==========,551856,140,8.25,CATERING FIXTURES,29/08/2014,
210814F,PRESSURE COOLERS LTD==========,551856,141,8,CATERING FIXTURES,29/08/2014,
210814F,PRESSURE COOLERS LTD==========,551856,142,8.25,CATERING FIXTURES,29/08/2014,
210814F,PRESSURE COOLERS LTD==========,551856,143,8.25,CATERING FIXTURES,29/08/2014,
210814F,PRESSURE COOLERS LTD==========,551856,144,8,CATERING FIXTURES,29/08/2014,
210814F,PRESSURE COOLERS LTD==========,551856,145,8.25,OPERATIONAL EQUIP-PURCHASE,29/08/2014,
210814F,PRESSURE COOLERS LTD==========,551856,146,8.25,OPERATIONAL DIRECT STANDBY,29/08/2014,
210814F,PRESSURE COOLERS LTD==========,551860,1,8.25,CATERING FIXTURES,29/08/2014,"1,197.00"
210814F,PRESSURE COOLERS LTD==========,551860,2,8.25,CATERING FIXTURES,29/08/2014,
210814F,PRESSURE COOLERS LTD==========,551860,3,8.25,CATERING FIXTURES,29/08/2014,
210814F,PRESSURE COOLERS LTD==========,551860,4,8.25,CATERING FIXTURES,29/08/2014,
210814F,PRESSURE COOLERS LTD==========,551860,5,8,CATERING FIXTURES,29/08/2014,
210814F,PRESSURE COOLERS LTD==========,551860,6,8.25,CATERING FIXTURES,29/08/2014,
210814F,PRESSURE COOLERS LTD==========,551860,7,8,CATERING FIXTURES,29/08/2014,
210814F,PRESSURE COOLERS LTD==========,551860,8,8.25,CATERING FIXTURES,29/08/2014,
210814F,PRESSURE COOLERS LTD==========,551860,9,8.25,CATERING FIXTURES,29/08/2014,
210814F,PRESSURE COOLERS LTD==========,551860,10,8.25,CATERING FIXTURES,29/08/2014,
210814F,PRESSURE COOLERS LTD==========,551860,11,8.25,CATERING EQUIPMENT,29/08/2014,
210814F,PRESSURE COOLERS LTD==========,551860,12,8.25,CATERING FIXTURES,29/08/2014,
210814F,PRESSURE COOLERS LTD==========,551860,13,8.25,CATERING FIXTURES,29/08/2014,
210814F,PRESSURE COOLERS LTD==========,551860,14,8.25,CATERING FIXTURES,29/08/2014,
210814F,PRESSURE COOLERS LTD==========,551860,15,8,CATERING FIXTURES,29/08/2014,
210814F,PRESSURE COOLERS LTD==========,551860,16,8.25,CATERING FIXTURES,29/08/2014,
210814F,PRESSURE COOLERS LTD==========,551860,17,8,CATERING FIXTURES,29/08/2014,
210814F,PRESSURE COOLERS LTD==========,551860,18,8.25,CATERING FIXTURES,29/08/2014,
210814F,PRESSURE COOLERS LTD==========,551860,19,8.25,CATERING FIXTURES,29/08/2014,
210814F,PRESSURE COOLERS LTD==========,551860,20,8,CATERING FIXTURES,29/08/2014,
210814F,PRESSURE COOLERS LTD==========,551860,21,8.25,CATERING FIXTURES,29/08/2014,
210814F,PRESSURE COOLERS LTD==========,551860,22,8.25,CATERING FIXTURES,29/08/2014,
210814F,PRESSURE COOLERS LTD==========,551860,23,8.25,CATERING FIXTURES,29/08/2014,
210814F,PRESSURE COOLERS LTD==========,551860,24,8,CATERING FIXTURES,29/08/2014,
210814F,PRESSURE COOLERS LTD==========,551860,25,8.25,CATERING FIXTURES,29/08/2014,
210814F,PRESSURE COOLERS LTD==========,551860,26,8.25,CATERING FIXTURES,29/08/2014,
210814F,PRESSURE COOLERS LTD==========,551860,27,8.25,CATERING FIXTURES,29/08/2014,
210814F,PRESSURE COOLERS LTD==========,551860,28,8.25,CATERING EQUIPMENT,29/08/2014,
210814F,PRESSURE COOLERS LTD==========,551860,29,8.25,CATERING FIXTURES,29/08/2014,
210814F,PRESSURE COOLERS LTD==========,551860,30,8.25,CATERING EQUIPMENT,29/08/2014,
210814F,PRESSURE COOLERS LTD==========,551860,31,8.25,CATERING FIXTURES,29/08/2014,
210814F,PRESSURE COOLERS LTD==========,551860,32,8.25,CATERING FIXTURES,29/08/2014,
210814F,PRESSURE COOLERS LTD==========,551860,33,8.25,CATERING FIXTURES,29/08/2014,
210814F,PRESSURE COOLERS LTD==========,551860,34,8.25,CATERING FIXTURES,29/08/2014,
210814F,PRESSURE COOLERS LTD==========,551860,35,8.25,OFFICE EQUIPMENT,29/08/2014,
210814F,PRESSURE COOLERS LTD==========,551860,36,8.25,CATERING FIXTURES,29/08/2014,
210814F,PRESSURE COOLERS LTD==========,551860,37,8.25,CATERING FIXTURES,29/08/2014,
210814F,PRESSURE COOLERS LTD==========,551860,38,8.25,CATERING FIXTURES,29/08/2014,
210814F,PRESSURE COOLERS LTD==========,551860,39,8,CATERING FIXTURES,29/08/2014,
210814F,PRESSURE COOLERS LTD==========,551860,40,8,CATERING FIXTURES,29/08/2014,
210814F,PRESSURE COOLERS LTD==========,551860,41,8.25,CATERING FIXTURES,29/08/2014,
210814F,PRESSURE COOLERS LTD==========,551860,42,8.25,CATERING FIXTURES,29/08/2014,
210814F,PRESSURE COOLERS LTD==========,551860,43,8.25,CATERING FIXTURES,29/08/2014,
210814F,PRESSURE COOLERS LTD==========,551860,44,8.25,CATERING FIXTURES,29/08/2014,
210814F,PRESSURE COOLERS LTD==========,551860,45,8,CATERING FIXTURES,29/08/2014,
210814F,PRESSURE COOLERS LTD==========,551860,46,8.25,CATERING FIXTURES,29/08/2014,
210814F,PRESSURE COOLERS LTD==========,551860,47,8.25,CATERING FIXTURES,29/08/2014,
210814F,PRESSURE COOLERS LTD==========,551860,48,8.25,CATERING FIXTURES,29/08/2014,
210814F,PRESSURE COOLERS LTD==========,551860,49,8.25,CATERING FIXTURES,29/08/2014,
210814F,PRESSURE COOLERS LTD==========,551860,50,8.25,CATERING FIXTURES,29/08/2014,
210814F,PRESSURE COOLERS LTD==========,551860,51,8.25,CATERING FIXTURES,29/08/2014,
210814F,PRESSURE COOLERS LTD==========,551860,52,8,CATERING FIXTURES,29/08/2014,
210814F,PRESSURE COOLERS LTD==========,551860,53,8.25,CATERING FIXTURES,29/08/2014,
210814F,PRESSURE COOLERS LTD==========,551860,54,8.25,CATERING EQUIPMENT,29/08/2014,
210814F,PRESSURE COOLERS LTD==========,551860,55,8.25,CATERING FIXTURES,29/08/2014,
210814F,PRESSURE COOLERS LTD==========,551860,56,8.25,CATERING FIXTURES,29/08/2014,
210814F,PRESSURE COOLERS LTD==========,551860,57,8.25,CATERING FIXTURES,29/08/2014,
210814F,PRESSURE COOLERS LTD==========,551860,58,8.25,CATERING FIXTURES,29/08/2014,
210814F,PRESSURE COOLERS LTD==========,551860,59,8.25,CATERING FIXTURES,29/08/2014,
210814F,PRESSURE COOLERS LTD==========,551860,60,8.25,CATERING FIXTURES,29/08/2014,
210814F,PRESSURE COOLERS LTD==========,551860,61,8.25,CATERING FIXTURES,29/08/2014,
210814F,PRESSURE COOLERS LTD==========,551860,62,8,CATERING FIXTURES,29/08/2014,
210814F,PRESSURE COOLERS LTD==========,551860,63,8.25,CATERING FIXTURES,29/08/2014,
210814F,PRESSURE COOLERS LTD==========,551860,64,8.25,CATERING FIXTURES,29/08/2014,
210814F,PRESSURE COOLERS LTD==========,551860,65,8.25,CATERING FIXTURES,29/08/2014,
210814F,PRESSURE COOLERS LTD==========,551860,66,8.25,CATERING FIXTURES,29/08/2014,
210814F,PRESSURE COOLERS LTD==========,551860,67,8.25,CATERING FIXTURES,29/08/2014,
210814F,PRESSURE COOLERS LTD==========,551860,68,8.25,CATERING FIXTURES,29/08/2014,
210814F,PRESSURE COOLERS LTD==========,551860,69,8.25,CATERING FIXTURES,29/08/2014,
210814F,PRESSURE COOLERS LTD==========,551860,70,8.25,CATERING FIXTURES,29/08/2014,
